Workbook

Sheet Оглавление
A1: Предложения ЧУ ДПО "Газпром ОНУТЦ" в График повышения квалификации и профессиональной переподготовки руководителей и специалистов ПАО «Газпром», его дочерних обществ и организаций на 2025 год (по направлениям и темам обучения)
A4: 04: Транспортировка газа
B5: 04:01: Эксплуатация, диагностика, противокоррозионная защита, ремонт оборудования и техники транспортировки газа, газового конденсата и нефти
B6: 04:02: Технология транспорта газа, газового конденсата и нефти
A7: 05: Переработка газа
B8: 05:02: Технологическое оборудование для переработки углеводородного сырья
B9: 05:03: Технологии производства, хранения и транспортировки сжиженных газов
A10: 06: Экономика промышленности и управление
B11: 06:01: Экономика и управление предприятиями ТЭК
B12: 06:02: Экономика труда
B13: 06:03: Экономика материально-технических ресурсов
B14: 06:04: Финансы и кредит
B15: 06:05: Бухгалтерский учет и налогообложение
A16: 07: Транспортные средства и спецтехника
B17: 07:01: Технические средства автомобильных перевозок
B18: 07:02: Управление автомобильными перевозками
A19: 08: Проектирование, строительство, реконструкция объектов газовой промышленности
B20: 08:03: Капитальное строительство объектов газовой промышленности
A21: 09: Энергетика
B22: 09:01: Техника и технология энергохозяйства
B23: 09:02: Теплоэнергетика
B24: 09:03: Электроэнергетика
A25: 10: Общеотраслевые
B26: 10:01: Управление персоналом
B27: 10:02: Делопроизводство
B28: 10:04: Информационные технологии
B29: 10:05: Автоматизация технологических процессов, автоматизированные системы управления, информационно-измерительные системы, метрология
B30: 10:06: Право
B31: 10:07: Промышленная экология, наука, новая техника
B32: 10:08: Промышленная безопасность (газо-, взрыво-, пожаробезопасность), охрана труда и безопасность жизнедеятельности
B33: 10:09: Технологическая связь
B34: 10:15: Педагогическая деятельность
A35: 11: Развитие управленческих и личностно-деловых компетенций
B36: 01: Развитие кадрового резерва
B37: 03: Развитие управленченских компетенций
B38: 04: Развитие личностно-деловых компетенций

Sheet Предложения в График
C1: Предложения в График повышения квалификации и профессиональной переподготовки руководителей и специалистов ПАО «Газпром», его дочерних обществ и организаций
C2: Образовательная организация: ЧУ ДПО «Газпром ОНУТЦ»
C3: Средняя стоимость часа: | E3: 1117.81 | F3: руб. по очным и очно-заочным программам
C4: Средняя стоимость часа: | E4: 296.90 | F4: руб. по заочным программам
C5: Год: 2025
A6: № в ист. | B6: № | C6: Направление деятельности | G6: Дополнительная профессиональная программа (ДПП) | J6: Обучение по ДПП | T6: Стоимость обучения 1 слушателя, руб. | U6: Ориентировочная стоимость проживания 1 слушателя в день,руб. (справочно) | V6: Код ПС и ОТФ | W6: Код и наименование ПС | X6: Новая программа | Y6: Код id D | Z6: сред. стоимость часа НЕ заочного обучения | AA6: сред. стоимость часа заочного обучения
C7: Код: направление деятельности 1 уровня | D7: Код: направление деятельности 2 уровня(тематика обучения) | E7: Направление деятельности 3 уровня(тема обучения) | F7: Должностные категории слушателей | G7: Вид программы | H7: Код: Наименование программы и модуля | I7: Краткое содержание программы / модуля | J7: Длительность обучения | P7: Форма обучения и формат проведения занятий | S7: Комментарии
J8: календарных дней,всего | K8: в том числе | M8: академических часов,всего | N8: в том числе | P8: Форма обучения: Очная; Очно-заочная; Заочная | Q8: Тип обучения: Обычное - с отрывом от работы; Выездное - с отрывом от работы; Электронное - без отрыва от работы; Смешанное - без отрыва от работы | R8: Формат проведения занятий(АУД, ДОТ, ЭО и пр.)
K9: дни обучения в очной форме(только будние дни) | L9: дни обучения в заочной форме и выходные дни, приходящиеся на период очного обучения | N9: в очной форме | O9: в заочной форме
A10: 0 | B10: 1 | C10: 2 | D10: 3 | E10: 4 | F10: 5 | G10: 6 | H10: 7 | I10: 8 | J10: 9 | K10: 10 | L10: 11 | M10: 12 | N10: 13 | O10: 14 | P10: 15 | Q10: 16 | R10: 17 | S10: 18 | T10: 19 | U10: 20 | V10: 21 | W10: 22 | X10: 0 | Y10: 0 | Z10: 0 | AA10: 0
A11: 41 | B11: 1 | C11: 04: Транспортировка газа | D11: 01: Эксплуатация, диагностика, противокоррозионная защита, ремонт оборудования и техники транспортировки газа, газового конденсата и нефти | E11: Эксплуатация основного и вспомогательного оборудования компрессорных станций | F11: Руководители и специалисты профильных подразделений | G11: повышение квалификации | H11: 03 0401 083: Конструкция и эксплуатация ГПА 10Р/РМ производства АО «ОДК - Газовые турбины» | I11: Назначение, технические характеристики и компоновка ГПА 10Р/РМ. Эксплуатация ГПА 10Р/РМ. Техническое обслуживание и ремонт ГПА 10Р/РМ. Ведение эксплуатационной документации. Охрана труда и промышленная безопасность. Практические навыки, получаемые слушателями по окончании обучения: подготовка основного и вспомогательного оборудования к работе; действия эксплуатационного персонала при нештатных ситуациях; текущий ремонт ГПА. Обучение проводится на базе АО «ОДК-Газовые турбины» в г. Рыбинске. | J11: 12 | K11: 5 | L11: 7 | M11: 56 | N11: 40 | O11: 16 | P11: Очно-заочная | Q11: Обычное | R11: АУД/ЭО | T11: 152300.00 | U11: 6000.00 | V11: 19.013 B: | W11: 19.013: Специалист по эксплуатации компрессорных станций и станций охлаждения газа газовой отрасли | X11: Новый | Z11: =T11/M11 -> 2719.64
A12: 42 | B12: 2 | C12: 04: Транспортировка газа | D12: 01: Эксплуатация, диагностика, противокоррозионная защита, ремонт оборудования и техники транспортировки газа, газового конденсата и нефти | E12: Эксплуатация основного и вспомогательного оборудования компрессорных станций | F12: Руководители и специалисты профильных подразделений | G12: повышение квалификации | H12: 03 0401 084: Конструкция и эксплуатация ГПА-Ц-25 производства АО «ОДК - Газовые турбины» | I12: Назначение, технические характеристики и компоновка ГПА-Ц-25. Эксплуатация ГПА-Ц-25. Техническое обслуживание и ремонт ГПА-Ц-25. Ведение эксплуатационной документации. Пуско-наладочные работы ГПА-Ц-25. Охрана труда и промышленная безопасность. Практические навыки, получаемые слушателями по окончании обучения: подготовка основного и вспомогательного оборудования к работе; действия эксплуатационного персонала при нештатных ситуациях; текущий ремонт ГПА; пуско-наладочные работы. Обучение проводится на базе АО «ОДК-Газовые турбины» в г. Рыбинске. | J12: 12 | K12: 5 | L12: 7 | M12: 56 | N12: 40 | O12: 16 | P12: Очно-заочная | Q12: Обычное | R12: АУД/ЭО | T12: 152300.00 | U12: 6000.00 | V12: 19.013 B: | W12: 19.013: Специалист по эксплуатации компрессорных станций и станций охлаждения газа газовой отрасли | X12: Новый | Z12: 2719.64
A13: 43 | B13: 3 | C13: 04: Транспортировка газа | D13: 01: Эксплуатация, диагностика, противокоррозионная защита, ремонт оборудования и техники транспортировки газа, газового конденсата и нефти | E13: Эксплуатация основного и вспомогательного оборудования компрессорных станций | F13: Руководители и специалисты профильных подразделений | G13: повышение квалификации | H13: 03 0401 085: Конструкция и эксплуатация ГПА-6,3/8-04 производства АО «ОДК - Газовые турбины» | I13: Назначение, технические характеристики и компоновка ГПА-6,3/8-04. Эксплуатация ГПА-6,3/8-04. Техническое обслуживание и ремонт ГПА-6,3/8-04. Ведение эксплуатационной документации. Пуско-наладочные работы ГПА-6,3/8-04. Охрана труда и промышленная безопасность. Практические навыки, получаемые слушателями по окончании обучения: подготовка основного и вспомогательного оборудования к работе; действия эксплуатационного персонала при нештатных ситуациях; текущий ремонт ГПА; пуско-наладочные работы. Обучение проводится на базе АО «ОДК-Газовые турбины» в г. Рыбинске. | J13: 12 | K13: 5 | L13: 7 | M13: 56 | N13: 40 | O13: 16 | P13: Очно-заочная | Q13: Обычное | R13: АУД/ЭО | T13: 152300.00 | U13: 6000.00 | V13: 19.013 B: | W13: 19.013: Специалист по эксплуатации компрессорных станций и станций охлаждения газа газовой отрасли | X13: Новый | Z13: 2719.64
A14: 53 | B14: 4 | C14: 04: Транспортировка газа | D14: 01: Эксплуатация, диагностика, противокоррозионная защита, ремонт оборудования и техники транспортировки газа, газового конденсата и нефти | E14: Эксплуатация линейной части и запорной арматуры магистральных газопроводов | F14: Руководители и специалисты профильных подразделений | G14: повышение квалификации | H14: 03 0401 119: Виды рисков и методы их анализа на опасном производственном объекте | I14: Основные методики анализа опасных факторов. Опасности и идентификация рисков HAZID/ ENVID. Анализ опасности и работоспособности HAZOP. Анализ опасности и работоспособности HAZOP-SIL методом Граф-риска. Практические навыки, получаемые слушателями по окончании обучения: принятие решения о приемлемости рисков для различного оборудования. Обучение проводится на базе ООО «Эр Би Ай Концепт» в г. С-Петербурге. | J14: 5 | K14: 5 | L14: 0 | M14: 40 | N14: 40 | O14: 0 | P14: Очная | Q14: Обычное | R14: АУД | T14: 89100.00 | U14: 6000.00 | X14: Новый | Z14: 2227.50
A15: 54 | B15: 5 | C15: 04: Транспортировка газа | D15: 01: Эксплуатация, диагностика, противокоррозионная защита, ремонт оборудования и техники транспортировки газа, газового конденсата и нефти | E15: Эксплуатация основного и вспомогательного оборудования компрессорных станций | F15: Руководители и специалисты профильных подразделений | G15: повышение квалификации | H15: 03 0401 120: Управление надежностью производственных активов | I15: Обзор современных подходов к управлению ТОиР и надежностью производственных активов. Техническое обслуживание ориентированное на надежность. Управление надежностью производственных активов. Оценка вероятности аварии. Практические навыки, получаемые слушателями по окончании обучения: определение целостности и надежности активов . Обучение проводится на базе ООО «Эр Би Ай Концепт» в г. С-Петербурге. | J15: 5 | K15: 5 | L15: 0 | M15: 40 | N15: 40 | O15: 0 | P15: Очная | Q15: Обычное | R15: АУД | T15: 89100.00 | U15: 6000.00 | X15: Новый | Z15: 2227.50
A16: 55 | B16: 6 | C16: 04: Транспортировка газа | D16: 01: Эксплуатация, диагностика, противокоррозионная защита, ремонт оборудования и техники транспортировки газа, газового конденсата и нефти | E16: 04:01:_Эксплуатация линейной части и запорной арматуры магистральных газопроводов | F16: Руководители и специалисты профильных подразделений | G16: повышение квалификации | H16: 03 0401 121 В: Применение риск-ориентированных подходов к организации технического обслуживания и ремонтов, управлению надежностью | I16: Система управления активами. Методологические подходы к управлению активами. Управление надежностью производственных активов. Техническое обслуживание, ориентированное на надежность. Практические навыки, получаемые слушателями по окончании обучения: инспектирование состояния оборудования с учётом рисков на основе методик, определенных стандартами, а также детальное проведение расчетов, выполненных по входным данным для различного оборудования. | J16: 5 | K16: 5 | L16: 0 | M16: 40 | N16: 40 | O16: 0 | P16: Очная | Q16: Выездное | R16: АУД | T16: 89100.00 | U16: 0.00 | X16: Новый | Z16: 2227.50
A17: 57 | B17: 7 | C17: 04: Транспортировка газа | D17: 01: Эксплуатация, диагностика, противокоррозионная защита, ремонт оборудования и техники транспортировки газа, газового конденсата и нефти | E17: Эксплуатация линейной части и запорной арматуры магистральных газопроводов | F17: Руководители и специалисты профильных подразделений | G17: повышение квалификации | H17: 03 0401 122: Управление коррозией на предприятии в нефтяной и газовой промышленности | I17: Комплексный подход к предотвращению, контролю и управлению коррозией на предприятии. Нормативная база системы управления коррозией. Влияние коррозии на различные материалы. Меры защиты, используемые для предотвращения коррозии. Коррозионные механизмы в нефтегазодобывающем оборудовании. Оценка эффективности применения химических реагентов. Оценка функционирования систем электрохимической защиты. Практические навыки, получаемые слушателями по окончании обучения: определение влияния коррозии на различные материалы и мер защиты, используемых для ее предотвращения. Обучение проводится на базе ООО «Эр Би Ай Концепт» в г. С-Петербурге. | J17: 5 | K17: 5 | L17: 0 | M17: 40 | N17: 40 | O17: 0 | P17: Очная | Q17: Обычное | R17: АУД | T17: 89100.00 | U17: 6000.00 | X17: Новый | Z17: 2227.50
A18: 5 | B18: 8 | C18: 04: Транспортировка газа | D18: 01: Эксплуатация, диагностика, противокоррозионная защита, ремонт оборудования и техники транспортировки газа, газового конденсата и нефти | E18: Техническая диагностика и ремонт основного и вспомогательного оборудования компрессорных станций | F18: Руководители и специалисты профильных подразделений | G18: профессиональная переподготовка | H18: 03 0401 001 ПМ: Техническая диагностика оборудования компрессорных станций (3-модульная годичная программа профессиональной переподготовки)Модуль 1. Техническое диагностирование газоперекачивающих агрегатов и вспомогательного оборудования компрессорных станций | I18: Физические процессы в объектах диагностирования. Основы технического диагностирования. Отраслевая система диагностического обслуживания оборудования компрессорных станций. Газоперекачивающий агрегат (ГПА) как объект диагностирования. Параметрическое диагностирование. Вибрационное диагностирование. Трибодиагностирование. Другие виды диагностики ГПА и оборудования КС. Техническое диагностирование вспомогательного технологического оборудования. Практические навыки, получаемые слушателями по окончании обучения: обработка полученной информации и выработка заключения о техническом состоянии оборудования по результатам параметрического диагностирования. Обучение проводится на базе РГУ нефти и газа (НИУ) им. И.М. Губкина в г. Москве. | J18: 12 | K18: 10 | L18: 2 | M18: 72 | N18: 72 | O18: 0 | P18: Очная | Q18: Обычное | R18: АУД | S18: Программа целевого (опережающего) обучения. | T18: 83000.00 | U18: 6000.00 | V18: 19.026 A: | W18: 19.026: Специалист по техническому контролю и диагностированию объектов и сооружений нефтегазового комплекса | Y18: 50040026 | Z18: =T18/M18 -> 1152.78
V19: 19.026 B: | W19: 19.026: Специалист по техническому контролю и диагностированию объектов и сооружений нефтегазового комплекса
V20: 19.026 C: | W20: 19.026: Специалист по техническому контролю и диагностированию объектов и сооружений нефтегазового комплекса
A21: 6 | B21: 9 | C21: 04: Транспортировка газа | D21: 01: Эксплуатация, диагностика, противокоррозионная защита, ремонт оборудования и техники транспортировки газа, газового конденсата и нефти | E21: Техническая диагностика и ремонт основного и вспомогательного оборудования компрессорных станций | F21: Руководители и специалисты профильных подразделений | G21: профессиональная переподготовка | H21: 03 0401 001 ПМ: Техническая диагностика оборудования компрессорных станций (3-модульная годичная программа профессиональной переподготовки)Модуль 3. Надежность и эффективность эксплуатации оборудования компрессорных станций | I21: Показатели надежности и эффективности эксплуатации оборудования КС. Влияние условий работы на технические состояние оборудования. Технология поузловой диагностики ГПА. Порядок определения сроков безопасной эксплуатации ГПА. Порядок продления сроков безопасной эксплуатации трубопроводов и СРДП. Ресурсосберегающие технологии ремонта оборудования КС. Нормативно-техническая документация. Охрана труда и промышленная безопасность Практические навыки, получаемые слушателями по окончании обучения: работа с диагностическим оборудованием, обработка полученной информации и выработка заключения о продлении сроков безопасной эксплуатации оборудования. Обучение провидится в очном формате в ЧУ ДПО «Газпром ОНУТЦ» и включает практические занятия в лаборатории и на учебном полигоне по технической диагностике, итоговую аттестацию. | J21: 12 | K21: 10 | L21: 2 | M21: 72 | N21: 72 | O21: 0 | P21: Очная | Q21: Обычное | R21: АУД | S21: Программа целевого (опережающего) обучения | T21: 59800.00 | U21: 6000.00 | V21: 19.026 A: | W21: 19.026: Специалист по техническому контролю и диагностированию объектов и сооружений нефтегазового комплекса | Y21: 50040029 | Z21: =T21/M21 -> 830.56
V22: 19.026 B: | W22: 19.026: Специалист по техническому контролю и диагностированию объектов и сооружений нефтегазового комплекса
V23: 19.026 C: | W23: 19.026: Специалист по техническому контролю и диагностированию объектов и сооружений нефтегазового комплекса
A24: 7 | B24: 10 | C24: 04: Транспортировка газа | D24: 01: Эксплуатация, диагностика, противокоррозионная защита, ремонт оборудования и техники транспортировки газа, газового конденсата и нефти | E24: Техническая диагностика и ремонт основного и вспомогательного оборудования компрессорных станций | F24: Руководители и специалисты профильных подразделений | G24: профессиональная переподготовка | H24: 03 0401 001 ПМ: Техническая диагностика оборудования компрессорных станций (3-модульная годичная программа профессиональной переподготовки)Модуль 2. Неразрушающий контроль технологического оборудования КС | I24: Физические основы виброконтроля и диагностики. Первичные измерительные преобразователи вибрации (датчики вибрации). Контроль состояния оборудования. Принципы нормирования вибрации. Контроль технического состояния энергомеханического оборудования по параметрам вибрации. Нормирование вибрации трубопроводов, конструкций и технологического оборудования. Технология проведения измерения НДС магнитошумовыми, ультразвуковыми и тензометрическими методами. Общие вопросы неразрушающего контроля. Физические основы визуального и измерительного контроля. Технология визуального и измерительного контроля. Вихретоковый контроль, физические основы. Приборы и средства, технологии и методики вихретокового контроля. Ультразвуковой контроль. Капиллярный контроль. Оценка и интерпретация результатов контроля, правила безопасности. В процессе обучения используются учебно-методические пособия, интерактивные обучающие системы и виртуальные лабораторные работы, произведенные в ОНУТЦ. Практические навыки, получаемые слушателями по окончании обучения: обработка полученной информации и выработка заключения о техническом состоянии оборудования по параметрам вибрации. | J24: 87 | K24: 10 | L24: 77 | M24: 216 | N24: 72 | O24: 144 | P24: Очно-заочная | Q24: Обычное | R24: АУД/ЭО | S24: Программа целевого (опережающего) обучения. | T24: 59800.00 | U24: 6000.00 | V24: 19.026 A: | W24: 19.026: Специалист по техническому контролю и диагностированию объектов и сооружений нефтегазового комплекса | Y24: 50040028 | Z24: =T24/M24 -> 276.85
V25: 19.026 B: | W25: 19.026: Специалист по техническому контролю и диагностированию объектов и сооружений нефтегазового комплекса
V26: 19.026 C: | W26: 19.026: Специалист по техническому контролю и диагностированию объектов и сооружений нефтегазового комплекса
A27: 8 | B27: 11 | C27: 04: Транспортировка газа | D27: 01: Эксплуатация, диагностика, противокоррозионная защита, ремонт оборудования и техники транспортировки газа, газового конденсата и нефти | E27: Техническая диагностика и ремонт основного и вспомогательного оборудования компрессорных станций | F27: Руководители и специалисты профильных и непрофильных подразделений | G27: повышение квалификации | H27: 03 0401 002: Новые методы в организации ремонта оборудования компрессорных станций | I27: Приобретение теоретических знаний в области обеспечения надежности систем транспортировки газа, ремонта оборудования компрессорных станций «по состоянию», организации ремонта оборудования компрессорных станций с использованием методов и средств ТД, методов диагностики технического состояния оборудования компрессорных станций в процессе его эксплуатации в межремонтный период, современных методов и средств ТД и НК, используемых при ремонте оборудования компрессорных станций, оценки технического состояния и качества ремонта оборудования компрессорных станций, а также практических навыков составления дефектной ведомости по результатам ТД и дефектоскопии на работающем и остановленном оборудовании, применения современных методов и средства ТД и контроля качества работ по восстановлению технического состояния оборудования компрессорных станций, определения критериев оценки технического состояния оборудования КС и отбраковки базовых узлов и деталей с использованием методов и средств ТД. Практические навыки, получаемые слушателями по окончании обучения: проведение предремонтного диагностирования с целью определения срока вывода в ремонт оборудования компрессорных станций, применение новых методов и технологий при ремонте оборудования компрессорных станций. | J27: 12 | K27: 10 | L27: 2 | M27: 72 | N27: 72 | O27: 0 | P27: Очная | Q27: Обычное | R27: АУД | S27: Программа целевого (опережающего) обучения. | T27: 52500.00 | U27: 6000.00 | V27: 19.013 B: | W27: 19.013: Специалист по эксплуатации компрессорных станций и станций охлаждения газа газовой отрасли | Y27: 50020241 | Z27: =T27/M27 -> 729.17
V28: 19.013 D: | W28: 19.013: Специалист по эксплуатации компрессорных станций и станций охлаждения газа газовой отрасли
A29: 9 | B29: 12 | C29: 04: Транспортировка газа | D29: 01: Эксплуатация, диагностика, противокоррозионная защита, ремонт оборудования и техники транспортировки газа, газового конденсата и нефти | E29: Техническая диагностика и ремонт основного и вспомогательного оборудования компрессорных станций | F29: Руководители и специалисты профильных подразделений | G29: повышение квалификации | H29: 03 0401 003: Конструкция и технология ремонта газоперекачивающих агрегатов магистральных газопроводов | I29: Конструкция и условия работы газоперекачивающих агрегатов (ГПА) магистральных газопроводов; конструкция и условия работы вспомогательного оборудования ГПА магистральных газопроводов; организация и технология проведения ремонтов ГПА магистральных газопроводов; организация и технология проведения ремонтов вспомогательного оборудования ГПА магистральных газопроводов; охрана труда и промышленная безопасность. Практические занятия проводятся на учебном полигоне по технической диагностике. Практические навыки, получаемые слушателями по окончании обучения: организация проведения ремонта ГПА магистральных газопроводов различного типа, вспомогательного оборудования АВО газа, АВО масла. | J29: 26 | K29: 5 | L29: 21 | M29: 72 | N29: 40 | O29: 32 | P29: Очно-заочная | Q29: Обычное | R29: АУД/ЭО | T29: 32000.00 | U29: 6000.00 | V29: 19.013 B: | W29: 19.013: Специалист по эксплуатации компрессорных станций и станций охлаждения газа газовой отрасли | Y29: 50020213 | Z29: =T29/M29 -> 444.44
V30: 19.013 D: | W30: 19.013: Специалист по эксплуатации компрессорных станций и станций охлаждения газа газовой отрасли
A31: 10 | B31: 13 | C31: 04: Транспортировка газа | D31: 01: Эксплуатация, диагностика, противокоррозионная защита, ремонт оборудования и техники транспортировки газа, газового конденсата и нефти | E31: Техническая диагностика и ремонт основного и вспомогательного оборудования компрессорных станций | F31: Руководители и специалисты профильных и непрофильных подразделений | G31: повышение квалификации | H31: 03 0401 012: Конструкция, диагностика и ремонт запорно-регулирующей арматуры | I31: Общие сведения о запорно-регулирующей арматуре (ЗРА). Типы ЗРА, установленные на обвязках КС и линейной части МГ. Диагностика технического состояния ЗРА. Технические требования, предъявляемые к ЗРА. Устройства и условия работы ЗРА. Неисправности ЗРА и причины их возникновения. Методы и средства диагностики технического состояния ЗРА. Техническое обслуживание и ремонт ЗРА. В процессе обучения применяются интерактивные обучающие системы (ИОС), разработанные в ОНУТЦ. Практические навыки, получаемые слушателями по окончании обучения: проведение оценки необходимого объема ремонтных работ в зависимости от фактического технического состояния ЗРА, оптимизация ремонтных операций, проводимых в условиях КС и РММ, использование современных методов восстановления работоспособности деталей и узлов ЗРА. | J31: 26 | K31: 5 | L31: 21 | M31: 72 | N31: 40 | O31: 32 | P31: Очно-заочная | Q31: Обычное | R31: АУД/ЭО | T31: 32000.00 | U31: 6000.00 | V31: 19.013 B: | W31: 19.013: Специалист по эксплуатации компрессорных станций и станций охлаждения газа газовой отрасли | Y31: 50020414 | Z31: =T31/M31 -> 444.44
V32: 19.013 D: | W32: 19.013: Специалист по эксплуатации компрессорных станций и станций охлаждения газа газовой отрасли
A33: 11 | B33: 14 | C33: 04: Транспортировка газа | D33: 01: Эксплуатация, диагностика, противокоррозионная защита, ремонт оборудования и техники транспортировки газа, газового конденсата и нефти | E33: Техническая диагностика и ремонт основного и вспомогательного оборудования компрессорных станций | F33: Руководители и специалисты профильных и непрофильных подразделений | G33: повышение квалификации | H33: 03 0401 015: Методы и средства диагностики технического состояния газораспределительных станций. Особенности визуального измерительного контроля при диагностировании газораспределительных станций | I33: Надежность и эффективность технологического оборудования ГРС. Организация диагностического обслуживания и ремонта технологического оборудования ГРС. Методы и средства контроля и диагностики при обслуживании и ремонте технологического оборудования ГРС. Методы и средства продления ресурса эксплуатации, повышения надежности и эффективности использования технологического оборудования ГРС. Особенности визуального и измерительного контроля (ВиК) при обследовании ГРС. Приборы, инструменты и устройства для визуального и измерительного контроля. Оценка остаточного ресурса оборудования ГРС. Экспертиза промышленной безопасности оборудования ГРС. Практические навыки, получаемые слушателями по окончании обучения: применение современных методов и средств технической диагностики ВиК для определения технического состояния и остаточного ресурса эксплуатации оборудования ГРС. Обучение проводится на базе Челябинского отделения Учебно-производственного центра ООО «Газпром трансгаз Екатеринбург». | J33: 5 | K33: 5 | L33: 0 | M33: 40 | N33: 40 | O33: 0 | P33: Очная | Q33: Обычное | R33: АУД | S33: Проживание: г. Челябинск, Троицкий тракт, 80 (общежитие УПЦ) | T33: 59800.00 | U33: 6000.00 | V33: 19.029 B: | W33: 19.029: Специалист по эксплуатации технологического оборудования газораспределительных станций, отдельно стоящих газорегуляторных пунктов, узлов учета и редуцирования газа | Y33: 50020415 | Z33: =T33/M33 -> 1495.00
V34: 19.029 C: | W34: 19.029: Специалист по эксплуатации технологического оборудования газораспределительных станций, отдельно стоящих газорегуляторных пунктов, узлов учета и редуцирования газа
A35: 24 | B35: 15 | C35: 04: Транспортировка газа | D35: 01: Эксплуатация, диагностика, противокоррозионная защита, ремонт оборудования и техники транспортировки газа, газового конденсата и нефти | E35: Эксплуатация основного и вспомогательного оборудования компрессорных станций | F35: Руководители и специалисты профильных подразделений | G35: повышение квалификации | H35: 03 0401 118 Э: Конструкция и эксплуатация газотурбинного двигателя АЛ-31СТ в составе различных типов газоперекачивающих агрегатов | I35: Общие требования и устройство газотурбинного двигателя АЛ-31СТ. Эксплуатация газотурбинного двигателя АЛ-31СТ. Газоперекачивающий агрегат ГТН-16Р-АЛ-16 с газотурбинным двигателем АЛ-31СТ. Газоперекачивающий агрегат ГПА-16УА-А/70-1,8 с газотурбинным двигателем АЛ-31СТ. Газоперекачивающий агрегат ГПА-16АЛ/70-1,8 с газотурбинным двигателем АЛ-31СТ. Практические навыки, получаемые слушателями по окончании обучения: анализ нормативной, технической и технологической документации. | J35: 22 | K35: 0 | L35: 22 | M35: 40 | N35: 0 | O35: 40 | P35: Заочная | Q35: Электронное | R35: ЭО | S35: Обучение проводится на мультипортальной платформе дистанционного обучения «СНФПО Онлайн». | T35: 6100.00 | U35: 0.00 | V35: 19.013 B: | W35: 19.013: Специалист по эксплуатации компрессорных станций и станций охлаждения газа газовой отрасли | X35: Новый | AA35: =T35/M35 -> 152.50
A36: 12 | B36: 16 | C36: 04: Транспортировка газа | D36: 01: Эксплуатация, диагностика, противокоррозионная защита, ремонт оборудования и техники транспортировки газа, газового конденсата и нефти | E36: Эксплуатация основного и вспомогательного оборудования компрессорных станций | F36: Руководители и специалисты профильных подразделений | G36: повышение квалификации | H36: 03 0401 025: Эксплуатация газоперекачивающего оборудования компрессорных станций | I36: Назначение, устройство и принцип работы газоперекачивающих (ГПА) агрегатов магистральных газопроводов. Современные системы автоматического управления ГПА. Организация эксплуатации ГПА и вспомогательного оборудования компрессорных станций. Охрана труда и промышленная безопасность. В процессе обучения применяются интерактивные обучающие системы (ИОС), разработанные в ОНУТЦ, а также имитационный тренажер для обучения сменных инженеров КС на базе МСКУ 5000. Практические навыки, получаемые слушателями по окончании обучения: выполнение ремонтных работ в области продления сроков надежной эксплуатации оборудования КС, техническое обслуживание и организация проведения ремонта ГПА магистральных газопроводов различного типа, вспомогательного оборудования в процессе эксплуатации. | J36: 26 | K36: 5 | L36: 21 | M36: 72 | N36: 40 | O36: 32 | P36: Очно-заочная | Q36: Обычное | R36: АУД/ЭО | T36: 32000.00 | U36: 6000.00 | V36: 19.013 B: | W36: 19.013: Специалист по эксплуатации компрессорных станций и станций охлаждения газа газовой отрасли | Y36: 50026063 | Z36: =T36/M36 -> 444.44
V37: 19.013 D: | W37: 19.013: Специалист по эксплуатации компрессорных станций и станций охлаждения газа газовой отрасли
A38: 13 | B38: 17 | C38: 04: Транспортировка газа | D38: 01: Эксплуатация, диагностика, противокоррозионная защита, ремонт оборудования и техники транспортировки газа, газового конденсата и нефти | E38: Эксплуатация основного и вспомогательного оборудования компрессорных станций | F38: Руководители и специалисты профильных подразделений | G38: повышение квалификации | H38: 03 0401 027: Диагностика энергетического оборудования магистральных газопроводов | I38: Оборудование и сооружения электрохозяйства объектов ПАО «Газпром». Структура системы технического диагностирования на объектах ПАО «Газпром». Основные методы и средства диагностирования электротехнического оборудования. Прогнозирование технического состояния электротехнического оборудования. Перспективы развития системы технического диагностирования оборудования и сооружений энергохозяйства. Охрана труда и промышленная безопасность. Основы экологии и экологической безопасности. Практические навыки, получаемые слушателями по окончании обучения: методы и средства диагностирования электростанций, методы и средства диагностирования линий электропередачи, оценка и анализ технического состояния электротехнического оборудования. | J38: 12 | K38: 10 | L38: 2 | M38: 72 | N38: 72 | O38: 0 | P38: Очная | Q38: Обычное | R38: АУД | T38: 52500.00 | U38: 6000.00 | V38: 19.026 A: | W38: 19.026: Специалист по техническому контролю и диагностированию объектов и сооружений нефтегазового комплекса | Y38: 50027775 | Z38: =T38/M38 -> 729.17
V39: 19.026 B: | W39: 19.026: Специалист по техническому контролю и диагностированию объектов и сооружений нефтегазового комплекса
V40: 19.026 C: | W40: 19.026: Специалист по техническому контролю и диагностированию объектов и сооружений нефтегазового комплекса
A41: 14 | B41: 18 | C41: 04: Транспортировка газа | D41: 01: Эксплуатация, диагностика, противокоррозионная защита, ремонт оборудования и техники транспортировки газа, газового конденсата и нефти | E41: Техническая диагностика и ремонт основного и вспомогательного оборудования компрессорных станций | F41: Руководители и специалисты профильных подразделений | G41: повышение квалификации | H41: 03 0401 029: Инновационные методы и технические возможности неразрушающего контроля дефектности | I41: Система регламентного контроля показателей газотранспортного оборудования (ГТО) в процессе эксплуатации, инновационный потенциал методов неразрушающего контроля ГТО в процессе эксплуатации, современные технологии восстановления геометрических и прочностных характеристик деталей и узлов ГТО, охрана труда и промышленная безопасность. Практические навыки, получаемые слушателями по окончании обучения: применение диагностического оборудования для технического диагностирования ГТО методами неразрушающего контроля, анализ технических параметров оборудования | J41: 26 | K41: 5 | L41: 21 | M41: 72 | N41: 40 | O41: 32 | P41: Очно-заочная | Q41: Обычное | R41: АУД/ЭО | S41: Программа целевого (опережающего) обучения. | T41: 32000.00 | U41: 6000.00 | V41: 19.026 A: | W41: 19.026: Специалист по техническому контролю и диагностированию объектов и сооружений нефтегазового комплекса | Y41: 50033261 | Z41: =T41/M41 -> 444.44
V42: 19.026 B: | W42: 19.026: Специалист по техническому контролю и диагностированию объектов и сооружений нефтегазового комплекса
A43: 15 | B43: 19 | C43: 04: Транспортировка газа | D43: 01: Эксплуатация, диагностика, противокоррозионная защита, ремонт оборудования и техники транспортировки газа, газового конденсата и нефти | E43: Противокоррозионная защита линейной части и запорной арматуры магистральных газопроводов, газопроводов компрессорных, газораспределительных станций | F43: Руководители и специалисты профильных подразделений | G43: повышение квалификации | H43: 03 0401 031: Современные методы электрохимической защиты от коррозии наземных и подземных магистральных газопроводов | I43: Коррозии, виды коррозийных повреждений на газопроводах. Стресс-коррозия на газопроводах, её причины и последствия. Профилактика стресс-коррозионных повреждений. Коррозионная агрессивность почвогрунтов, её контроль и оценка. Электрохимическая защита подземных магистральных газопроводов. Новые изоляционные материалы и технологии пассивной защиты. Современные установки катодной защиты. Блуждающие токи. Дренажная защита. Протекторная защита. Организация комплексной противокоррозионной защиты газопровода. Методы и средства определения качества изоляционных покрытий. Охрана труда при обнаружении недопустимых коррозионных повреждений подземного газопровода. Промышленная безопасность. Практические навыки, получаемые слушателями по окончании обучения: применение новых материалов, новых технологий при эксплуатации, ремонте средств ЭХЗ, оценка состояния газопровода и эффективности работы средств защиты от коррозии, выявление, оценка и разработка профилактических мероприятий стресс-коррозионных повреждений. | J43: 12 | K43: 10 | L43: 2 | M43: 72 | N43: 72 | O43: 0 | P43: Очная | Q43: Обычное | R43: АУД | T43: 52500.00 | U43: 6000.00 | V43: 40.022 B: | W43: 40.022: Работник по электрохимической защите от коррозии линейных сооружений и объектов | Y43: 50031389 | Z43: =T43/M43 -> 729.17
V44: 40.022 C: | W44: 40.022: Работник по электрохимической защите от коррозии линейных сооружений и объектов
A45: 16 | B45: 20 | C45: 04: Транспортировка газа | D45: 01: Эксплуатация, диагностика, противокоррозионная защита, ремонт оборудования и техники транспортировки газа, газового конденсата и нефти | E45: Техническая диагностика и ремонт линейной части и запорной арматуры магистральных газопроводов | F45: Руководители и специалисты профильных подразделений | G45: повышение квалификации | H45: 03 0401 032: Эксплуатация, диагностика, ремонт трубопроводной арматуры | I45: Конструкция, назначение и типы трубопроводной арматуры (ТПА). Условия эксплуатации ТПА. Диагностика технического состояния ТПА. Техническое обслуживание и ремонт ТПА. Охрана труда и промышленная безопасность. В процессе обучения применяются интерактивные обучающие системы (ИОС), разработанные в ОНУТЦ. Практические навыки, получаемые слушателями по окончании обучения: контроль проведения диагностического обследования ТПА, определение целей и содержания диагностических работ, анализ технических параметров ТПА. | J45: 26 | K45: 5 | L45: 21 | M45: 72 | N45: 40 | O45: 32 | P45: Очно-заочная | Q45: Обычное | R45: АУД/ЭО | S45: Программа целевого (опережающего) обучения. | T45: 32000.00 | U45: 6000.00 | V45: 19.013 B: | W45: 19.013: Специалист по эксплуатации компрессорных станций и станций охлаждения газа газовой отрасли | Y45: 50031391 | Z45: =T45/M45 -> 444.44
V46: 19.013 D: | W46: 19.013: Специалист по эксплуатации компрессорных станций и станций охлаждения газа газовой отрасли
A47: 17 | B47: 21 | C47: 04: Транспортировка газа | D47: 01: Эксплуатация, диагностика, противокоррозионная защита, ремонт оборудования и техники транспортировки газа, газового конденсата и нефти | E47: Техническая диагностика и ремонт основного и вспомогательного оборудования компрессорных станций | F47: Руководители и специалисты профильных подразделений | G47: повышение квалификации | H47: 03 0401 033: Диагностика газоперекачивающих агрегатов на компрессорных станциях | I47: Организация эксплуатации и ремонта оборудования КС «по состоянию» на основании результатов диагностирования. Система диагностического обслуживания ГПА и перспективы ее развития. Газоперекачивающий агрегат (ГПА) как объект диагностирования. Типы ГПА, применяемых на КС. Параметрическая (термогазодинамическая) диагностика ГПА. Диагностика ГПА по параметрам вибрации. Трибодиагностика ГПА. Методы неразрушающего контроля и их использование при диагностике ГПА. Охрана труда и промышленная безопасность. Основы экологии. Практические навыки, получаемые слушателями по окончании обучения: контроль технического состояния ГПА по параметрам вибрации, технология визуального и измерительного контроля; технология вихретокового контроля; алгоритм проведения диагностического обследования при капиллярном методе контроля | J47: 26 | K47: 5 | L47: 21 | M47: 72 | N47: 40 | O47: 32 | P47: Очно-заочная | Q47: Обычное | R47: АУД/ЭО | S47: Программа целевого (опережающего) обучения. | T47: 32000.00 | U47: 6000.00 | V47: 19.026 A: | W47: 19.026: Специалист по техническому контролю и диагностированию объектов и сооружений нефтегазового комплекса | Y47: 50031398 | Z47: =T47/M47 -> 444.44
V48: 19.026 B: | W48: 19.026: Специалист по техническому контролю и диагностированию объектов и сооружений нефтегазового комплекса
A49: 18 | B49: 22 | C49: 04: Транспортировка газа | D49: 01: Эксплуатация, диагностика, противокоррозионная защита, ремонт оборудования и техники транспортировки газа, газового конденсата и нефти | E49: Техническая диагностика и ремонт основного и вспомогательного оборудования компрессорных станций | F49: Руководители и специалисты профильных подразделений | G49: повышение квалификации | H49: 03 0401 034: Контроль напряженно-деформированного состояния магистрального газопровода | I49: Организация эксплуатации и ремонта магистрального газопровода (МГ) на основании результатов диагностирования. Общие методические вопросы оценки напряженно-деформированного состояния конструкций и узлов. Физические основы методов измерения деформации, их сравнительный анализ. Приборы измерения параметров напряженно-деформированного состояния. Подготовка и технология проведения измерений параметров напряженно-деформированного состояния. Технология геодезического контроля деформаций. Мониторинг напряженно-деформированного состояния МГ стационарными системами. Охрана труда и промышленная безопасность. Практические навыки, получаемые слушателями по окончании обучения: выполнение операций контроля при измерении параметров НДС, оценка и идентификация результатов контроля, проверка работоспособности приборов и настройка их на заданные параметры | J49: 26 | K49: 5 | L49: 21 | M49: 72 | N49: 40 | O49: 32 | P49: Очно-заочная | Q49: Обычное | R49: АУД/ЭО | T49: 32000.00 | U49: 6000.00 | V49: 19.026 A: | W49: 19.026: Специалист по техническому контролю и диагностированию объектов и сооружений нефтегазового комплекса | Y49: 50035901 | Z49: =T49/M49 -> 444.44
V50: 19.026 B: | W50: 19.026: Специалист по техническому контролю и диагностированию объектов и сооружений нефтегазового комплекса
A51: 19 | B51: 23 | C51: 04: Транспортировка газа | D51: 01: Эксплуатация, диагностика, противокоррозионная защита, ремонт оборудования и техники транспортировки газа, газового конденсата и нефти | E51: Эксплуатация основного и вспомогательного оборудования компрессорных станций | F51: Руководители и специалисты профильных подразделений | G51: повышение квалификации | H51: 03 0401 036 Э: Устройство и эксплуатация оборудования блока подготовки топливного, пускового и импульсного газа компрессорной станции | I51: Система топливного, пускового и импульсного газа КС. Блок подготовки топливного, пускового и импульсного газа КС. Блок подготовки топливного и импульсного газа КС. Правила эксплуатации блока подготовки топливного, пускового и импульсного газа КС. Подогреватели газа. Охрана труда при эксплуатации оборудования блока подготовки топливного, пускового и импульсного газа КС. Практические навыки, получаемые слушателями по окончании обучения: особенности эксплуатации оборудования блока подготовки топливного, пускового и импульсного газа компрессорных станций. | J51: 22 | K51: 0 | L51: 22 | M51: 40 | N51: 0 | O51: 40 | P51: Заочная | Q51: Электронное | R51: ЭО | S51: Обучение проводится на мультипортальной платформе дистанционного обучения «СНФПО Онлайн» | T51: 6100.00 | U51: 0.00 | V51: 19.013 B: | W51: 19.013: Специалист по эксплуатации компрессорных станций и станций охлаждения газа газовой отрасли | Y51: 50031405 | AA51: =T51/M51 -> 152.50
V52: 19.013 C: | W52: 19.013: Специалист по эксплуатации компрессорных станций и станций охлаждения газа газовой отрасли
A53: 20 | B53: 24 | C53: 04: Транспортировка газа | D53: 01: Эксплуатация, диагностика, противокоррозионная защита, ремонт оборудования и техники транспортировки газа, газового конденсата и нефти | E53: Технология, техника и оборудование для контроля качества и замера количества транспортируемого газа | F53: Руководители и специалисты профильных подразделений | G53: повышение квалификации | H53: 03 0401 037 Э: Регуляторы давления газа | I53: Общие сведения о регуляторах давления газа. Регулятор давления газа РД-32М. Регулятор давления газа типа РДСК. Регулятор давления газа типа РД-50-64. Регулятор давления газа типа РДУ. Регулятор давления газа типа РДП. Регулятор давления газа типа РДО. Регулятор давления газа типа ЛОРД. Регулятор давления типа РДМ. Дискретный клапан-дроссель ДКД. Регулятор давления типа РДГК-10М. Регулятор давления газа типа RMG. Регулятор давления газа серии FL фирмы «TARTARINI». Меры безопасности при эксплуатации и обслуживании регуляторов давления газа. Практические навыки, получаемые слушателями по окончании обучения: безопасная эксплуатация регуляторов давления газа. | J53: 22 | K53: 0 | L53: 22 | M53: 40 | N53: 0 | O53: 40 | P53: Заочная | Q53: Электронное | R53: ЭО | S53: Обучение проводится на мультипортальной платформе дистанционного обучения «СНФПО Онлайн» | T53: 6100.00 | U53: 0.00 | V53: 19.029 B: | W53: 19.029: Специалист по эксплуатации технологического оборудования газораспределительных станций, отдельно стоящих газорегуляторных пунктов, узлов учета и редуцирования газа | Y53: 50031399 | AA53: =T53/M53 -> 152.50
A54: 21 | B54: 25 | C54: 04: Транспортировка газа | D54: 01: Эксплуатация, диагностика, противокоррозионная защита, ремонт оборудования и техники транспортировки газа, газового конденсата и нефти | E54: Эксплуатация линейной части и запорной арматуры магистральных газопроводов | F54: Руководители и специалисты профильных подразделений | G54: повышение квалификации | H54: 03 0401 038 Э: Эксплуатация трубопроводной арматуры на линейной части магистрального газопровода | I54: Требования к оформлению крановых площадок и узлов. Основные параметры, технические характеристики и маркировка трубопроводной арматуры (ТПА), требования к конструкции запорной арматуры и ее приводов. Основные положения системы технического обслуживания (ТО) кранов. Регламент ТО и содержание регламентных работ. Характерные неисправности кранов и способы их устранения. Методика технического диагностирования ТПА. Работы, выполняемые при проведении текущего и среднего ремонтов кранов. Правила безопасной эксплуатации ТПА на ЛЧ МГ. Практические навыки, получаемые слушателями по окончании обучения: проведение регламентных работ по ТО кранов; поиск неисправностей кранов и их устранение в процессе эксплуатации. | J54: 22 | K54: 0 | L54: 22 | M54: 40 | N54: 0 | O54: 40 | P54: Заочная | Q54: Электронное | R54: ЭО | S54: Обучение проводится на мультипортальной платформе дистанционного обучения «СНФПО Онлайн» | T54: 6100.00 | U54: 0.00 | V54: 19.013 B: | W54: 19.013: Специалист по эксплуатации компрессорных станций и станций охлаждения газа газовой отрасли | Y54: 50031404 | AA54: =T54/M54 -> 152.50
A55: 22 | B55: 26 | C55: 04: Транспортировка газа | D55: 01: Эксплуатация, диагностика, противокоррозионная защита, ремонт оборудования и техники транспортировки газа, газового конденсата и нефти | E55: Противокоррозионная защита линейной части и запорной арматуры магистральных газопроводов, газопроводов компрессорных, газораспределительных станций | F55: Специалисты профильных подразделений | G55: повышение квалификации | H55: 03 0401 039: Устройство и эксплуатация оборудования электрохимической защиты производства ООО «НПО «Нефтегазкомплекс-ЭХЗ» | I55: Устройство, функциональные возможности, подключение, настройка, устранение неисправностей, техническое обслуживание станции катодной защиты НГК-ИПКЗ. Многоканальная станция катодной защиты НГК-ИПКЗ(5Н). Станция катодной защиты НГК-ИПКЗ – Евро. Многоканальные станции катодной защиты НГК-ИПКЗ –Евро. Комплекс модульного оборудования НГК-ИПКЗ-Евро. Станция дренажной защиты НГК-СДЗ. Контрольно-измерительные пункты с блоками измерений и индикаторами коррозионных процессов КИП С (ИКП), КИП СМ (ИКП). Система коррозионного мониторинга НГК-СКМ. Перспективные направления и разработки ООО «НПО «Нефтегазкомплекс-ЭХЗ». Практические навыки, получаемые слушателями по окончании обучения: организация технического обслуживания и ремонта оборудования электрохимической защиты производства ООО «НПО «Нефтегазкомплекс-ЭХЗ». Обучение проводится на базе ООО «НПО «Нефтегазкомплекс-ЭХЗ» в г. Энгельсе, Саратовская обл. | J55: 5 | K55: 5 | L55: 0 | M55: 40 | N55: 40 | O55: 0 | P55: Очная | Q55: Обычное | R55: АУД | T55: 83500.00 | U55: 5000.00 | V55: 40.022 B: | W55: 40.022: Работник по электрохимической защите от коррозии линейных сооружений и объектов | Y55: 50031390 | Z55: =T55/M55 -> 2087.50
A56: 23 | B56: 27 | C56: 04: Транспортировка газа | D56: 01: Эксплуатация, диагностика, противокоррозионная защита, ремонт оборудования и техники транспортировки газа, газового конденсата и нефти | E56: Эксплуатация линейной части и запорной арматуры магистральных газопроводов | F56: Руководители и специалисты профильных подразделений | G56: профессиональная переподготовка | H56: 03 0401 040 ПМ: Техническая диагностика линейной части магистрального газопровода (3- модульная годичная программа профессиональной переподготовки)Модуль 1. Основы технического диагностирования | I56: Теоретические основы рабочих процессов в объектах диагностирования. Отраслевая система диагностического обслуживания магистральных газопроводов. Организация технического диагностирования линейной части магистрального газопровода (ЛЧ МГ). Система диагностирования ЛЧ МГ и состав работ. Методы диагностирования ЛЧ МГ. Техническое диагностирование противокоррозионной защиты и коррозионного состояния ЛЧ МГ. Охрана труда и промышленная безопасность. Практические навыки, получаемые слушателями по окончании обучения: работа с диагностическим оборудованием, определение и использование методов диагностирования ЛЧ МГ. Обучение проводится на базе РГУ им. И. Губкина в г. Москве. | J56: 12 | K56: 10 | L56: 2 | M56: 72 | N56: 72 | O56: 0 | P56: Очная | Q56: Обычное | R56: АУД | T56: 82500.00 | U56: 6000.00 | V56: 19.016 E: | W56: 19.016: Специалист по диагностике трубопроводов и технологического оборудования газовой отрасли | Y56: 50031403 | Z56: =T56/M56 -> 1145.83
V57: 19.016 G: | W57: 19.016: Специалист по диагностике трубопроводов и технологического оборудования газовой отрасли
V58: 19.016 I: | W58: 19.016: Специалист по диагностике трубопроводов и технологического оборудования газовой отрасли
V59: 19.016 J: | W59: 19.016: Специалист по диагностике трубопроводов и технологического оборудования газовой отрасли
A60: 24 | B60: 28 | C60: 04: Транспортировка газа | D60: 01: Эксплуатация, диагностика, противокоррозионная защита, ремонт оборудования и техники транспортировки газа, газового конденсата и нефти | E60: Эксплуатация линейной части и запорной арматуры магистральных газопроводов | F60: Руководители и специалисты профильных подразделений | G60: профессиональная переподготовка | H60: 03 0401 040 ПМ: Техническая диагностика линейной части магистрального газопровода (3- модульная годичная программа профессиональной переподготовки)Модуль 2. Внутритрубная дефектоскопия | I60: Требования к ЛЧ МГ и техническим средствам при проведении внутритрубной дефектоскопии. Проведение диагностирования участка ЛЧ МГ. Внутритрубные инспекционные снаряды. Камеры запуска и приема диагностических снарядов. Анализ результатов внутритрубной дефектоскопии. Формирование отчетной документации по результатам внутритрубной дефектоскопии. Охрана труда и промышленная безопасность на предприятиях ПАО «Газпром». Практические навыки, получаемые слушателями по окончании обучения: работа с диагностическим оборудованием, проведение диагностирования участка магистрального газопровода с использованием средств внутритрубной диагностики. Обучение проводится в Челябинском отделении УПЦ ООО «Газпром трансгаз Екатеринбург». | J60: 5 | K60: 5 | L60: 0 | M60: 40 | N60: 40 | O60: 0 | P60: Очная | Q60: Обычное | R60: АУД | S60: Проживание: г. Челябинск, Троицкий тракт, 80 (общежитие УПЦ). | T60: 42200.00 | U60: 5000.00 | V60: 19.016 D: | W60: 19.016: Специалист по диагностике трубопроводов и технологического оборудования газовой отрасли | Y60: 50031402 | Z60: =T60/M60 -> 1055.00
A61: 25 | B61: 29 | C61: 04: Транспортировка газа | D61: 01: Эксплуатация, диагностика, противокоррозионная защита, ремонт оборудования и техники транспортировки газа, газового конденсата и нефти | E61: Эксплуатация линейной части и запорной арматуры магистральных газопроводов | F61: Руководители и специалисты профильных подразделений | G61: профессиональная переподготовка | H61: 03 0401 040 ПМ: Техническая диагностика линейной части магистрального газопровода (3- модульная годичная программа профессиональной переподготовки)Модуль 3. Методы и средства неразрушающего контроля. Контроль напряженно-деформированного состояния магистральных газопроводов | I61: Общая характеристика методов и средств неразрушающего контроля. Визуальный и измерительный контроль. Вихретоковый контроль. Ультразвуковой контроль. Акусто-эмиссионный контроль. Магнитопорошковый контроль. Капиллярный контроль. Радиационный неразрушающий контроль. Физические основы и сравнительный анализ методов и средств измерения напряженно-деформированного состояния (НДС) трубопроводов. Технология проведения измерения НДС магнитошумовыми, ультразвуковыми и тензометрическими методами. Мониторинг НДС стационарными системами. Критерии оценки НДС. В процессе обучения используются учебно-методические пособия, тренажеры и обучающиеся системы, разработанные в ОНУТЦ. Практические навыки, получаемые слушателями по окончании обучения: работа с диагностическим оборудованием, обработка полученной информации и выработка заключения о техническом состоянии магистрального газопровода по результатам визуального, измерительного контроля и вихретокового диагностического обследования. | J61: 45 | K61: 10 | L61: 35 | M61: 144 | N61: 72 | O61: 72 | P61: Очно-заочная | Q61: Обычное | R61: АУД/ЭО | T61: 59800.00 | U61: 6000.00 | V61: 19.016 E: | W61: 19.016: Специалист по диагностике трубопроводов и технологического оборудования газовой отрасли | Y61: 50031401 | Z61: =T61/M61 -> 415.28
V62: 19.016 G: | W62: 19.016: Специалист по диагностике трубопроводов и технологического оборудования газовой отрасли
V63: 19.016 I: | W63: 19.016: Специалист по диагностике трубопроводов и технологического оборудования газовой отрасли
A64: 26 | B64: 30 | C64: 04: Транспортировка газа | D64: 01: Эксплуатация, диагностика, противокоррозионная защита, ремонт оборудования и техники транспортировки газа, газового конденсата и нефти | E64: Техническая диагностика и ремонт основного и вспомогательного оборудования компрессорных станций | F64: Руководители и специалисты профильных подразделений | G64: повышение квалификации | H64: 03 0401 041: Вибрационный контроль и диагностика газотранспортного оборудования | I64: Физические основы виброконтроля и диагностики; методы и средства обработки вибросигналов; временные, спектральные и интегральные представления параметров вибрации; контроль технического состояния газотранспортного оборудования (ГТО) по параметрам вибрации; нормирование вибрации ГТО; охрана труда и промышленная безопасность. Практические навыки, получаемые слушателями по окончании обучения: контроль проведения вибрационного диагностирования ГТО, оценка вибрационного состояния ГТО. | J64: 12 | K64: 10 | L64: 2 | M64: 72 | N64: 72 | O64: 0 | P64: Очная | Q64: Обычное | R64: АУД | T64: 59800.00 | U64: 6000.00 | V64: 19.026 A: | W64: 19.026: Специалист по техническому контролю и диагностированию объектов и сооружений нефтегазового комплекса | Y64: 50033264 | Z64: =T64/M64 -> 830.56
V65: 19.026 B: | W65: 19.026: Специалист по техническому контролю и диагностированию объектов и сооружений нефтегазового комплекса
A66: 27 | B66: 31 | C66: 04: Транспортировка газа | D66: 01: Эксплуатация, диагностика, противокоррозионная защита, ремонт оборудования и техники транспортировки газа, газового конденсата и нефти | E66: Техническая диагностика и ремонт основного и вспомогательного оборудования компрессорных станций | F66: Руководители и специалисты профильных подразделений | G66: повышение квалификации | H66: 03 0401 042: Организация технической диагностики газотранспортного оборудования | I66: Условия работы и возникновение неисправностей газотранспортного оборудования (ГТО). Структура отраслевой системы диагностического обслуживания. Визуальный и измерительный контроль качества сварных соединений. Методы и средства виброакустической диагностики. Методы и средства неразрушающего контроля ГТО. Экспертиза промышленной безопасности и оценка остаточного ресурса ГТО. Практические навыки, получаемые слушателями по окончании обучения: контроль проведения диагностирования ГТО, применение диагностического оборудования для технического диагностирования ГТО методами неразрушающего контроля | J66: 26 | K66: 5 | L66: 21 | M66: 72 | N66: 40 | O66: 32 | P66: Очно-заочная | Q66: Обычное | R66: АУД/ЭО | T66: 32000.00 | U66: 6000.00 | V66: 19.026 A: | W66: 19.026: Специалист по техническому контролю и диагностированию объектов и сооружений нефтегазового комплекса | Y66: 50033266 | Z66: =T66/M66 -> 444.44
V67: 19.026 B: | W67: 19.026: Специалист по техническому контролю и диагностированию объектов и сооружений нефтегазового комплекса
V68: 19.026 C: | W68: 19.026: Специалист по техническому контролю и диагностированию объектов и сооружений нефтегазового комплекса
A69: 28 | B69: 32 | C69: 04: Транспортировка газа | D69: 01: Эксплуатация, диагностика, противокоррозионная защита, ремонт оборудования и техники транспортировки газа, газового конденсата и нефти | E69: Техническая диагностика и ремонт основного и вспомогательного оборудования компрессорных станций | F69: Руководители и специалисты профильных подразделений | G69: повышение квалификации | H69: 03 0401 043: Техническое диагностирование газотранспортного оборудования методами неразрушающего контроля | I69: Условия работы и возникновение неисправностей газотранспортного оборудования (ГТО). Основные понятия технической диагностики. Структура отраслевой системы диагностического обслуживания. Методы и средства неразрушающего контроля ГТО. Экспертиза промышленной безопасности и оценка остаточного ресурса ГТО. Практические навыки, получаемые слушателями по окончании обучения: применение диагностического оборудования для технического диагностирования ГТО методами неразрушающего контроля, контроль проведения диагностирования ГТО | J69: 26 | K69: 5 | L69: 21 | M69: 72 | N69: 40 | O69: 32 | P69: Очно-заочная | Q69: Обычное | R69: АУД/ЭО | T69: 32000.00 | U69: 6000.00 | V69: 19.026 A: | W69: 19.026: Специалист по техническому контролю и диагностированию объектов и сооружений нефтегазового комплекса | Y69: 50033265 | Z69: =T69/M69 -> 444.44
V70: 19.026 B: | W70: 19.026: Специалист по техническому контролю и диагностированию объектов и сооружений нефтегазового комплекса
A71: 29 | B71: 33 | C71: 04: Транспортировка газа | D71: 01: Эксплуатация, диагностика, противокоррозионная защита, ремонт оборудования и техники транспортировки газа, газового конденсата и нефти | E71: Техническая диагностика и ремонт линейной части и запорной арматуры магистральных газопроводов | F71: Руководители и специалисты профильных подразделений | G71: повышение квалификации | H71: 03 0401 044 Э: Обслуживание и диагностика линейной части магистрального газопровода. Очистные поршни | I71: Общие сведения о работах по очистке полости газопровода. Технические характеристики и устройство очистных поршней и поршней-разделителей. Узлы пуска и приема очистных поршней. Средства контроля и сигнализации за прохождением очистных поршней. Сбор и утилизация загрязнений и конденсата, выносимых из полости газопровода. Меры безопасности при выполнении работ по пропуску очистного устройства. Практические навыки, получаемые слушателями по окончании обучения: изучение характеристик и устройства очистных поршней, а также оборудования для их запуска, приема, контроля прохождения и сбора выносимых загрязнений. | J71: 15 | K71: 0 | L71: 15 | M71: 24 | N71: 0 | O71: 24 | P71: Заочная | Q71: Электронное | R71: ЭО | S71: Обучение проводится на мультипортальной платформе дистанционного обучения «СНФПО Онлайн» | T71: 6100.00 | U71: 0.00 | V71: 19.016 E: | W71: 19.016: Специалист по диагностике трубопроводов и технологического оборудования газовой отрасли | Y71: 50033260 | AA71: =T71/M71 -> 254.17
A72: 30 | B72: 34 | C72: 04: Транспортировка газа | D72: 01: Эксплуатация, диагностика, противокоррозионная защита, ремонт оборудования и техники транспортировки газа, газового конденсата и нефти | E72: Техническая диагностика и ремонт линейной части и запорной арматуры магистральных газопроводов | F72: Руководители и специалисты профильных подразделений | G72: повышение квалификации | H72: 03 0401 045 Э: Эксплуатация и ремонт линейной части магистральных газопроводов | I72: Общие сведения о магистральных газопроводах. Технические требования к трубам и соединительным деталям трубопроводов. Способы прокладки МГ. Переходы через естественные и искусственные преграды. Техническое обслуживание ЛЧ МГ. Ремонт ЛЧ МГ. Диагностирование газопроводов. Требования охраны труда при эксплуатации и ремонте ЛЧ МГ. Практические навыки, получаемые слушателями по окончании обучения: проведение технического обслуживания и ремонта ЛЧ МГ; методы и средства диагностирования газопроводов. | J72: 22 | K72: 0 | L72: 22 | M72: 40 | N72: 0 | O72: 40 | P72: Заочная | Q72: Электронное | R72: ЭО | S72: Обучение проводится на мультипортальной платформе дистанционного обучения «СНФПО Онлайн» | T72: 6100.00 | U72: 0.00 | V72: 19.016 A: | W72: 19.016: Специалист по диагностике трубопроводов и технологического оборудования газовой отрасли | Y72: 50033259 | AA72: =T72/M72 -> 152.50
A73: 31 | B73: 35 | C73: 04: Транспортировка газа | D73: 01: Эксплуатация, диагностика, противокоррозионная защита, ремонт оборудования и техники транспортировки газа, газового конденсата и нефти | E73: Техническая диагностика и ремонт линейной части и запорной арматуры магистральных газопроводов | F73: Руководители и специалисты профильных подразделений | G73: повышение квалификации | H73: 03 0401 046 В: Анализ результатов технического диагностирования объектов газовой промышленности | I73: Организация технического диагностирования объектов ПАО «Газпром». Основные методы неразрушающего контроля. Виды диагностических обследований и технические средства, применяемые при их проведении. Способы технического диагностирования участков линейной части газопроводов. Технологические особенности технического диагностирования объектов линейной части газопроводов. Охрана труда и промышленная безопасность при проведении технического диагностирования. Основы экологии и экологической безопасности. Практические навыки, получаемые слушателями по окончании обучения: техническое диагностирование участков линейной части газопроводов в шурфах, оценка технического состояния объектов линейной части газопроводов, оформление отчета по результатам технического диагностирования. | J73: 26 | K73: 5 | L73: 21 | M73: 72 | N73: 40 | O73: 32 | P73: Очно-заочная | Q73: Выездное | R73: АУД/ЭО | S73: Программа целевого (опережающего) обучения. | T73: 67200.00 | U73: 0.00 | V73: 19.026 B: | W73: 19.026: Специалист по техническому контролю и диагностированию объектов и сооружений нефтегазового комплекса | Y73: 50044613 | Z73: =T73/M73 -> 933.33
V74: 19.026 C: | W74: 19.026: Специалист по техническому контролю и диагностированию объектов и сооружений нефтегазового комплекса
A75: 32 | B75: 36 | C75: 04: Транспортировка газа | D75: 01: Эксплуатация, диагностика, противокоррозионная защита, ремонт оборудования и техники транспортировки газа, газового конденсата и нефти | E75: Техническая диагностика и ремонт линейной части и запорной арматуры магистральных газопроводов | F75: Руководители и специалисты профильных подразделений | G75: повышение квалификации | H75: 03 0401 046: Анализ результатов технического диагностирования объектов газовой промышленности | I75: Организация технического диагностирования объектов ПАО «Газпром». Основные методы неразрушающего контроля. Виды диагностических обследований и технические средства, применяемые при их проведении. Способы технического диагностирования участков линейной части газопроводов. Технологические особенности технического диагностирования объектов линейной части газопроводов. Охрана труда и промышленная безопасность при проведении технического диагностирования. Основы экологии и экологической безопасности. Практические навыки, получаемые слушателями по окончании обучения: техническое диагностирование участков линейной части газопроводов в шурфах, оценка технического состояния объектов линейной части газопроводов, оформление отчета по результатам технического диагностирования. | J75: 12 | K75: 10 | L75: 2 | M75: 72 | N75: 72 | O75: 0 | P75: Очная | Q75: Обычное | R75: АУД | S75: Программа целевого (опережающего) обучения. | T75: 67200.00 | U75: 6000.00 | V75: 19.026 B: | W75: 19.026: Специалист по техническому контролю и диагностированию объектов и сооружений нефтегазового комплекса | Y75: 50033258 | Z75: =T75/M75 -> 933.33
V76: 19.026 C: | W76: 19.026: Специалист по техническому контролю и диагностированию объектов и сооружений нефтегазового комплекса
A77: 34 | B77: 37 | C77: 04: Транспортировка газа | D77: 01: Эксплуатация, диагностика, противокоррозионная защита, ремонт оборудования и техники транспортировки газа, газового конденсата и нефти | E77: Эксплуатация линейной части и запорной арматуры магистральных газопроводов | F77: Руководители и специалисты профильных подразделений | G77: повышение квалификации | H77: 03 0401 047: Анализ результатов внутритрубной дефектоскопии объектов ПАО «Газпром» | I77: Основы магнитного и электромагнитно-акустического методов неразрушающего контроля; технические средства, применяемые при внутритрубной дефектоскопии; данные, получаемые со снарядов-дефектоскопов и технология их обработки; программные средства для просмотра результатов внутритрубной дефектоскопии. Практические навыки, получаемые слушателями по окончании обучения: анализ данных внутритрубной дефектоскопии; оформление отчета по результатам внутритрубной дефектоскопии; охрана труда и промышленная безопасность при проведении внутритрубной дефектоскопии. | J77: 26 | K77: 5 | L77: 21 | M77: 72 | N77: 40 | O77: 32 | P77: Очно-заочная | Q77: Обычное | R77: АУД/ЭО | T77: 67200.00 | U77: 6000.00 | V77: 19.016 D: | W77: 19.016: Специалист по диагностике трубопроводов и технологического оборудования газовой отрасли | Y77: 50035911 | Z77: =T77/M77 -> 933.33
V78: 19.016 I: | W78: 19.016: Специалист по диагностике трубопроводов и технологического оборудования газовой отрасли
A79: 35 | B79: 38 | C79: 04: Транспортировка газа | D79: 01: Эксплуатация, диагностика, противокоррозионная защита, ремонт оборудования и техники транспортировки газа, газового конденсата и нефти | E79: Эксплуатация линейной части и запорной арматуры магистральных газопроводов | F79: Руководители и специалисты профильных подразделений | G79: профессиональная переподготовка | H79: 03 0401 050 ПМ: Организация эксплуатации газораспределительных станций (3-модульная годичная программа профессиональной переподготовки)Модуль 1. Обеспечение эксплуатации газораспределительных станций | I79: Теоретические основы организации эксплуатации газораспределительных станций (ГРС). Ведение документации по эксплуатации ГРС. Формирование отчетности по эксплуатации ГРС. Обеспечение заданного режима работы ГРС. Обеспечение выполнения работ по ТОиР, ДО оборудования ГРС. Ведение документации по сопровождению ТОиР, ДО оборудования ГРС. Охрана труда и промышленная безопасность. Основы экологии и экологической безопасности. Практические навыки, получаемые слушателями по окончании обучения: формирование отчетности в области эксплуатации ГРС, определение причин изменения и отклонения от нормативных (допустимых) величин эксплуатационных параметров оборудования ГРС, планирование работы эксплуатационного персонала. Обучение проводится в г. Москве на базе РГУ им. И.М. Губкина. | J79: 12 | K79: 10 | L79: 2 | M79: 72 | N79: 72 | O79: 0 | P79: Очная | Q79: Обычное | R79: АУД | T79: 82100.00 | U79: 6000.00 | V79: 19.029 A: | W79: 19.029: Специалист по эксплуатации технологического оборудования газораспределительных станций, отдельно стоящих газорегуляторных пунктов, узлов учета и редуцирования газа | Y79: 50035908 | Z79: =T79/M79 -> 1140.28
V80: 19.029 B: | W80: 19.029: Специалист по эксплуатации технологического оборудования газораспределительных станций, отдельно стоящих газорегуляторных пунктов, узлов учета и редуцирования газа
A81: 36 | B81: 39 | C81: 04: Транспортировка газа | D81: 01: Эксплуатация, диагностика, противокоррозионная защита, ремонт оборудования и техники транспортировки газа, газового конденсата и нефти | E81: Эксплуатация линейной части и запорной арматуры магистральных газопроводов | F81: Руководители и специалисты профильных подразделений | G81: профессиональная переподготовка | H81: 03 0401 050 ПМ: Организация эксплуатации газораспределительных станций (3-модульная годичная программа профессиональной переподготовки)Модуль 2. Организация работ по эксплуатации газораспределительных станций | I81: Организация производственного процесса эксплуатации ГРС. Повышение надежности и эффективности эксплуатации оборудования ГРС. Организация ТОиР, ДО оборудования ГРС. Руководство работниками подразделения по эксплуатации ГРС. Охрана труда и промышленная безопасность на предприятиях ПАО «Газпром». Практические навыки, получаемые слушателями по окончании обучения: организация и контроль работы ГРС, разработка годовых и текущих планов работ подразделения по эксплуатации ГРС, определение объемов работ ТОиР, ДО оборудования ГРС. Обучение проводится в Челябинском отделении УПЦ ООО "Газпром трансгаз Екатеринбург". | J81: 5 | K81: 5 | L81: 0 | M81: 40 | N81: 40 | O81: 0 | P81: Очная | Q81: Обычное | R81: АУД | T81: 59800.00 | U81: 5000.00 | V81: 19.029 D: | W81: 19.029: Специалист по эксплуатации технологического оборудования газораспределительных станций, отдельно стоящих газорегуляторных пунктов, узлов учета и редуцирования газа | Y81: 50035907 | Z81: =T81/M81 -> 1495.00
A82: 37 | B82: 40 | C82: 04: Транспортировка газа | D82: 01: Эксплуатация, диагностика, противокоррозионная защита, ремонт оборудования и техники транспортировки газа, газового конденсата и нефти | E82: Эксплуатация линейной части и запорной арматуры магистральных газопроводов | F82: Руководители и специалисты профильных подразделений | G82: профессиональная переподготовка | H82: 03 0401 050 ПМ: Организация эксплуатации газораспределительных станций (3-модульная годичная программа профессиональной переподготовки)Модуль 3. Организационно-техническое сопровождение эксплуатации газораспределительных станций | I82: Технические требования к эксплуатации ГРС. Контроль выполнения производственных показателей подразделениями по эксплуатации ГРС. Организационно-техническое обеспечение ТОиР, ДО оборудования ГРС. Разработка и внедрение предложений по эффективному и перспективному развитию эксплуатации ГРС. Руководство организацией эксплуатации ГРС. Руководство работами по повышению эффективности эксплуатации ГРС. Организация мероприятий в рамках нового строительства и технического перевооружения ГРС. Охрана труда и промышленная безопасность. Практические навыки, получаемые слушателями по окончании обучения: ведение учета наличия и состояния оборудования ГРС; проведение проверок технического состояния, эксплуатации и ремонта оборудования ГРС. | J82: 45 | K82: 10 | L82: 35 | M82: 144 | N82: 72 | O82: 72 | P82: Очно-заочная | Q82: Обычное | R82: АУД/ЭО | T82: 59800.00 | U82: 6000.00 | V82: 19.029 C: | W82: 19.029: Специалист по эксплуатации технологического оборудования газораспределительных станций, отдельно стоящих газорегуляторных пунктов, узлов учета и редуцирования газа | Y82: 50035906 | Z82: =T82/M82 -> 415.28
V83: 19.029 E: | W83: 19.029: Специалист по эксплуатации технологического оборудования газораспределительных станций, отдельно стоящих газорегуляторных пунктов, узлов учета и редуцирования газа
A84: 38 | B84: 41 | C84: 04: Транспортировка газа | D84: 01: Эксплуатация, диагностика, противокоррозионная защита, ремонт оборудования и техники транспортировки газа, газового конденсата и нефти | E84: Техническая диагностика и ремонт линейной части и запорной арматуры магистральных газопроводов | F84: Руководители и специалисты профильных подразделений | G84: повышение квалификации | H84: 03 0401 051 Э: Внутритрубные методы диагностики | I84: Требования к диагностическому оборудованию; требования к диагностируемому участку газопровода; дефекты магистральных газопроводов; физические основы методов внутритрубной дефектоскопии; приборы магнитной и ультразвуковой дефектоскопии; профилеметрия трубопроводов; камеры приема и запуска внутритрубных устройств; очистка газопровода перед внутритрубной дефектоскопией; организация и проведение внутритрубной дефектоскопии. Отдельный раздел посвящен безопасности при проведении работ по внутритрубному диагностированию. В данном разделе рассматриваются требования безопасности при газоопасных работах, а также меры безопасности при работе с блок-камерами запуска и приема ВТУ. Электронный курс содержит рисунки, графики, таблицы, 3D-анимацию процесса запуска и приема внутритрубного устройства c аудиосопровождением. Практические навыки, получаемые слушателями по окончании обучения: организация и проведение внутритрубной диагностики. | J84: 15 | K84: 0 | L84: 15 | M84: 24 | N84: 0 | O84: 24 | P84: Заочная | Q84: Электронное | R84: ЭО | S84: Обучение проводится на мультипортальной платформе дистанционного обучения «СНФПО Онлайн» | T84: 6100.00 | U84: 0.00 | V84: 19.016 D: | W84: 19.016: Специалист по диагностике трубопроводов и технологического оборудования газовой отрасли | Y84: 50035897 | AA84: =T84/M84 -> 254.17
A85: 39 | B85: 42 | C85: 04: Транспортировка газа | D85: 01: Эксплуатация, диагностика, противокоррозионная защита, ремонт оборудования и техники транспортировки газа, газового конденсата и нефти | E85: Эксплуатация основного и вспомогательного оборудования компрессорных станций | F85: Руководители и специалисты профильных подразделений | G85: повышение квалификации | H85: 03 0401 052 Э: Регулирующая арматура компрессорных станций | I85: Вид, классификация и использование регулирующей арматуры на КС; устройство и принцип работы регуляторов давления прямого и непрямого действия, а также регуляторов давления РДУ-80-01, РДЭ, BFL с отсекателем и MFL с монитором; устройство и принцип работы регулирующих клапанов (односедельных, двухседельных, клеточных), а также антипомпажного регулирующего клапана фирмы Mokveld; возможные неисправности регулирующей арматуры и методы их устранения; техническое обслуживание и ремонт регулирующей арматуры; требования охраны труда при эксплуатации, техническом обслуживании и ремонте регулирующей арматуры. Теоретический материал содержит фотографии, рисунки, принципиальные схемы изучаемого оборудования, 3d-модель антипомпажного регулирующего клапана фирмы Mokveld, 3d-анимацию принципа работы регулятора давления газа серии FL. Практические навыки, получаемые слушателями по окончании обучения: проведение технического обслуживания и ремонта регулирующей арматуры КС. | J85: 15 | K85: 0 | L85: 15 | M85: 24 | N85: 0 | O85: 24 | P85: Заочная | Q85: Электронное | R85: ЭО | S85: Обучение проводится на мультипортальной платформе дистанционного обучения «СНФПО Онлайн» | T85: 6100.00 | U85: 0.00 | V85: 19.013 B: | W85: 19.013: Специалист по эксплуатации компрессорных станций и станций охлаждения газа газовой отрасли | Y85: 50035913 | AA85: 254.17
A86: 40 | B86: 43 | C86: 04: Транспортировка газа | D86: 01: Эксплуатация, диагностика, противокоррозионная защита, ремонт оборудования и техники транспортировки газа, газового конденсата и нефти | E86: Эксплуатация основного и вспомогательного оборудования компрессорных станций | F86: Руководители и специалисты профильных подразделений | G86: повышение квалификации | H86: 03 0401 053 Э: Запорная арматура компрессорных станций | I86: Классификация трубопроводной арматуры; классификация запорной арматуры; основные параметры и условные обозначения запорной арматуры; назначение, принцип действия, классификацию и конструктивные особенности шаровых кранов, задвижек, клапанов; приводы шаровых кранов; технические требования к монтажу запорной арматуры; испытания запорной арматуры; техническое обслуживание и ремонт запорной арматуры; набивочные устройства; диагностирование запорной арматуры; неисправности запорной арматуры; охрану труда при эксплуатации запорной арматуры; требования безопасности перед началом, во время, в аварийных ситуациях и по окончанию работ по обслуживанию и ремонту запорной арматуры. В курсе описаны конструкции шаровых кранов, задвижек и клапанов разных фирм-производителей; конструкции ручных, электрических, пневматических, пневмогидравлических и электрогидравлических приводов, конструкции набивочных устройств. Практические навыки, получаемые слушателями по окончании обучения: проведение технического обслуживания и ремонта запорной арматуры КС. | J86: 22 | K86: 0 | L86: 22 | M86: 40 | N86: 0 | O86: 40 | P86: Заочная | Q86: Электронное | R86: ЭО | S86: Обучение проводится на мультипортальной платформе дистанционного обучения «СНФПО Онлайн» | T86: 6100.00 | U86: 0.00 | V86: 19.013 B: | W86: 19.013: Специалист по эксплуатации компрессорных станций и станций охлаждения газа газовой отрасли | Y86: 50035916 | AA86: 152.50
A87: 41 | B87: 44 | C87: 04: Транспортировка газа | D87: 01: Эксплуатация, диагностика, противокоррозионная защита, ремонт оборудования и техники транспортировки газа, газового конденсата и нефти | E87: Эксплуатация основного и вспомогательного оборудования компрессорных станций | F87: Руководители и специалисты профильных подразделений | G87: повышение квалификации | H87: 03 0401 054 Э: Обслуживание газотурбинного двигателя ДГ90Л2.1 агрегата ГПА-Ц1-16С | I87: Регламент технического обслуживания (ТО) газотурбинного двигателя (ГТД), ТО его узлов, регулирование систем и порядок замена основных узлов и агрегатов ГТД, меры безопасности при проведении ТО. Практические навыки, получаемые слушателями по окончании обучения: проведение технического обслуживания газотурбинного двигателя ДГ90Л2.1 агрегата ГПА-Ц1-16С. | J87: 22 | K87: 0 | L87: 22 | M87: 40 | N87: 0 | O87: 40 | P87: Заочная | Q87: Электронное | R87: ЭО | S87: Обучение проводится на мультипортальной платформе дистанционного обучения «СНФПО Онлайн» | T87: 6100.00 | U87: 0.00 | V87: 19.013 B: | W87: 19.013: Специалист по эксплуатации компрессорных станций и станций охлаждения газа газовой отрасли | Y87: 50035914 | AA87: 152.50
A88: 42 | B88: 45 | C88: 04: Транспортировка газа | D88: 01: Эксплуатация, диагностика, противокоррозионная защита, ремонт оборудования и техники транспортировки газа, газового конденсата и нефти | E88: Противокоррозионная защита линейной части и запорной арматуры магистральных газопроводов, газопроводов компрессорных, газораспределительных станций | F88: Руководители и специалисты профильных подразделений | G88: повышение квалификации | H88: 03 0401 055 Э: Противокоррозионная защита газопроводов | I88: Классификация коррозионных процессов, виды коррозионных разрушений; первопричина и движущая сила коррозии; методы измерений в зоне действия блуждающих токов; катодная поляризация, критерии электрохимической защиты; схемы соединений катодной станции, катодные преобразователи; общие сведения о протекторной защите, конструкция протекторов, схема протекторной защиты; общие сведения об электродренажной защите, схемы дренажных установок; виды изоляционных материалов. Практические навыки, получаемые слушателями по окончании обучения: проведение мероприятий по противокоррозионной защите газопроводов. | J88: 15 | K88: 0 | L88: 15 | M88: 24 | N88: 0 | O88: 24 | P88: Заочная | Q88: Электронное | R88: ЭО | S88: Обучение проводится на мультипортальной платформе дистанционного обучения «СНФПО Онлайн» | T88: 6100.00 | U88: 0.00 | V88: 40.022 A: | W88: 40.022: Работник по электрохимической защите от коррозии линейных сооружений и объектов | Y88: 50035896 | AA88: 254.17
A89: 43 | B89: 46 | C89: 04: Транспортировка газа | D89: 01: Эксплуатация, диагностика, противокоррозионная защита, ремонт оборудования и техники транспортировки газа, газового конденсата и нефти | E89: Эксплуатация основного и вспомогательного оборудования компрессорных станций | F89: Руководители и специалисты профильных подразделений | G89: повышение квалификации | H89: 03 0401 056 Э: Устройство и обслуживание агрегата ГПА-Ц-16 | I89: Электронный курс предназначен для обучения, самоподготовки и проверки знаний специалистов газотранспортных предприятий. ИОС разработана в соответствии с учебным планом и программами повышения квалификации специалистов по курсу: «Эксплуатация и ремонт оборудования компрессорных станций с ГПА-Ц-16». В процессе использования электронного курса можно получить общие сведения о ГПА-Ц-16, об узлах и системах ГПА, изучить режимы работы ГПА, его характеристики, а также работу системы автоматического управления ГПА. Рассмотрены: газотурбинный двигатель НК-16СТ, система автоматического управления ГПА - САУ. Практические навыки, получаемые слушателями по окончании обучения: проведение технического обслуживания агрегата ГПА-Ц-16. | J89: 22 | K89: 0 | L89: 22 | M89: 40 | N89: 0 | O89: 40 | P89: Заочная | Q89: Электронное | R89: ЭО | S89: Обучение проводится на мультипортальной платформе дистанционного обучения «СНФПО Онлайн» | T89: 6100.00 | U89: 0.00 | V89: 19.013 B: | W89: 19.013: Специалист по эксплуатации компрессорных станций и станций охлаждения газа газовой отрасли | Y89: 50035912 | AA89: 152.50
A90: 44 | B90: 47 | C90: 04: Транспортировка газа | D90: 01: Эксплуатация, диагностика, противокоррозионная защита, ремонт оборудования и техники транспортировки газа, газового конденсата и нефти | E90: Эксплуатация линейной части и запорной арматуры магистральных газопроводов | F90: Руководители и специалисты профильных подразделений | G90: повышение квалификации | H90: 03 0401 057: Эксплуатация основного технологического оборудования ГРС типа «ИСТОК» | I90: Регуляторы давления «ЛОРД». Фильтры встроенные двухступенчатые (ФВД). Блок одоризации «ИСТОК». Клапаны предохранительные «ИСТОК» импульсного типа. Подогреватели газа. Автоматическая газораспределительная станция АГРС «ИСТОК» нового поколения. Средства КИПиА. Практические навыки, получаемые слушателями по окончании обучения: сборка, разборка и настройка оборудования производства «НПП «Авиагаз-Союз+». Обучение проводится в г. Казани на базе ООО «НПП «Авиагаз-Союз+». | J90: 5 | K90: 5 | L90: 0 | M90: 40 | N90: 40 | O90: 0 | P90: Очная | Q90: Обычное | R90: АУД | S90: Программа целевого (опережающего) обучения. | T90: 109100.00 | U90: 6000.00 | V90: 19.029 B: | W90: 19.029: Специалист по эксплуатации технологического оборудования газораспределительных станций, отдельно стоящих газорегуляторных пунктов, узлов учета и редуцирования газа | Y90: 50035903 | Z90: =T90/M90 -> 2727.50
A91: 45 | B91: 48 | C91: 04: Транспортировка газа | D91: 01: Эксплуатация, диагностика, противокоррозионная защита, ремонт оборудования и техники транспортировки газа, газового конденсата и нефти | E91: Эксплуатация основного и вспомогательного оборудования компрессорных станций | F91: Специалисты профильных подразделений | G91: повышение квалификации | H91: 03 0401 058 Э: Устройство центробежных нагнетателей с сухими газодинамическими уплотнениями | I91: Назначение и технические характеристики нагнетателя PCL-804-2/36В. Устройство и работа нагнетателя PCL-804-2/36В. Уплотнение вала нагнетателя PCL-804-2/36В. Устройство и принцип работы сухих газодинамических уплотнений типа DGS1/210. Система управления, регулирования и контроля СГДУ нагнетателя РСL-804-2/36В. Система уплотняющего газа для нагнетателя РСL-804-2/36В. Система уплотнительного воздуха для нагнетателя РСL-804-2/36В. Практические навыки, получаемые слушателями по окончании обучения: проведение технического обслуживания центробежных нагнетателей с сухими газодинамическими уплотнениями. | J91: 22 | K91: 0 | L91: 22 | M91: 40 | N91: 0 | O91: 40 | P91: Заочная | Q91: Электронное | R91: ЭО | S91: Обучение проводится на мультипортальной платформе дистанционного обучения «СНФПО Онлайн» | T91: 6100.00 | U91: 0.00 | V91: 19.013 B: | W91: 19.013: Специалист по эксплуатации компрессорных станций и станций охлаждения газа газовой отрасли | Y91: 50035915 | AA91: =T91/M91 -> 152.50
A92: 46 | B92: 49 | C92: 04: Транспортировка газа | D92: 01: Эксплуатация, диагностика, противокоррозионная защита, ремонт оборудования и техники транспортировки газа, газового конденсата и нефти | E92: Эксплуатация линейной части и запорной арматуры магистральных газопроводов | F92: Специалисты профильных подразделений | G92: повышение квалификации | H92: 03 0401 059: Конструкция, диагностика, ремонт трубопроводной арматуры | I92: Конструкция, назначение и типы трубопроводной арматуры (ТПА). Условия эксплуатации ТПА. Диагностика технического состояния ТПА. Техническое обслуживание и ремонт ТПА. Охрана труда и промышленная безопасность. В процессе обучения применяются интерактивные обучающие системы (ИОС), разработанные в ОНУТЦ. Практические навыки, получаемые слушателями по окончании обучения: контроль проведения диагностического обследования ТПА, определение целей и содержания диагностических работ, анализ технических параметров ТПА. Обучение проводится на базе Челябинского отделения Учебно-производственного центра ООО «Газпром трансгаз Екатеринбург». | J92: 5 | K92: 5 | L92: 0 | M92: 40 | N92: 40 | O92: 0 | P92: Очная | Q92: Обычное | R92: АУД | S92: Проживание: г. Челябинск, Троицкий тракт, 80 (общежитие УПЦ) | T92: 59800.00 | U92: 5000.00 | V92: 19.013 B: | W92: 19.013: Специалист по эксплуатации компрессорных станций и станций охлаждения газа газовой отрасли | Y92: 50035904 | Z92: =T92/M92 -> 1495.00
A93: 47 | B93: 50 | C93: 04: Транспортировка газа | D93: 01: Эксплуатация, диагностика, противокоррозионная защита, ремонт оборудования и техники транспортировки газа, газового конденсата и нефти | E93: Эксплуатация линейной части и запорной арматуры магистральных газопроводов | F93: Руководители и специалисты профильных подразделений | G93: повышение квалификации | H93: 03 0401 061: Обеспечение надежного и эффективного функционирования линейной части магистрального газопровода | I93: Надежность систем транспортировки газа, пути ее обеспечения. Техническое обслуживание линейной части МГ. Техническое диагностирование ЛЧ МГ. Контроль напряженно-деформированного состояния ЛЧ МГ. Анализ эффективности работы ЛЧ МГ. Охрана труда и промышленная безопасность. Основы экологии и экологической безопасности. Практические навыки, получаемые слушателями по окончании обучения: контроль технического состояния ЛЧМГ, выявление неисправностей, отказов; технологии контроля напряженно-деформированного состояния ЛЧ МГ; анализ аварий и инцидентов на ЛЧМГ. | J93: 12 | K93: 10 | L93: 2 | M93: 72 | N93: 72 | O93: 0 | P93: Очная | Q93: Обычное | R93: АУД | S93: Программа целевого (опережающего) обучения. | T93: 52500.00 | U93: 6000.00 | V93: 19.010 C: | W93: 19.010: Специалист по эксплуатации трубопроводов газовой отрасли | Y93: 50038049 | Z93: 729.17
A94: 48 | B94: 51 | C94: 04: Транспортировка газа | D94: 01: Эксплуатация, диагностика, противокоррозионная защита, ремонт оборудования и техники транспортировки газа, газового конденсата и нефти | E94: Эксплуатация основного и вспомогательного оборудования компрессорных станций | F94: Руководители и специалисты профильных подразделений | G94: повышение квалификации | H94: 03 0401 062: Эксплуатация оборудования компрессорных станций | I94: Надежность систем транспортировки газа, пути ее обеспечения. Эксплуатация оборудования компрессорных станций (КС). Оценка технического состояния оборудования КС. Новые технологии и материалы, используемые при эксплуатации оборудования КС. Охрана труда и промышленная безопасность. Основы экологии и экологической безопасности. Практические навыки, получаемые слушателями по окончании обучения: организация производственного процесса эксплуатации оборудования КС, оценка остаточного ресурса оборудования КС, оценка опасности производства работ. | J94: 5 | K94: 5 | L94: 0 | M94: 40 | N94: 40 | O94: 0 | P94: Очная | Q94: Обычное | R94: АУД | T94: 32000.00 | U94: 6000.00 | V94: 19.013 B: | W94: 19.013: Специалист по эксплуатации компрессорных станций и станций охлаждения газа газовой отрасли | Y94: 50038076 | Z94: 800.00
A95: 50 | B95: 52 | C95: 04: Транспортировка газа | D95: 01: Эксплуатация, диагностика, противокоррозионная защита, ремонт оборудования и техники транспортировки газа, газового конденсата и нефти | E95: Эксплуатация основного и вспомогательного оборудования компрессорных станций | F95: Руководители и специалисты профильных подразделений | G95: повышение квалификации | H95: 03 0401 064: Конструкция и технология ремонта газоперекачивающего агрегата ГПА-12Р «Урал» | I95: Надежность систем транспортировки газа, пути ее обеспечения. Конструкция и условия работы газоперекачивающего агрегата ГПА-12Р «Урал». Обслуживание агрегата ГПА-12Р «Урал». Технология проведения ремонта ГПА- 12Р «Урал». Охрана труда и промышленная безопасность. Основы экологии и экологической безопасности. Практические навыки, получаемые слушателями по окончании обучения: организация подготовки и проведения ремонта, особенности разборки и сборки агрегата, технология ремонта ГПА-12Р «Урал». Обучение проводится в г. Брянске на базе ЦОК АО «ГСП Ремонт». | J95: 26 | K95: 5 | L95: 21 | M95: 72 | N95: 40 | O95: 32 | P95: Очно-заочная | Q95: Обычное | R95: АУД/ЭО | T95: 99500.00 | U95: 5000.00 | V95: 19.013 B: | W95: 19.013: Специалист по эксплуатации компрессорных станций и станций охлаждения газа газовой отрасли | Y95: 50038077 | Z95: 1381.94
A96: 51 | B96: 53 | C96: 04: Транспортировка газа | D96: 01: Эксплуатация, диагностика, противокоррозионная защита, ремонт оборудования и техники транспортировки газа, газового конденсата и нефти | E96: Эксплуатация основного и вспомогательного оборудования компрессорных станций | F96: Руководители и специалисты профильных подразделений | G96: повышение квалификации | H96: 03 0401 065: Конструкция и технология ремонта газоперекачивающего агрегата ГПА-Ц-16 | I96: Надежность систем транспортировки газа, пути ее обеспечения. Конструкция и условия работы газоперекачивающего агрегата ГПА-Ц-16. Обслуживание агрегата ГПА-Ц-16. Технология проведения ремонта ГПА-Ц-16. Охрана труда и промышленная безопасность. Основы экологии и экологической безопасности. Практические навыки, получаемые слушателями по окончании обучения: организация подготовки и проведения ремонта, особенности разборки и сборки агрегата, технология ремонта ГПА-Ц-16. Обучение проводится в г. Брянске на базе ЦОК АО «ГСП Ремонт». | J96: 26 | K96: 5 | L96: 21 | M96: 72 | N96: 40 | O96: 32 | P96: Очно-заочная | Q96: Обычное | R96: АУД/ЭО | T96: 99500.00 | U96: 5000.00 | V96: 19.013 B: | W96: 19.013: Специалист по эксплуатации компрессорных станций и станций охлаждения газа газовой отрасли | Y96: 50038078 | Z96: 1381.94
A97: 52 | B97: 54 | C97: 04: Транспортировка газа | D97: 01: Эксплуатация, диагностика, противокоррозионная защита, ремонт оборудования и техники транспортировки газа, газового конденсата и нефти | E97: Эксплуатация основного и вспомогательного оборудования компрессорных станций | F97: Руководители и специалисты профильных подразделений | G97: повышение квалификации | H97: 03 0401 066: Конструкция и технология ремонта газоперекачивающего агрегата ГПА-16 «Урал» | I97: Надежность систем транспортировки газа, пути ее обеспечения. Конструкция и условия работы газоперекачивающего агрегата ГПА-16 «Урал» с приводом ПС-90ГП-2. Обслуживание агрегата ГПА-16 «Урал». Технология проведения ремонта ГПА-16 «Урал». Охрана труда и промышленная безопасность. Основы экологии и экологической безопасности. Практические навыки, получаемые слушателями по окончании обучения: организация подготовки и проведения ремонта, особенности разборки и сборки агрегата, технология ремонта ГПА-16 «Урал». Обучение проводится в г. Брянске на базе ЦОК АО «ГСП Ремонт». | J97: 26 | K97: 5 | L97: 21 | M97: 72 | N97: 40 | O97: 32 | P97: Очно-заочная | Q97: Обычное | R97: АУД/ЭО | T97: 99500.00 | U97: 5000.00 | V97: 19.013 B: | W97: 19.013: Специалист по эксплуатации компрессорных станций и станций охлаждения газа газовой отрасли | Y97: 50038079 | Z97: 1381.94
A98: 53 | B98: 55 | C98: 04: Транспортировка газа | D98: 01: Эксплуатация, диагностика, противокоррозионная защита, ремонт оборудования и техники транспортировки газа, газового конденсата и нефти | E98: Эксплуатация основного и вспомогательного оборудования компрессорных станций | F98: Руководители и специалисты профильных подразделений | G98: повышение квалификации | H98: 03 0401 067: Конструкция и технология ремонта газотурбинного двигателя ДГ90Л2.1 | I98: Надежность систем транспортировки газа, пути ее обеспечения. Конструкция и условия работы газотурбинного двигателя ДГ90Л2.1. Эксплуатация газотурбинного двигателя ДГ90Л2.1. Технология проведения ремонта газотурбинного двигателя ДГ90Л2.1. Охрана труда и промышленная безопасность. Основы экологии и экологической безопасности. Практические навыки, получаемые слушателями по окончании обучения: организация подготовки и проведения ремонта, особенности разборки и сборки, технология ремонта газотурбинного двигателя ДГ90Л2.1. Обучение проводится в г. Брянске на базе ЦОК АО «ГСП Ремонт». | J98: 26 | K98: 5 | L98: 21 | M98: 72 | N98: 40 | O98: 32 | P98: Очно-заочная | Q98: Обычное | R98: АУД/ЭО | T98: 99500.00 | U98: 5000.00 | V98: 19.013 B: | W98: 19.013: Специалист по эксплуатации компрессорных станций и станций охлаждения газа газовой отрасли | Y98: 50038080 | Z98: 1381.94
A99: 54 | B99: 56 | C99: 04: Транспортировка газа | D99: 01: Эксплуатация, диагностика, противокоррозионная защита, ремонт оборудования и техники транспортировки газа, газового конденсата и нефти | E99: Эксплуатация основного и вспомогательного оборудования компрессорных станций | F99: Руководители и специалисты профильных подразделений | G99: повышение квалификации | H99: 03 0401 068: Конструкция и технология ремонта газотурбинного привода типа ГТК-10-4 | I99: Надежность систем транспортировки газа, пути ее обеспечения. Конструкция и условия работы газотурбинного привода типа ГТК-10-4. Обслуживание газотурбинного привода типа ГТК-10-4. Технология проведения ремонта газотурбинного привода типа ГТК-10-4. Охрана труда и промышленная безопасность. Основы экологии и экологической безопасности. Практические навыки, получаемые слушателями по окончании обучения: организация подготовки и проведения ремонта, особенности разборки и сборки привода, технология ремонта газотурбинного привода типа ГТК-10-4. Обучение проводится в г. Брянске на базе ЦОК АО «ГСП Ремонт». | J99: 26 | K99: 5 | L99: 21 | M99: 72 | N99: 40 | O99: 32 | P99: Очно-заочная | Q99: Обычное | R99: АУД/ЭО | T99: 99500.00 | U99: 5000.00 | V99: 19.013 B: | W99: 19.013: Специалист по эксплуатации компрессорных станций и станций охлаждения газа газовой отрасли | Y99: 50038081 | Z99: 1381.94
A100: 55 | B100: 57 | C100: 04: Транспортировка газа | D100: 01: Эксплуатация, диагностика, противокоррозионная защита, ремонт оборудования и техники транспортировки газа, газового конденсата и нефти | E100: Эксплуатация основного и вспомогательного оборудования компрессорных станций | F100: Специалисты профильных подразделений | G100: повышение квалификации | H100: 03 0401 069 Э: Технологические коммуникации компрессорной станции и узел подключения компрессорной станции к магистральному газопроводу | I100: Состав и назначение основного технологического оборудования КС. Трубопроводная арматура КС. Принципиальные технологические схемы КС. Порядок работы технологической схемы КС. Узел подключения КС к магистральному газопроводу. Требования безопасности при эксплуатации КС. Практические навыки, получаемые слушателями по окончании обучения: эксплуатация и обслуживание коммуникаций КС и узла подключения КС к магистральному газопроводу. | J100: 15 | K100: 0 | L100: 15 | M100: 24 | N100: 0 | O100: 24 | P100: Заочная | Q100: Электронное | R100: ЭО | S100: Обучение проводится на мультипортальной платформе дистанционного обучения «СНФПО Онлайн» | T100: 6100.00 | U100: 0.00 | V100: 19.013 B: | W100: 19.013: Специалист по эксплуатации компрессорных станций и станций охлаждения газа газовой отрасли | Y100: 50038058 | AA100: =T100/M100 -> 254.17
A101: 56 | B101: 58 | C101: 04: Транспортировка газа | D101: 01: Эксплуатация, диагностика, противокоррозионная защита, ремонт оборудования и техники транспортировки газа, газового конденсата и нефти | E101: Техническая диагностика и ремонт основного и вспомогательного оборудования компрессорных станций | F101: Руководители и специалисты профильных подразделений | G101: повышение квалификации | H101: 03 0401 070 Э: Неразрушающий контроль качества сварных соединений | I101: Дефекты сварных соединений и методы НК для их определения. Визуальный и измерительный контроль качества сварных соединений. Магнитопорошковый, капиллярный, вихретоковый, радиографический, ультразвуковой контроль качества сварных соединений. Требования охраны труда при проведении НК качества сварных соединений. Рассматриваемое оборудование: Комплект для визуального и измерительного контроля «Эксперт», ярмовой магнитопорошковый электрический дефектоскоп (магнит ярмовой электрический) «Магвел-220M/16А», магнитно-вихретоковый дефектоскоп ВИД-345, рентгеновский аппарат непрерывного действия ERESCO 42 MF4, рентгеновский аппарат импульсного действия АРИНА-5, гамма-дефектоскоп ГАММАРИД-192/120, денситометр ДНС-2, негатоскоп НС 85×400, ультразвуковая измерительная установка серии «Сканер +». Практические навыки, получаемые слушателями по окончании обучения: проведения неразрушающего контроля качества сварных соединений. | J101: 15 | K101: 0 | L101: 15 | M101: 24 | N101: 0 | O101: 24 | P101: Заочная | Q101: Электронное | R101: ЭО | S101: Обучение проводится на мультипортальной платформе дистанционного обучения «СНФПО Онлайн» | T101: 6100.00 | U101: 0.00 | V101: 40.108 A: | W101: 40.108: Специалист по неразрушающему контролю | Y101: 50038045 | AA101: 254.17
A102: 57 | B102: 59 | C102: 04: Транспортировка газа | D102: 01: Эксплуатация, диагностика, противокоррозионная защита, ремонт оборудования и техники транспортировки газа, газового конденсата и нефти | E102: Эксплуатация основного и вспомогательного оборудования компрессорных станций | F102: Специалисты профильных подразделений | G102: повышение квалификации | H102: 03 0401 071 Э: Насосно-компрессорное оборудование. Устройство, назначение и принцип действия | I102: Основы гидравлики. Классификация насосов, назначение, устройство, принцип работы. Эксплуатация центробежных и объемных насосов. Неисправности насосов. Общие правила безопасности при эксплуатации технологических насосов. Компрессор 2ВМ4-12/65. Практические навыки, получаемые слушателями по окончании обучения: эксплуатация насосов различных видов. | J102: 22 | K102: 0 | L102: 22 | M102: 40 | N102: 0 | O102: 40 | P102: Заочная | Q102: Электронное | R102: ЭО | S102: Обучение проводится на мультипортальной платформе дистанционного обучения «СНФПО Онлайн» | T102: 6100.00 | U102: 0.00 | V102: 19.013 B: | W102: 19.013: Специалист по эксплуатации компрессорных станций и станций охлаждения газа газовой отрасли | Y102: 50038060 | AA102: 152.50
A103: 58 | B103: 60 | C103: 04: Транспортировка газа | D103: 01: Эксплуатация, диагностика, противокоррозионная защита, ремонт оборудования и техники транспортировки газа, газового конденсата и нефти | E103: Эксплуатация основного и вспомогательного оборудования компрессорных станций | F103: Специалисты профильных подразделений | G103: повышение квалификации | H103: 03 0401 072 Э: Устройство и эксплуатация сосудов под давлением | I103: Основные сведения о сосудах, работающих под избыточным давлением. Требования промышленной безопасности к проектированию опасных производственных объектов, на которых используются сосуды, работающие под избыточным давлением. Требования промышленной безопасности к монтажу, ремонту и реконструкции сосудов, работающих под избыточным давлением. Требования промышленной безопасности к эксплуатации сосудов, работающих под избыточным давлением. Техническое освидетельствование сосудов, работающих под избыточным давлением. Требования промышленной безопасности к освидетельствованию и эксплуатации баллонов. Требования промышленной безопасности к эксплуатации цистерн и бочек для перевозки сжиженных газов. Практические навыки, получаемые слушателями по окончании обучения: эксплуатация и обслуживание сосудов, работающих под избыточным давлением. | J103: 15 | K103: 0 | L103: 15 | M103: 24 | N103: 0 | O103: 24 | P103: Заочная | Q103: Электронное | R103: ЭО | S103: Обучение проводится на мультипортальной платформе дистанционного обучения «СНФПО Онлайн» | T103: 6100.00 | U103: 0.00 | V103: 19.013 B: | W103: 19.013: Специалист по эксплуатации компрессорных станций и станций охлаждения газа газовой отрасли | Y103: 50038059 | AA103: 254.17
A104: 59 | B104: 61 | C104: 04: Транспортировка газа | D104: 01: Эксплуатация, диагностика, противокоррозионная защита, ремонт оборудования и техники транспортировки газа, газового конденсата и нефти | E104: Эксплуатация линейной части и запорной арматуры магистральных газопроводов | F104: Специалисты профильных подразделений | G104: повышение квалификации | H104: 03 0401 073 Э: Газораспределительная станция. Устройство и принцип работы основных блоков | I104: Требования к газораспределительным станциям и их классификация, требования к узлам газораспределительных станций. Трубопроводная арматура, используемая на газораспределительной станции. Устройства и технологические схемы узла очистки газа. Причины гидратообразования природных газов и методы их предотвращения. Основные типы регуляторов. Оборудование узла измерения расхода газа, оборудование узла одоризации и используемые одоранты. Локализация и ликвидация последствий аварий и инцидентов на ГРС. Требования безопасности при эксплуатации газораспределительной станции, требования безопасности при работе с одорантом и метанолом, обеспечение пожаробезопасности, идентификация опасностей и определение уровня риска. Практические навыки, получаемые слушателями по окончании обучения: эксплуатация и обслуживание основных блоков газоизмерительной станции. | J104: 15 | K104: 0 | L104: 15 | M104: 24 | N104: 0 | O104: 24 | P104: Заочная | Q104: Электронное | R104: ЭО | S104: Обучение проводится на мультипортальной платформе дистанционного обучения «СНФПО Онлайн» | T104: 6100.00 | U104: 0.00 | V104: 19.029 B: | W104: 19.029: Специалист по эксплуатации технологического оборудования газораспределительных станций, отдельно стоящих газорегуляторных пунктов, узлов учета и редуцирования газа | Y104: 50038050 | AA104: 254.17
A105: 60 | B105: 62 | C105: 04: Транспортировка газа | D105: 01: Эксплуатация, диагностика, противокоррозионная защита, ремонт оборудования и техники транспортировки газа, газового конденсата и нефти | E105: Противокоррозионная защита линейной части и запорной арматуры магистральных газопроводов, газопроводов компрессорных, газораспределительных станций | F105: Специалисты профильных подразделений | G105: повышение квалификации | H105: 03 0401 074 Э: Устройство, принцип действия оборудования электрохимической защиты газопроводов | I105: Общие сведения о коррозии, пассивная защита от коррозии. Назначение и принцип электрохимической защиты. Источники тока станций катодной защиты, анодные заземления станции катодной защиты, протекторная защита, электродренажная защита. Контроль состояния изоляционного покрытия трубопровода. Эксплуатация и ремонт сооружений электрохимической защиты. Практические навыки, получаемые слушателями по окончании обучения: эксплуатация и обслуживание оборудования электрохимической защиты газопроводов. | J105: 22 | K105: 0 | L105: 22 | M105: 40 | N105: 0 | O105: 40 | P105: Заочная | Q105: Электронное | R105: ЭО | S105: Обучение проводится на мультипортальной платформе дистанционного обучения «СНФПО Онлайн» | T105: 6100.00 | U105: 0.00 | V105: 40.022 B: | W105: 40.022: Работник по электрохимической защите от коррозии линейных сооружений и объектов | Y105: 50038041 | AA105: 152.50
A106: 61 | B106: 63 | C106: 04: Транспортировка газа | D106: 01: Эксплуатация, диагностика, противокоррозионная защита, ремонт оборудования и техники транспортировки газа, газового конденсата и нефти | E106: Эксплуатация основного и вспомогательного оборудования компрессорных станций | F106: Специалисты профильных подразделений | G106: повышение квалификации | H106: 03 0401 075 Э: Эксплуатация и ремонт газового оборудования | I106: Конструкция регуляторов давления газа, предохранительных устройств, газовых фильтров, а также порядок проведения технического обслуживания и ремонта оборудования газораспределительных пунктов (ГРУ, ШРП, ГРПБ) и требования охраны труда при выполнении этих работ. Практические навыки, получаемые слушателями по окончании обучения: эксплуатация и ремонт газового оборудования. | J106: 22 | K106: 0 | L106: 22 | M106: 40 | N106: 0 | O106: 40 | P106: Заочная | Q106: Электронное | R106: ЭО | S106: Обучение проводится на мультипортальной платформе дистанционного обучения «СНФПО Онлайн» | T106: 6100.00 | U106: 0.00 | V106: 19.013 B: | W106: 19.013: Специалист по эксплуатации компрессорных станций и станций охлаждения газа газовой отрасли | Y106: 50038065 | AA106: 152.50
A107: 62 | B107: 64 | C107: 04: Транспортировка газа | D107: 01: Эксплуатация, диагностика, противокоррозионная защита, ремонт оборудования и техники транспортировки газа, газового конденсата и нефти | E107: Эксплуатация линейной части и запорной арматуры магистральных газопроводов | F107: Специалисты профильных подразделений | G107: повышение квалификации | H107: 03 0401 076: Отработка алгоритмов управления АГРС-НП (нового поколения) типа «ИСТОК» | I107: Автоматическая газораспределительная станция АГРС-НП «ИСТОК» нового поколения. Практические занятия на АГРС-НП с отработкой алгоритмов управления. Практические навыки, получаемые слушателями по окончании обучения: отработка алгоритмов управления АГРС-НП «ИСТОК». Обучение проводится на базе ООО «НПП «Авиагаз-Союз+» в г. Казани. | J107: 2 | K107: 2 | L107: 0 | M107: 16 | N107: 16 | O107: 0 | P107: Очная | Q107: Обычное | R107: АУД | S107: Программа целевого (опережающего) обучения. Возможна корректировка периода обучения в связи с возможными переносами сроков изготовления оборудования, на котором проводится обучение | T107: 98500.00 | U107: 6000.00 | V107: 19.029 B: | W107: 19.029: Специалист по эксплуатации технологического оборудования газораспределительных станций, отдельно стоящих газорегуляторных пунктов, узлов учета и редуцирования газа | Y107: 50038051 | Z107: =T107/M107 -> 6156.25
A108: 63 | B108: 65 | C108: 04: Транспортировка газа | D108: 01: Эксплуатация, диагностика, противокоррозионная защита, ремонт оборудования и техники транспортировки газа, газового конденсата и нефти | E108: Эксплуатация основного и вспомогательного оборудования компрессорных станций | F108: Специалисты профильных подразделений | G108: повышение квалификации | H108: 03 0401 077: Эксплуатация и обслуживание регулирующих клапанов и антипомпажных клапанов производства АО «Атоммашэкспорт» | I108: Конструкция клапанов, монтаж и настройка, техническое обслуживание и ремонт регулирующих и антипомпажных клапанов. Практические навыки, получаемые слушателями по окончании обучения: настройка клапанов регулирующих и антипомпажных клапанов производства АО «Атоммашэкспорт», разборка и сборка клапанов и пневмопривода. Обучение проводится на базе АО «Атоммашэкспорт» в г. Волгодонске Ростовской обл. | J108: 23 | K108: 9 | L108: 14 | M108: 94 | N108: 70 | O108: 24 | P108: Очно-заочная | Q108: Обычное | R108: АУД/ЭО | T108: 337500.00 | U108: 5000.00 | V108: 19.013 B: | W108: 19.013: Специалист по эксплуатации компрессорных станций и станций охлаждения газа газовой отрасли | Y108: 50038067 | Z108: 3590.43
A109: 64 | B109: 66 | C109: 04: Транспортировка газа | D109: 01: Эксплуатация, диагностика, противокоррозионная защита, ремонт оборудования и техники транспортировки газа, газового конденсата и нефти | E109: Эксплуатация основного и вспомогательного оборудования компрессорных станций | F109: Руководители и специалисты профильных подразделений | G109: повышение квалификации | H109: 03 0401 080: Устройство и эксплуатация сухих газодинамических уплотнений производства ООО «Джон Крейн-Искра» | I109: Устройство и особенности конструкции сухих газодинамических уплотнений производства ООО «Джон Крейн-Искра». Эксплуатация сухих газодинамических уплотнений производства ООО «Джон Крейн-Искра». Охрана труда и промышленная безопасность. Практические навыки, получаемые слушателями по окончании обучения: конструкционные особенности и эксплуатация сухих газодинамических уплотнений производства ООО «Джон Крейн-Искра». Обучение проводится на базе ООО «Джон Крейн-Искра» в г. Перми. | J109: 19 | K109: 5 | L109: 14 | M109: 56 | N109: 40 | O109: 16 | P109: Очно-заочная | Q109: Обычное | R109: АУД/ЭО | S109: Программа целевого (опережающего) обучения. | T109: 143400.00 | U109: 5000.00 | V109: 19.013 B: | W109: 19.013: Специалист по эксплуатации компрессорных станций и станций охлаждения газа газовой отрасли | Y109: 50038070 | Z109: 2560.71
A110: 65 | B110: 67 | C110: 04: Транспортировка газа | D110: 01: Эксплуатация, диагностика, противокоррозионная защита, ремонт оборудования и техники транспортировки газа, газового конденсата и нефти | E110: Эксплуатация основного и вспомогательного оборудования компрессорных станций | F110: Руководители и специалисты профильных подразделений | G110: повышение квалификации | H110: 03 0401 081: Монтаж-демонтаж газодинамических уплотнений производства ООО «ТРЭМ-Казань» в компрессорные машины и нагнетатели ПО2017 СГДУ | I110: Устройство и особенности конструкции газодинамических уплотнений в центробежных компрессорах и нагнетателях природного газа. Эксплуатация систем газодинамических уплотнений производства ООО «ТРЭМ-Казань». Монтаж/демонтаж систем газодинамических уплотнений производства ООО «ТРЭМ-Казань». Охрана труда и промышленная безопасность. Практические навыки, получаемые слушателями по окончании обучения: монтаж/демонтаж и эксплуатация систем газодинамических уплотнений производства ООО «ТРЭМ-Казань». Обучение проводится на базе ООО «ТРЭМ-Казань» в г. Казани. | J110: 19 | K110: 5 | L110: 14 | M110: 56 | N110: 40 | O110: 16 | P110: Очно-заочная | Q110: Обычное | R110: АУД/ЭО | T110: 246200.00 | U110: 5000.00 | V110: 19.013 B: | W110: 19.013: Специалист по эксплуатации компрессорных станций и станций охлаждения газа газовой отрасли | Y110: 50038071 | Z110: 4396.43
A111: 68 | B111: 68 | C111: 04: Транспортировка газа | D111: 01: Эксплуатация, диагностика, противокоррозионная защита, ремонт оборудования и техники транспортировки газа, газового конденсата и нефти | E111: Эксплуатация основного и вспомогательного оборудования компрессорных станций | F111: Руководители и специалисты профильных подразделений | G111: повышение квалификации | H111: 03 0401 089: Конструкция ГТД серии ПС-90 и особенности его эксплуатации. Поиск и устранение неисправностей в условиях компрессорной станции. Проведение технического обслуживания | I111: Конструкция и принцип работы двигателя ПС-90ГП-2, а также его технологических систем. Эксплуатация и техническое обслуживание ГТД. Система автоматического управления. Общие сведения по промышленной безопасности газотурбинных приводов, меры безопасности при эксплуатации ГТД. Практические навыки, получаемые слушателями по окончании обучения: контроль исправности систем и агрегатов ГТП-16 с помощью системы автоматического управления ГТП-16 во всех условиях эксплуатации; подготовка ГТД к пуску, осмотр оборудования, подготовка систем ГТД; включение электропитания, подготовка САУ, проверка предпусковых условий. Обучение проводится на базе АО «ОДК-Авиадвигатель» в г. Перми. | J111: 19 | K111: 5 | L111: 14 | M111: 56 | N111: 40 | O111: 16 | P111: Очно-заочная | Q111: Обычное | R111: АУД/ЭО | S111: Программа целевого (опережающего) обучения. | T111: 131420.00 | U111: 5000.00 | V111: 19.013 B: | W111: 19.013: Специалист по эксплуатации компрессорных станций и станций охлаждения газа газовой отрасли | Y111: 50038063 | Z111: 2346.79
A112: 69 | B112: 69 | C112: 04: Транспортировка газа | D112: 01: Эксплуатация, диагностика, противокоррозионная защита, ремонт оборудования и техники транспортировки газа, газового конденсата и нефти | E112: Эксплуатация основного и вспомогательного оборудования компрессорных станций | F112: Руководители и специалисты профильных подразделений | G112: повышение квалификации | H112: 03 0401 090 В: Обслуживание и эксплуатация ГТУ-25П на базе двигателя ПС-90ГП-25 | I112: Основные технические данные, принцип работы. Мощностная характеристика. Кинематическая схема ГТУ-25П на базе двигателя ПС-90ГП-25. Поиск и устранение неисправностей. Эксплуатация и техническое обслуживание ГТУ. Система автоматического управления. Общие сведения по промышленной безопасности газотурбинных приводов, меры безопасности при эксплуатации ГТУ. Практические навыки, получаемые слушателями по окончании обучения: поиск и устранение неисправностей; подготовка ГТУ к пуску, осмотр оборудования, подготовка систем ГТУ; включение электропитания, проверка предпусковых условий. Обучение проводится специалистами АО "ОДК-Авиадвигатель". | J112: 19 | K112: 5 | L112: 14 | M112: 56 | N112: 40 | O112: 16 | P112: Очно-заочная | Q112: Выездное | R112: АУД/ЭО | T112: 131420.00 | U112: 0.00 | V112: 19.013 B: | W112: 19.013: Специалист по эксплуатации компрессорных станций и станций охлаждения газа газовой отрасли | Y112: 50041838 | Z112: 2346.79
A113: 70 | B113: 70 | C113: 04: Транспортировка газа | D113: 01: Эксплуатация, диагностика, противокоррозионная защита, ремонт оборудования и техники транспортировки газа, газового конденсата и нефти | E113: Эксплуатация основного и вспомогательного оборудования компрессорных станций | F113: Руководители и специалисты профильных подразделений | G113: повышение квалификации | H113: 03 0401 090: Обслуживание и эксплуатация ГТУ-25П на базе двигателя ПС-90ГП-25 | I113: Основные технические данные, принцип работы. Мощностная характеристика. Кинематическая схема ГТУ-25П на базе двигателя ПС-90ГП-25. Поиск и устранение неисправностей. Эксплуатация и техническое обслуживание ГТУ. Система автоматического управления. Общие сведения по промышленной безопасности газотурбинных приводов, меры безопасности при эксплуатации ГТУ. Практические навыки, получаемые слушателями по окончании обучения: поиск и устранение неисправностей; подготовка ГТУ к пуску, осмотр оборудования, подготовка систем ГТУ; включение электропитания, проверка предпусковых условий. Обучение проводится на базе АО «ОДК-Авиадвигатель» в г. Перми. | J113: 19 | K113: 5 | L113: 14 | M113: 56 | N113: 40 | O113: 16 | P113: Очно-заочная | Q113: Обычное | R113: АУД/ЭО | T113: 131420.00 | U113: 5000.00 | V113: 19.013 B: | W113: 19.013: Специалист по эксплуатации компрессорных станций и станций охлаждения газа газовой отрасли | Y113: 50038062 | Z113: 2346.79
A114: 72 | B114: 71 | C114: 04: Транспортировка газа | D114: 01: Эксплуатация, диагностика, противокоррозионная защита, ремонт оборудования и техники транспортировки газа, газового конденсата и нефти | E114: Эксплуатация основного и вспомогательного оборудования компрессорных станций | F114: Руководители и специалисты профильных подразделений | G114: повышение квалификации | H114: 03 0401 092: Устройство и особенности эксплуатации ГПА с ГТД НК-16СТ, НК-16-18СТД, НК-38СТ | I114: Основы теории газотурбинных двигателей. Эксплуатационные характеристики ГТД. Конструкция и системы двигателя НК-16-18СТ. Поиск и устранение неисправностей. Оформление технической документации. Охрана труда и промышленная безопасность. Практические навыки, получаемые слушателями по окончании обучения: выполнение работ по техническому обслуживанию двигателей, регламентные работы. Обучение проводится на базе АО «КМПО» в г. Казани. | J114: 18 | K114: 4 | L114: 14 | M114: 48 | N114: 30 | O114: 18 | P114: Очно-заочная | Q114: Обычное | R114: АУД/ЭО | T114: 129200.00 | U114: 5000.00 | V114: 19.013 B: | W114: 19.013: Специалист по эксплуатации компрессорных станций и станций охлаждения газа газовой отрасли | Y114: 50038061 | Z114: 2691.67
A115: 73 | B115: 72 | C115: 04: Транспортировка газа | D115: 01: Эксплуатация, диагностика, противокоррозионная защита, ремонт оборудования и техники транспортировки газа, газового конденсата и нефти | E115: Эксплуатация основного и вспомогательного оборудования компрессорных станций | F115: Руководители и специалисты профильных подразделений | G115: повышение квалификации | H115: 03 0401 093: Формуляр целевых проверок на ГРС | I115: Общие сведения об административно-производственном контроле за соблюдением требований производственной безопасности в ПАО «Газпром». Контроль эксплуатации объектов газотранспортной системы на основе формуляра целевых проверок (ФЦП). Практические навыки, получаемые слушателями по окончании обучения: паспортизация объектов ГТС и осуществление проверок производственного контроля с использованием мобильного приложения и производственного SAP-портала. Обучение проводится на базе образовательного подразделения ООО «Газпром трансгаз Ставрополь». | J115: 12 | K115: 4 | L115: 8 | M115: 40 | N115: 32 | O115: 8 | P115: Очно-заочная | Q115: Обычное | R115: АУД/ЭО | S115: Программа целевого (опережающего) обучения. | T115: 37800.00 | U115: 5000.00 | V115: 19.029 B: | W115: 19.029: Специалист по эксплуатации технологического оборудования газораспределительных станций, отдельно стоящих газорегуляторных пунктов, узлов учета и редуцирования газа | Y115: 50038072 | Z115: 945.00
V116: 19.029 C: | W116: 19.029: Специалист по эксплуатации технологического оборудования газораспределительных станций, отдельно стоящих газорегуляторных пунктов, узлов учета и редуцирования газа
A117: 76 | B117: 73 | C117: 04: Транспортировка газа | D117: 01: Эксплуатация, диагностика, противокоррозионная защита, ремонт оборудования и техники транспортировки газа, газового конденсата и нефти | E117: Эксплуатация основного и вспомогательного оборудования компрессорных станций | F117: Руководители и специалисты профильных подразделений | G117: повышение квалификации | H117: 03 0401 097 Э: Устройство и обслуживание двигателя ПС90-ГП1 | I117: Компоновка и технические характеристики газотурбинного двигателя ПС90-ГП1. Назначение и конструктивные особенности составных частей газотурбинного двигателя ПС90-ГП1. Система запуска. Система маслообеспечения. Система топливопитания, автоматического управления и диагностики. Система отбора воздуха. Техническое обслуживание газотурбинного двигателя ПС90-ГП1. Охрана труда при эксплуатации и обслуживании газотурбинного двигателя ПС90-ГП1. Практические навыки, получаемые слушателями по окончании обучения: особенности эксплуатации газотурбинного двигателя ПС90-ГП1, техническое обслуживание газотурбинного двигателя ПС90-ГП1 | J117: 15 | K117: 0 | L117: 15 | M117: 24 | N117: 0 | O117: 24 | P117: Заочная | Q117: Электронное | R117: ЭО | S117: Обучение проводится на мультипортальной платформе дистанционного обучения «СНФПО Онлайн» | T117: 6100.00 | U117: 0.00 | V117: 19.013 B: | W117: 19.013: Специалист по эксплуатации компрессорных станций и станций охлаждения газа газовой отрасли | Y117: 50040030 | AA117: =T117/M117 -> 254.17
A118: 77 | B118: 74 | C118: 04: Транспортировка газа | D118: 01: Эксплуатация, диагностика, противокоррозионная защита, ремонт оборудования и техники транспортировки газа, газового конденсата и нефти | E118: Противокоррозионная защита линейной части и запорной арматуры магистральных газопроводов, газопроводов компрессорных, газораспределительных станций | F118: Руководители и специалисты профильных подразделений | G118: повышение квалификации | H118: 03 0401 098 Э: Противокоррозионная защита | I118: Виды коррозионных процессов и способы защиты от коррозии. Ингибиторы коррозии. Изоляционные покрытия. Защитные (лакокрасочные) покрытия. Электрохимическая защита от коррозии. Система коррозионного мониторинга, дистанционного контроля и управления средствами электрохимической защиты от коррозии. Коррозионные обследования объектов ПАО «Газпром». Меры безопасности при эксплуатации средств защиты от коррозии. Практические навыки, получаемые слушателями по окончании обучения: эксплуатация средств защиты от коррозии объектов ПАО «Газпром». | J118: 15 | K118: 0 | L118: 15 | M118: 24 | N118: 0 | O118: 24 | P118: Заочная | Q118: Электронное | R118: ЭО | S118: Обучение проводится на мультипортальной платформе дистанционного обучения «СНФПО Онлайн» | T118: 6100.00 | U118: 0.00 | V118: 40.022 B: | W118: 40.022: Работник по электрохимической защите от коррозии линейных сооружений и объектов | Y118: 50040023 | AA118: 254.17
A119: 78 | B119: 75 | C119: 04: Транспортировка газа | D119: 01: Эксплуатация, диагностика, противокоррозионная защита, ремонт оборудования и техники транспортировки газа, газового конденсата и нефти | E119: Противокоррозионная защита линейной части и запорной арматуры магистральных газопроводов, газопроводов компрессорных, газораспределительных станций | F119: Специалисты профильных подразделений | G119: повышение квалификации | H119: 03 0401 099 Э: Переизоляция газопроводов при капитальном ремонте линейной части магистральных газопроводов в трассовых условиях | I119: Виды изоляционных покрытий для применения при капитальном ремонте линейной части магистральных газопроводов. Подготовка поверхности перед проведением изоляционных работ в трассовых условиях. Ремонт дефектов заводских полиэтиленовых покрытий в трассовых условиях. Переизоляция комбинированными покрытиями на основе расплавов битумно-полимерных или асмольных мастик. Переизоляция покрытиями на основе рулонных мастично-полимерных материалов. Переизоляция термореактивными покрытиями на основе жидких отверждающихся материалов. Безопасность труда при производстве изоляционных работ. Практические навыки, получаемые слушателями по окончании обучения: производство изоляционных работ в трассовых условиях. | J119: 22 | K119: 0 | L119: 22 | M119: 40 | N119: 0 | O119: 40 | P119: Заочная | Q119: Электронное | R119: ЭО | S119: Обучение проводится на мультипортальной платформе дистанционного обучения «СНФПО Онлайн» | T119: 6100.00 | U119: 0.00 | V119: 19.037 B: | W119: 19.037: Специалист по защите от коррозии внутренних поверхностей оборудования нефтегазового комплекс | Y119: 50040022 | AA119: 152.50
A120: 80 | B120: 76 | C120: 04: Транспортировка газа | D120: 01: Эксплуатация, диагностика, противокоррозионная защита, ремонт оборудования и техники транспортировки газа, газового конденсата и нефти | E120: Техническая диагностика и ремонт линейной части и запорной арматуры магистральных газопроводов | F120: Специалисты профильных подразделений | G120: повышение квалификации | H120: 03 0401 101 Э: Диагностика и ремонт запорно-регулирующей арматуры | I120: Общие сведения о трубопроводной арматуре. Устройство и принцип работы трубопроводной арматуры. Техническое диагностирование трубопроводной арматуры с целью определения ее технического состояния. Ремонт трубопроводной арматуры. Охрана труда и промышленная безопасность. Основы экологии и экологической безопасности. Практические навыки, получаемые слушателями по окончании обучения: диагностика и техническое обслуживание трубопроводной арматуры. | J120: 15 | K120: 0 | L120: 15 | M120: 24 | N120: 0 | O120: 24 | P120: Заочная | Q120: Электронное | R120: ЭО | S120: Обучение проводится на мультипортальной платформе дистанционного обучения «СНФПО Онлайн» | T120: 6100.00 | U120: 0.00 | V120: 19.013 B: | W120: 19.013: Специалист по эксплуатации компрессорных станций и станций охлаждения газа газовой отрасли | Y120: 50041822 | AA120: 254.17
A121: 81 | B121: 77 | C121: 04: Транспортировка газа | D121: 01: Эксплуатация, диагностика, противокоррозионная защита, ремонт оборудования и техники транспортировки газа, газового конденсата и нефти | E121: Эксплуатация основного и вспомогательного оборудования компрессорных станций | F121: Специалисты профильных подразделений | G121: повышение квалификации | H121: 03 0401 102 Э: Устройство и обслуживание двигателя ПС-90ГП-3 | I121: Компоновка и технические характеристики ГТУ-10П с газотурбинным двигателем ПС-90ГП-3. Назначение и конструктивные особенности составных частей ГТУ-10П с газотурбинным двигателем ПС-90ГП-3. Система запуска ГТУ-10П с газотурбинным двигателем ПС-90ГП-3. Система смазки и сульфирования ГТУ-10П с газотурбинным двигателем ПС-90ГП-3. Система топливопитания, автоматического управления и контроля ГТУ-10П с газотурбинным двигателем ПС-90ГП-3. Система отбора воздуха газотурбинного двигателя ПС-90ГП-3. Техническое обслуживание ГТУ-10П с газотурбинным двигателем ПС-90ГП-3. Замена составных частей ГТУ-10П, их пуск и наладка. Охрана труда и промышленная безопасность. Основы экологии и экологическая безопасность. Практические навыки, получаемые слушателями по окончании обучения: эксплуатация и обслуживание двигателя ПС-90ГП-3. | J121: 15 | K121: 0 | L121: 15 | M121: 24 | N121: 0 | O121: 24 | P121: Заочная | Q121: Электронное | R121: ЭО | S121: Обучение проводится на мультипортальной платформе дистанционного обучения «СНФПО Онлайн» | T121: 6100.00 | U121: 0.00 | V121: 19.013 B: | W121: 19.013: Специалист по эксплуатации компрессорных станций и станций охлаждения газа газовой отрасли | Y121: 50041833 | AA121: 254.17
A122: 82 | B122: 78 | C122: 04: Транспортировка газа | D122: 01: Эксплуатация, диагностика, противокоррозионная защита, ремонт оборудования и техники транспортировки газа, газового конденсата и нефти | E122: Эксплуатация основного и вспомогательного оборудования компрессорных станций | F122: Специалисты профильных подразделений | G122: повышение квалификации | H122: 03 0401 103 Э: Устройство и обслуживание двигателя ПС-90ГП-25 | I122: Компоновка и технические характеристики газотурбинного двигателя ПС-90ГП-25. Назначение и конструктивные особенности составных частей газотурбинного двигателя ПС-90ГП-25. Система запуска газотурбинной установки с газотурбинным двигателем ПС-90ГП-25. Система смазки и сульфирования газотурбинной установки с газотурбинным двигателем ПС-90ГП-25. Система автоматического управления, топливопитания и контроля газотурбинной установки с газотурбинным двигателем ПС-90ГП-25. Система отбора воздуха газотурбинного двигателя ПС-90ГП-25. Техническое обслуживание газотурбинной установки с газотурбинным двигателем ПС-90ГП-25. Охрана труда и промышленная безопасность. Основы экологии и экологическая безопасность. Практические навыки, получаемые слушателями по окончании обучения: эксплуатация и обслуживание двигателя ПС-90ГП-25. | J122: 15 | K122: 0 | L122: 15 | M122: 24 | N122: 0 | O122: 24 | P122: Заочная | Q122: Электронное | R122: ЭО | S122: Обучение проводится на мультипортальной платформе дистанционного обучения «СНФПО Онлайн» | T122: 6100.00 | U122: 0.00 | V122: 19.013 B: | W122: 19.013: Специалист по эксплуатации компрессорных станций и станций охлаждения газа газовой отрасли | Y122: 50041834 | AA122: 254.17
A123: 83 | B123: 79 | C123: 04: Транспортировка газа | D123: 01: Эксплуатация, диагностика, противокоррозионная защита, ремонт оборудования и техники транспортировки газа, газового конденсата и нефти | E123: Эксплуатация основного и вспомогательного оборудования компрессорных станций | F123: Специалисты профильных подразделений | G123: повышение квалификации | H123: 03 0401 104 Э: Устройство и обслуживание двигателя ДН80 | I123: Технические характеристики газотурбинного двигателя ДН80. Назначение и конструктивные особенности составных частей газотурбинного двигателя ДН80. Топливная система газотурбинной установки с газотурбинным двигателем ДН80. Система смазки газотурбинной установки с газотурбинным двигателем ДН80. Система пневмоуправления газотурбинной установки с газотурбинным двигателем ДН80. Электрооборудование газотурбинной установки с газотурбинным двигателем ДН80. Техническое обслуживание и проверка технического состояния газотурбинной установки с газотурбинным двигателем ДН80. Охрана труда и промышленная безопасность. Основы экологии и экологическая безопасность. Практические навыки, получаемые слушателями по окончании обучения: эксплуатация и обслуживание газотурбинного двигателя ДН80. | J123: 15 | K123: 0 | L123: 15 | M123: 24 | N123: 0 | O123: 24 | P123: Заочная | Q123: Электронное | R123: ЭО | S123: Обучение проводится на мультипортальной платформе дистанционного обучения «СНФПО Онлайн» | T123: 6100.00 | U123: 0.00 | V123: 19.013 B: | W123: 19.013: Специалист по эксплуатации компрессорных станций и станций охлаждения газа газовой отрасли | Y123: 50041827 | AA123: 254.17
A124: 88 | B124: 80 | C124: 04: Транспортировка газа | D124: 01: Эксплуатация, диагностика, противокоррозионная защита, ремонт оборудования и техники транспортировки газа, газового конденсата и нефти | E124: Эксплуатация линейной части и запорной арматуры магистральных газопроводов | F124: Специалисты профильных подразделений | G124: повышение квалификации | H124: 03 0401 116: Эксплуатация основного технологического оборудования ГРС типа «Голубое пламя» | I124: Регуляторы давления РГП 25-100. Фильтры-сепараторы ФС-50. Узел одоризации «УАОГ». Клапаны предохранительные. «КПЭ»-50 с эластичным затвором. Подогреватели газа ПГ-50. Автоматическая газораспределительная станция АГРС «Голубое пламя»-НП нового поколения. Средства КИПиА. Практические навыки, получаемые слушателями по окончании обучения: сборка, разборка и настройка оборудования производства ООО «Завод «Нефтегазоборудование».Обучение проводится на базе ООО «Завод «Нефтегазоборудование» в г. Саратове | J124: 5 | K124: 5 | L124: 0 | M124: 40 | N124: 40 | O124: 0 | P124: Очная | Q124: Обычное | R124: АУД | S124: Программа целевого (опережающего) обучения | T124: 45000.00 | U124: 6000.00 | V124: 19.029 B: | W124: 19.029: Специалист по эксплуатации технологического оборудования газораспределительных станций, отдельно стоящих газорегуляторных пунктов, узлов учета и редуцирования газа | Y124: 50045051 | Z124: =T124/M124 -> 1125.00
A125: 89 | B125: 81 | C125: 04: Транспортировка газа | D125: 01: Эксплуатация, диагностика, противокоррозионная защита, ремонт оборудования и техники транспортировки газа, газового конденсата и нефти | E125: Техническая диагностика и ремонт линейной части и запорной арматуры магистральных газопроводов | F125: Руководители и специалисты профильных подразделений | G125: повышение квалификации | H125: 03 0401 117: Конструктивные особенности, сервисное обслуживание, диагностирование, наладка и ремонт оборудования ТМ "МЕТРАН" | I125: Регуляторы давления газа МЕТРАН. Принцип действия пилотных регуляторов давления МЕТРАН. Технические особенности и комплектация. Возможные неполадки и способы их устранения. Порядок проведения ТО. Практические навыки, получаемые слушателями по окончании обучения: сервисное обслуживание, диагностирование, наладка и ремонт оборудования ТМ "МЕТРАН". Обучение проводится на базе ООО «ТЕРМОГАЗ» в г. Волгограде. | J125: 2 | K125: 2 | L125: 0 | M125: 16 | N125: 16 | O125: 0 | P125: Очная | Q125: Обычное | R125: АУД | S125: Программа целевого (опережающего) обучения | T125: 49100.00 | U125: 6000.00 | V125: 19.029 B: | W125: 19.029: Специалист по эксплуатации технологического оборудования газораспределительных станций, отдельно стоящих газорегуляторных пунктов, узлов учета и редуцирования газа | Y125: 50045048 | Z125: =T125/M125 -> 3068.75
A126: 90 | B126: 82 | C126: 04: Транспортировка газа | D126: 02: Технология транспорта газа, газового конденсата и нефти | E126: Управление потоками и поставками углеводородного топлива | F126: Руководители и специалисты профильных подразделений | G126: повышение квалификации | H126: 03 0402 007: Диспетчерское управление объектами газовой промышленности | I126: Общая характеристика Единой системы газоснабжения России. Факторы, влияющие на режим работы газопровода. Прогнозирование режимов газопотребления. Диспетчерское управление системами газоснабжения. Системы поддержки принятия диспетчерских решений. Программно-вычислительные и компьютерные тренажерные комплексы систем поддержки принятия диспетчерских решений. Решение расчетных задач. Практические навыки, получаемые слушателями по окончании обучения: использование современных программно-вычислительных комплексов моделирования газотранспортных систем. | J126: 12 | K126: 10 | L126: 2 | M126: 72 | N126: 72 | O126: 0 | P126: Очная | Q126: Обычное | R126: АУД | S126: Программа целевого (опережающего) обучения. | T126: 52500.00 | U126: 6000.00 | V126: 19.012 B: | W126: 19.012: Специалист по оперативно-диспетчерскому управлению нефтегазовой отрасли | Y126: 50020244 | Z126: =T126/M126 -> 729.17
A127: 91 | B127: 83 | C127: 04: Транспортировка газа | D127: 02: Технология транспорта газа, газового конденсата и нефти | E127: Управление потоками и поставками углеводородного топлива | F127: Руководители и специалисты профильных подразделений | G127: повышение квалификации | H127: 03 0402 086: Порядок настройки и технического обслуживания одоризаторов газа | I127: Устройство и принцип работы одоризаторов газа. Устройство и принцип работы блока управления одоризатора газа. Возможные неисправности, диагностика и методы их устранения. Практические навыки, получаемые слушателями по окончании обучения: работы с одоризатором газа на базе ОДДК. Обучение проводится в г. Саратове, на базе ООО Завод «Газпроммаш». | J127: 3 | K127: 3 | L127: 0 | M127: 24 | N127: 24 | O127: 0 | P127: Очная | Q127: Обычное | R127: АУД | S127: Программа целевого (опережающего) обучения. | T127: 19600.00 | U127: 5000.00 | V127: 19.029 B: | W127: 19.029: Специалист по эксплуатации технологического оборудования газораспределительных станций, отдельно стоящих газорегуляторных пунктов, узлов учета и редуцирования газа | Y127: 50038083 | Z127: =T127/M127 -> 816.67
A128: 93 | B128: 84 | C128: 05: Переработка газа | D128: 02: Технологическое оборудование для переработки углеводородного сырья | E128: Машины и технологическое оборудование газоперерабатывающих предприятий | F128: Специалисты профильных подразделений | G128: повышение квалификации | H128: 03 0502 002 Э: Машины и оборудование газоперерабатывающих предприятий | I128: Процессы переработки природного газа и газоконденсата. Характеристики компрессорного оборудования на ГПЗ. Классификация, устройство и принцип действия теплообменной аппаратуры и печей, аппаратов колонного типа, реакторов и сепараторов, регулирующей и предохранительной арматуры. Классификация и элементы технологических трубопроводов. Защита оборудования от коррозии. Практические навыки, получаемые слушателями по окончании обучения: эксплуатация и обслуживание машин и оборудования газоперерабатывающих предприятий. | J128: 15 | K128: 0 | L128: 15 | M128: 24 | N128: 0 | O128: 24 | P128: Заочная | Q128: Электронное | R128: ЭО | S128: Обучение проводится на мультипортальной платформе дистанционного обучения «СНФПО Онлайн» | T128: 6100.00 | U128: 0.00 | V128: 19.038 A: | W128: 19.038: Оператор технологических установок по переработке газа | Y128: 50038084 | AA128: =T128/M128 -> 254.17
A129: 94 | B129: 85 | C129: 05: Переработка газа | D129: 03: Технологии производства, хранения и транспортировки сжиженных газов | E129: Технологии производства сжиженных газов | F129: Руководители и специалисты профильных подразделений | G129: повышение квалификации | H129: 03 0503 001 Э: Производство и хранение газа в гидратированном состоянии | I129: Строение, состав и свойства газовых гидратов. Методы получения газовых гидратов. Газогидратный транспорт и хранение природного газа. Газогидратное опреснение воды. Разделение газовых смесей с использованием газовых гидратов. Прочие технологии, предусматривающие применение газовых гидратов и родственных соединений. Практические навыки, получаемые слушателями по окончании обучения: основы получения, транспортирования и хранения газов в гидратированном состоянии, прочие технологии, предусматривающие применение газовых гидратов. | J129: 15 | K129: 0 | L129: 15 | M129: 24 | N129: 0 | O129: 24 | P129: Заочная | Q129: Электронное | R129: ЭО | S129: Обучение проводится на мультипортальной платформе дистанционного обучения «СНФПО Онлайн» | T129: 6100.00 | U129: 0.00 | Y129: 50041839 | AA129: =T129/M129 -> 254.17
A130: 22 | B130: 86 | C130: 05: Переработка газа | D130: 03: Технологии производства, хранения и транспортировки сжиженных газов | E130: Технологии производства сжиженных газов | F130: Специалисты профильных подразделений | G130: повышение квалификации | H130: 03 0503 007 Э: Производство и отгрузка сжиженных газов | I130: Применение, требования к составу и свойства сжиженных газов, физико-термодинамические свойства сжиженных газов. Процесс одоризации сжиженных газов. Производство сжиженных газов. Хранение и отгрузка сжиженных газов. Отгрузка и транспортировка сжиженных газов. Регазификация и использование сжиженных газов. Практические навыки, получаемые слушателями по окончании обучения: анализ нормативной и технологической документации по производству и отгрузке сжиженных газов. | J130: 22 | K130: 0 | L130: 22 | M130: 40 | N130: 0 | O130: 40 | P130: Заочная | Q130: Электронное | R130: ЭО | S130: Обучение проводится на мультипортальной платформе дистанционного обучения «СНФПО Онлайн». | T130: 6100.00 | U130: 0.00 | V130: 19.076 A: | W130: 19.076: Специалист по производству, хранению и отгрузке сжиженного природного газа | X130: Новый | AA130: =T130/M130 -> 152.50
A131: 95 | B131: 87 | C131: 05: Переработка газа | D131: 03: Технологии производства, хранения и транспортировки сжиженных газов | E131: Технологии транспортировки сжиженных газов | F131: Руководители и специалисты профильных подразделений | G131: повышение квалификации | H131: 03 0503 006 Э: Технологии производства, транспортировки и хранения СПГ | I131: Общие сведения о сжиженном природном газе. Области применения сжиженного природного газа. Развитие отрасли сжиженного природного газа Сжижение природного газа. Регазификация сжиженного природного газа. Транспортировка сжиженного природного газа. Хранение сжиженного природного газа. Меры по ликвидации возможных неисправностей и аварийных ситуаций. Обзор проектов производства сжиженного природного газа. Практические навыки, получаемые слушателями по окончании обучения: технологии сжижения и регазификации природного газа, транспортировка сжиженного природного газа, ликвидация возможных неисправностей и аварийных ситуаций | J131: 22 | K131: 0 | L131: 22 | M131: 40 | N131: 0 | O131: 40 | P131: Заочная | Q131: Электронное | R131: ЭО | S131: Обучение проводится на мультипортальной платформе дистанционного обучения «СНФПО Онлайн» | T131: 6100.00 | U131: 0.00 | V131: 19.076 C: | W131: 19.076: Специалист по производству, хранению и отгрузке сжиженного природного газа | Y131: 50040033 | AA131: =T131/M131 -> 152.50
A132: 35 | B132: 88 | C132: 06: Экономика промышленности и управление | D132: 01: Экономика и управление предприятиями ТЭК | E132: Планирование производственно-хозяйственной деятельности предприятий ТЭК | F132: Руководители и специалисты профильных подразделений | G132: повышение квалификации | H132: 03 0601 117: Проведение финансового анализа, бюджетирование и управление денежными потоками | I132: Администрирование деятельности в сфере финансового анализа, бюджетирования и управления денежными потоками коммерческой организации. Финансовый анализ. Финансовое планирование. Управление денежными потоками. Риски в управлении финансами коммерческой организации. Практические навыки, получаемые слушателями по окончании обучения: проведение финансового анализа, бюджетирование и управление денежными потоками. | J132: 5 | K132: 5 | L132: 0 | M132: 40 | N132: 40 | O132: 0 | P132: Очная | Q132: Обычное | R132: АУД | S132: Программа Института профессиональных бухгалтеров и аудиторов России. По окончании обучения выдается удостоверение о повышении квалификации установленного образца и сертификат ИПБ России | T132: 39500.00 | U132: 6000.00 | V132: 08.002 B: | W132: 08.002: Бухгалтер | X132: Новый | Z132: =T132/M132 -> 987.50
A133: 96 | B133: 89 | C133: 06: Экономика промышленности и управление | D133: 01: Экономика и управление предприятиями ТЭК | E133: Производственно-экономический анализ хозяйственной деятельности предприятия и принятие управленческих решений | F133: Руководители и специалисты профильных подразделений | G133: повышение квалификации | H133: 03 0601 009: Управленческий учет | I133: Организация и функционирование учетной системы организации. Сферы применения и функции управленческого учета. Понятие и функции финансового контроля на предприятии. Организация процесса сбора и обработки информации в организации. Финансовый план и методы внутрихозяйственного анализа. Затраты и их классификация. Методы разделения затрат на переменные и постоянные. Учет затрат на материалы и оплату труда. Учет производственных накладных расходов. Методы калькулирования себестоимости продукции, работ, услуг (позаказная калькуляция, попроцессная калькуляция). Особенности систем «директ-костинг» и «стандарт-кост». Анализ «затраты-объем продукции-прибыль». Анализ и управление объемами производства. Учет издержек комплексного производства и побочного продукта. Принятие решений по ценообразованию. Принятие долгосрочных инвестиционных решений. Практические навыки, получаемые слушателями по окончании обучения: использование данных управленческого учета в принятии управленческих решений по производству, ценообразованию, принятию долгосрочных инвестиционных решений. | J133: 12 | K133: 10 | L133: 2 | M133: 72 | N133: 72 | O133: 0 | P133: Очная | Q133: Обычное | R133: АУД | T133: 43300.00 | U133: 6000.00 | Y133: 50025510 | Z133: =T133/M133 -> 601.39
A134: 97 | B134: 90 | C134: 06: Экономика промышленности и управление | D134: 01: Экономика и управление предприятиями ТЭК | E134: Производственно-экономический анализ хозяйственной деятельности предприятия и принятие управленческих решений | F134: Руководители и специалисты профильных подразделений | G134: повышение квалификации | H134: 03 0601 011: Актуальные вопросы финансового планирования и управленческого учета на предприятиях газовой промышленности | I134: Сущность системы управления финансами на предприятии. Финансовое планирование и бюджетирование в системе управления предприятием. Организация и ведение бухгалтерского учета на предприятии. Финансовый анализ результатов деятельности предприятия. Сущность управленческого учета. Управление затратами и результатами деятельности предприятия. Практические навыки, получаемые слушателями по окончании обучения: составление финансового плана, анализ себестоимости продукции и принятие управленческих решений по оптимизации затрат, оценка платежеспособности предприятия. | J134: 12 | K134: 10 | L134: 2 | M134: 72 | N134: 72 | O134: 0 | P134: Очная | Q134: Обычное | R134: АУД | T134: 43300.00 | U134: 6000.00 | V134: 08.043 B: | W134: 08.043: Экономист предприятия | Y134: 50020347 | Z134: 601.39
A135: 98 | B135: 91 | C135: 06: Экономика промышленности и управление | D135: 01: Экономика и управление предприятиями ТЭК | E135: Планирование производственно-хозяйственной деятельности предприятий ТЭК | F135: Руководители и специалисты профильных подразделений | G135: повышение квалификации | H135: 03 0601 061: Финансовое планирование, бюджетирование и управленческий учет в компании | I135: Планирование и прогнозирование в условиях неопределенности. Организация финансового планирования на предприятии. Прогнозирование на основе данных статистики, анализа технологических трендов, макроэкономического анализа. Каскадирование стратегических целей компании. Взаимосвязь стратегического и финансового планирования. Построение экономической модели компании. Связь экономической модели с финансовой моделью компании. Прогнозирование развития бизнес модели компании. Классификация затрат для целей планирования и бюджетирования. Модели поведения затрат. Планирование на основе анализа безубыточности. Маржинальный доход. Операционный рычаг. Граница безопасности. Бюджетирование, ориентированное на результат. Виды бюджетов. Кейс на технику составления бюджетов. Прогнозирование будущего финансового состояния Компании, прогнозирование ликвидности, оборачиваемости, рентабельности. Практические навыки, получаемые слушателями по окончании обучения: овладение инструментами и методами управленческого учета и финансового планирования в целях эффективного управления предприятием. | J135: 5 | K135: 5 | L135: 0 | M135: 40 | N135: 40 | O135: 0 | P135: Очная | Q135: Обычное | R135: АУД | T135: 28500.00 | U135: 6000.00 | V135: 08.043 B: | W135: 08.043: Экономист предприятия | Y135: 50027778 | Z135: 712.50
A136: 99 | B136: 92 | C136: 06: Экономика промышленности и управление | D136: 01: Экономика и управление предприятиями ТЭК | E136: Управление рисками | F136: Руководители и специалисты профильных подразделений | G136: повышение квалификации | H136: 03 0601 069: Управление рисками в нефтегазовой отрасли | I136: Характеристики и типы рисков с точки зрения неопределенности. Стратегии управления рисками. Классификация рисков по различным критериям. Международные, национальные стандарты управления рисками, СТО Газпром. Структура менеджмента риска. Процесс управления рисками. Основные технологии оценки рисков. Система управления рисками ПАО «Газпром». Практические навыки, получаемые слушателями по окончании обучения: документирование процесса управления рисками в рамках отдельных бизнес-процессов, направлений; применение методов анализа источников и факторов риска. | J136: 5 | K136: 5 | L136: 0 | M136: 40 | N136: 40 | O136: 0 | P136: Очная | Q136: Обычное | R136: АУД | T136: 28500.00 | U136: 6000.00 | V136: 08.018 B: | W136: 08.018: Специалист по управлению рисками | Y136: 50045058 | Z136: 712.50
A137: 101 | B137: 93 | C137: 06: Экономика промышленности и управление | D137: 01: Экономика и управление предприятиями ТЭК | E137: Управление проектами в газовой промышленности | F137: Руководители и специалисты профильных и непрофильных подразделений | G137: повышение квалификации | H137: 03 0601 075: Системное управление проектами на предприятии | I137: Методология управления проектами: управление проектами в современных условиях; отбор проектов по количественным и качественным показателям; управление стейкхолдерами проекта; управление рисками проекта; формализация проекта. Основы планирования: декомпозиция работ, сетевой план и календарный график проекта. Оценка состояния и хода выполнения работ по проекту. Аудит и завершение работы над проектом. Автоматизация управления проектами на предприятии. Оптимизация системы управления проектами на предприятии. Подведение итогов и завершающее тестирование. Практические навыки, получаемые слушателями по окончании обучения: практическое применение методов проектного управления в организации. | J137: 5 | K137: 5 | L137: 0 | M137: 40 | N137: 40 | O137: 0 | P137: Очная | Q137: Обычное | R137: АУД | T137: 39500.00 | U137: 6000.00 | Y137: 50029568 | Z137: 987.50
A138: 102 | B138: 94 | C138: 06: Экономика промышленности и управление | D138: 01: Экономика и управление предприятиями ТЭК | E138: Производственно-экономический анализ хозяйственной деятельности предприятия и принятие управленческих решений | F138: Руководители и специалисты профильных подразделений | G138: повышение квалификации | H138: 03 0601 077: Анализ финансово-экономической и хозяйственной деятельности предприятия | I138: Информационная база экономического анализа. Методика экспресс-анализа бухгалтерской отчетности. Инвестиционный анализ. Анализ финансовых результатов. Система показателей рентабельности. Анализ эффективности использования основных производственных фондов. Анализ и управление денежными потоками компании. Анализ финансового состояния предприятия. Практические навыки, получаемые слушателями по окончании обучения: проведение анализа финансово-хозяйственной деятельности предприятия, использование результата анализа для стратегического планирования, моделирование финансовых переменных. | J138: 5 | K138: 5 | L138: 0 | M138: 40 | N138: 40 | O138: 0 | P138: Очная | Q138: Обычное | R138: АУД | T138: 28500.00 | U138: 6000.00 | V138: 08.043 A: | W138: 08.043: Экономист предприятия | Y138: 50033269 | Z138: 712.50
A139: 104 | B139: 95 | C139: 06: Экономика промышленности и управление | D139: 01: Экономика и управление предприятиями ТЭК | E139: Системы менеджмента и сертификации | F139: Руководители и специалисты профильных подразделений | G139: повышение квалификации | H139: 03 0601 083: Особенности применения риск-ориентированного подхода в рамках управления процессами системы менеджмента качества | I139: Риск-ориентированный подход. Обзор новой версии стандарта ГОСТ Р ИСО 9001-2015. Переход на риск-ориентированный подход в соответствии с рекомендациями ГОСТ Р 57189-2016/ISO/TS 9002:2016 Системы менеджмента качества. Руководство по применению ИСО 9001:2015. Основные подходы к процедуре идентификации, анализа и оценке рисков в соответствии с требованиями ГОСТ Р ИСО 31000-2010 «Менеджмент риска. Принципы и руководство». План управления рисками. Роли, ответственность, документация. Обзор основных методов оценки рисков процессов в соответствии с требованиями ГОСТ Р ИСО/МЭК 31010-2011 «Менеджмент риска. Методы оценки риска». Рекомендации по составлению общей процедуры оценки рисков процессов СМК. Обзор СТО Газпром 9004-2007 «Системы менеджмента качества. Рекомендации по улучшению. Часть I. Руководство по анализу видов и последствий несоответствий при проектировании продукции и производственных процессов». Практические навыки, получаемые слушателями по окончании обучения: документирование процесса управления рисками; идентификация факторов и источников рисков; оценка и анализ рисков с разработкой плана мероприятий по управлению; выбор технологий оценки, мониторинг и оценка эффективности системы управления рисками, документирование результатов. | J139: 5 | K139: 5 | L139: 0 | M139: 40 | N139: 40 | O139: 0 | P139: Очная | Q139: Обычное | R139: АУД | T139: 28500.00 | U139: 6000.00 | V139: 40.062 B: | W139: 40.062: Специалист по качеству | Y139: 50035918 | Z139: 712.50
A140: 105 | B140: 96 | C140: 06: Экономика промышленности и управление | D140: 01: Экономика и управление предприятиями ТЭК | E140: Системы менеджмента и сертификации | F140: Руководители и специалисты профильных подразделений | G140: повышение квалификации | H140: 03 0601 091: Улучшение системы менеджмента качества соответствии с требованиями ГОСТ Р ИСО 9001-2015 (СТО Газпром 9001-2018). Инструменты и методы | I140: Инструменты улучшения для процессов управления инфраструктурой и производственной средой. Элементы бережливого производства. Методика решения локальных проблем 8 D. Определение значимости требований заинтересованных сторон методом парного сравнения. Практические навыки, получаемые слушателями по окончании обучения: применение некоторых методов бережливого производства (ТРМ, SMED, 8D), методов оценки и анализа (метод парного сравнения); построение алгоритма постоянного улучшения процессов. | J140: 5 | K140: 5 | L140: 0 | M140: 40 | N140: 40 | O140: 0 | P140: Очная | Q140: Обычное | R140: АУД | T140: 28500.00 | U140: 6000.00 | V140: 40.062 B: | W140: 40.062: Специалист по качеству | Y140: 50038085 | Z140: 712.50
A141: 107 | B141: 97 | C141: 06: Экономика промышленности и управление | D141: 01: Экономика и управление предприятиями ТЭК | E141: Системы менеджмента и сертификации | F141: Руководители и специалисты профильных подразделений | G141: повышение квалификации | H141: 03 0601 104: Система пищевой безопасности для предприятий общественного питания, взаимодействующих с участниками ПАО «Газпром» | I141: Обзор требований ТР ТС 021/2011 «О безопасности пищевой продукции», СанПиН 2.3/2.4.3590-20 «Санитарно-эпидемиологические требования к организации общественного питания населения», СанПин 2.3.2.1078-01 «Гигиенические требования безопасности и пищевой ценности пищевых продуктов», СП 1.1.1058-01 «Организация и проведение производственного контроля за соблюдением санитарных правил и выполнением санитарно-противоэпидемических (профилактических) мероприятий». Стандарты пищевой безопасности в отношении услуг общественного питания. Практические навыки, получаемые слушателями по окончании обучения: применение методов «диаграмма рисков», «Дерево принятия решений», «CARVER+SHOCK». | J141: 5 | K141: 5 | L141: 0 | M141: 40 | N141: 40 | O141: 0 | P141: Очная | Q141: Обычное | R141: АУД | T141: 28500.00 | U141: 6000.00 | V141: 40.062 A: | W141: 40.062: Специалист по качеству | Y141: 50041840 | Z141: 712.50
A142: 108 | B142: 98 | C142: 06: Экономика промышленности и управление | D142: 01: Экономика и управление предприятиями ТЭК | E142: Системы менеджмента и сертификации | F142: Руководители и специалисты профильных подразделений | G142: повышение квалификации | H142: 03 0601 109: Управление документами и записями СМК в соответствии с требованиями ГОСТ ISO/IEC 17025-2019 (вариант А) | I142: Федеральный закон «Об аккредитации в национальной системе аккредитации». Основные понятия, цели, принципы. Участники национальной системы аккредитации. Порядок проведения аккредитации лабораторий и подтверждение компетентности в соответствии с ФЗ № 412 от 28.12.2013 «Об аккредитации в национальной системе аккредитации». Разработка процедур СМК в соответствии с требованиями Критериев аккредитации и ГОСТ ISO/IEC 17025-2019. Цели и задачи контроля качества в лаборатории. Внутренний контроль и анализ системы менеджмента качества. Практические навыки, получаемые слушателями по окончании обучения: разработка документации СМК в соответствии с требованиями Критериев аккредитации и ГОСТ ISO/IEC 17025-2019. | J142: 5 | K142: 5 | L142: 0 | M142: 40 | N142: 40 | O142: 0 | P142: Очная | Q142: Обычное | R142: АУД | T142: 28500.00 | U142: 6000.00 | V142: 40.062 B: | W142: 40.062: Специалист по качеству | Y142: 50041841 | Z142: 712.50
A143: 109 | B143: 99 | C143: 06: Экономика промышленности и управление | D143: 01: Экономика и управление предприятиями ТЭК | E143: Системы менеджмента и сертификации | F143: Руководители и специалисты профильных подразделений | G143: повышение квалификации | H143: 03 0601 111: Внутренний аудит системы менеджмента качества, разработанной в соответствии с требованиями СТО Газпром 9001-2018 | I143: Общие сведения о процессе внутреннего аудита. Термины и определения. Требования к внутреннему аудиту, группе внутренних аудиторов. Обзор требований СТО Газпром 9001-2018, ГОСТ Р ИСО 19011-2021. Планирование процесса внутреннего аудита. Формирование рабочей документации. Идентификация несоответствий и определение коррекций и корректирующих действий. Правила к составлению отчетной документации по внутреннему аудиту. Охрана труда и промышленная безопасность. Основы экологии и экологическая безопасность. Практические навыки, получаемые слушателями по окончании обучения: применение методов оценки рисков при планировании и осуществлении внутренних аудитов, опрос и составление рабочей документации, идентификация и фиксирование несоответствий; составление плана внутреннего аудита, разработка плана коррекций и корректирующих действий. | J143: 5 | K143: 5 | L143: 0 | M143: 40 | N143: 40 | O143: 0 | P143: Очная | Q143: Обычное | R143: АУД | T143: 28500.00 | U143: 6000.00 | V143: 40.062 B: | W143: 40.062: Специалист по качеству | Y143: 50045053 | Z143: 712.50
A144: 111 | B144: 100 | C144: 06: Экономика промышленности и управление | D144: 01: Экономика и управление предприятиями ТЭК | E144: Стратегическое планирование и стратегический менеджмент | F144: Руководители и специалисты профильных подразделений | G144: повышение квалификации | H144: 03 0601 113: Финансовый и инвестиционный менеджмент предприятия, принятие эффективных решений в области финансовых стратегий | I144: Основные понятия финансового менеджмента. Финансовый анализ, управленческая отчетность. Финансовое планирование в управлении предприятием. Экономическая оценка инвестиций. Инвестиционное управление. Инвестиционный анализ и бизнес-планирование. Управление рисками. Психологические аспекты деятельности специалистов экономических служб. Основы трудового законодательства. Практические навыки, получаемые слушателями по окончании обучения: принятие эффективных решений в области финансовых стратегий. | J144: 12 | K144: 10 | L144: 2 | M144: 72 | N144: 72 | O144: 0 | P144: Очная | Q144: Обычное | R144: АУД | T144: 43300.00 | U144: 6000.00 | V144: 08.043 A: | W144: 08.043: Экономист предприятия | Y144: 50045055 | Z144: 601.39
A145: 112 | B145: 101 | C145: 06: Экономика промышленности и управление | D145: 01: Экономика и управление предприятиями ТЭК | E145: Управление предприятием ТЭК | F145: Руководители и специалисты непрофильных подразделений | G145: повышение квалификации | H145: 03 0601 115: Базовые основы анализа финансово-хозяйственной деятельности | I145: Основные понятия бухгалтерского учета. Бухгалтерская отчетность, порядок ее составления. Основы финансового анализа, управленческий анализ. Основы бюджетирования. Практические навыки, получаемые слушателями по окончании обучения: анализ бухгалтерской и управленческой отчетности с целью принятия эффективных управленческих решений. | J145: 5 | K145: 5 | L145: 0 | M145: 40 | N145: 40 | O145: 0 | P145: Очная | Q145: Обычное | R145: АУД | T145: 28500.00 | U145: 6000.00 | Y145: 50045057 | Z145: 712.50
A146: 113 | B146: 102 | C146: 06: Экономика промышленности и управление | D146: 01: Экономика и управление предприятиями ТЭК | E146: Управление предприятием ТЭК | F146: Руководители непрофильных подразделений | G146: повышение квалификации | H146: 03 0601 116: Основы финансового учета и анализа для руководителей | I146: Основные понятия бухгалтерского учета. Бухгалтерская отчетность, порядок ее составления. Основы финансового анализа, управленческий анализ. Разработка управленческих решений на основе финансового и инвестиционного анализа. Практические навыки, получаемые слушателями по окончании обучения: анализ бухгалтерской и управленческой отчетности с целью принятия эффективных управленческих решений. | J146: 5 | K146: 5 | L146: 0 | M146: 40 | N146: 40 | O146: 0 | P146: Очная | Q146: Обычное | R146: АУД | T146: 28500.00 | U146: 6000.00 | Y146: 50045056 | Z146: 712.50
A147: 114 | B147: 103 | C147: 06: Экономика промышленности и управление | D147: 02: Экономика труда | E147: Совершенствование форм и методов научной организации труда | F147: Руководители и специалисты профильных подразделений | G147: повышение квалификации | H147: 03 0602 003: Нормирование труда и организация нормативно-исследовательской работы | I147: Нормирование как основа организации труда. Организация нормативно-исследовательской работы. Методы нормирования труда. Особенности нормирования труда в ПАО «Газпром». Организация и регулирование оплаты труда. Регулирование социально-трудовых отношений. Практические навыки, получаемые слушателями по окончании обучения: работа с нормативными документами, использование методов нормативной работы. | J147: 5 | K147: 5 | L147: 0 | M147: 40 | N147: 40 | O147: 0 | P147: Очная | Q147: Обычное | R147: АУД | T147: 39500.00 | U147: 6000.00 | V147: 08.038 A: | W147: 08.038: Специалист по экономике труда | Y147: 50020258 | Z147: 987.50
V148: 08.038 B: | W148: 08.038: Специалист по экономике труда
A149: 116 | B149: 104 | C149: 06: Экономика промышленности и управление | D149: 03: Экономика материально-технических ресурсов | E149: Экономика и управление материально-техническими ресурсами | F149: Специалисты профильных подразделений | G149: повышение квалификации | H149: 03 0603 081: Расчёт стоимости жизненного цикла оборудования на предприятиях нефтегазового комплекса | I149: Общие принципы расчета стоимости жизненного цикла по ГОСТ Р МЭК 60300-3-3-2021. Понятие и факторы модели стоимости жизненного цикла оборудования. Инжиниринг в управлении закупками оборудования. Стадии жизненного цикла эксплуатации оборудования. Структура затрат на владение оборудованием и структура затрат на протяжении жизненного цикла эксплуатации оборудования. Расчет затрат на содержание и эксплуатацию оборудования. Методы расчета стоимости по стадиям жизненного цикла оборудования. Оценка эффективности капиталовложений в оборудование. Особенности оценки стоимости жизненного цикла инновационных объектов. Утилизация оборудования. Практические навыки, получаемые слушателями по окончании обучения: разработка модели и расчет стоимости жизненного цикла различных групп оборудования. | J149: 5 | K149: 5 | L149: 0 | M149: 40 | N149: 40 | O149: 0 | P149: Очная | Q149: Обычное | R149: АУД | T149: 28500.00 | U149: 6000.00 | Y149: 50033271 | Z149: =T149/M149 -> 712.50
A150: 117 | B150: 105 | C150: 06: Экономика промышленности и управление | D150: 03: Экономика материально-технических ресурсов | E150: Экономика и управление материально-техническими ресурсами | F150: Руководители и специалисты профильных подразделений | G150: повышение квалификации | H150: 03 0603 084: Современные технологии материально-технического обеспечения в газодобывающих, газотранспортных и газораспределительных компаниях | I150: Планирование материально-технического обеспечения. Правовое обеспечение деятельности служб материально-технического обеспечения. Система менеджмента качества и управления ресурсами организации. Программное обеспечение материально-технического обеспечения. Практические навыки, получаемые слушателями по окончании обучения: использование современных методов организации и управления МТО; анализ использования ресурсов, разработка и внедрение мер по повышению эффективности их потребления (использования); разработка и внедрение действующих схем поставок; минимизации затрат на транспортировку ТМЦ; оценка поставщиков МТР; применение СМК и СУР для МТО. | J150: 5 | K150: 5 | L150: 0 | M150: 40 | N150: 40 | O150: 0 | P150: Очная | Q150: Обычное | R150: АУД | T150: 39500.00 | U150: 6000.00 | Y150: 50035922 | Z150: 987.50
A151: 37 | B151: 106 | C151: 06: Экономика промышленности и управление | D151: 04: Финансы и кредит | E151: Финансовый менеджмент | F151: Руководители и специалисты профильных подразделений | G151: повышение квалификации | H151: 03 0604 119: Управление финансами и финансовое планирование организации | I151: Финансирование бизнеса и финансовые рынки. Источники финансовых ресурсов. Финансовые инструменты. Финансовое планирование деятельности. Системы финансового планирования. Бюджетирование бизнес-процессов. Управление оборотным капиталом. Стратегия формирования оборотного капитала организации. Управление запасами. Управление дебиторской задолженностью. Управление денежными средствами и денежными потоками. Практические навыки, получаемые слушателями по окончании обучения: управления финансами и финансовое планирование организации. | J151: 5 | K151: 5 | L151: 0 | M151: 40 | N151: 40 | O151: 0 | P151: Очная | Q151: Обычное | R151: АУД | S151: Программа Института профессиональных бухгалтеров и аудиторов России. По окончании обучения выдается удостоверение о повышении квалификации установленного образца и сертификат ИПБ России | T151: 39500.00 | U151: 6000.00 | V151: 08.002 B: | W151: 08.002: Бухгалтер | X151: Новый | Z151: =T151/M151 -> 987.50
A152: 118 | B152: 107 | C152: 06: Экономика промышленности и управление | D152: 04: Финансы и кредит | E152: Финансовый менеджмент | F152: Руководители и специалисты профильных подразделений | G152: повышение квалификации | H152: 03 0604 051: Эффективное бюджетирование в современной компании | I152: Финансовая стратегия компании. Сущность бюджетирования и его роль в системе управления компанией. Методы формирования сводного бюджета. Методы финансового прогнозирования. Организация бюджетирования. Особенности проведения аудиторских проверок. Бухгалтерский учет в части налогов. Управленческий учет и обоснование управленческих решений. Oргaнизaциoннaя cтруктурa кoмпaнии и прoцеcc бюджетирoвaния. Бюджетирoвaние кaк cocтaвнaя чacть cиcтемы упрaвленчеcкoгo учетa. Принципы рaзрaбoтки cтруктуры бюджетирoвaния. Oргaнизaция упрaвления бюджетaми. Практические аспекты бюджетирования. Блок финансовых бюджетов. Методики построения финансовых бюджетов. Сводный (основной) бюджет компании. Ocoбеннocти бюджетнoгo прoцеcca нa прoизвoдcтвенных предприятиях. Стратегически ориентированное бюджетирование. Прoблемы пocтaнoвки бюджетирoвaния. Ocнoвные прoблемы, вoзникaющие при внедрении бюджетирoвaния. Этaпы реaлизaции прoектa пo внедрению cиcтемы бюджетирoвaния. Кoнтрoль зa иcпoлнением бюджетoв. Информационные технологии в бюджетировании. Практические навыки, получаемые слушателями по окончании обучения: составление эффективных бюджетов Компании, анализ бюджетов, контроль за исполнением бюджетов. | J152: 12 | K152: 10 | L152: 2 | M152: 72 | N152: 72 | O152: 0 | P152: Очная | Q152: Обычное | R152: АУД | T152: 43300.00 | U152: 6000.00 | V152: 08.043 B: | W152: 08.043: Экономист предприятия | Y152: 50020471 | Z152: 601.39
A153: 122 | B153: 108 | C153: 06: Экономика промышленности и управление | D153: 04: Финансы и кредит | E153: Финансовый и банковский контроллинг денежных средств | F153: Руководители и специалисты профильных подразделений | G153: повышение квалификации | H153: 03 0604 072: Управление денежными средствами. Прогнозирование, анализ, контроль денежных потоков | I153: Построение эффективной системы управления денежными потоками. Управление операционным денежным потоком. Планирование движения денежных средств (ДДС). Контроль исполнения бюджетов, плановых показателей. Анализ движения денежных средств. Внутреннее казначейство, методы перераспределения ресурсов внутри холдинга. Внешнее казначейство: методы организации работы с финансовыми учреждениями. Практические навыки, получаемые слушателями по окончании обучения: управление денежными средствами: прогнозирование, анализ, контроль денежных потоков. | J153: 5 | K153: 5 | L153: 0 | M153: 40 | N153: 40 | O153: 0 | P153: Очная | Q153: Обычное | R153: АУД | T153: 28500.00 | U153: 6000.00 | Y153: 50029572 | Z153: 712.50
A154: 124 | B154: 109 | C154: 06: Экономика промышленности и управление | D154: 04: Финансы и кредит | E154: Финансовый менеджмент | F154: Руководители и специалисты профильных подразделений | G154: повышение квалификации | H154: 03 0604 078: Управление затратами на предприятии нефтегазового комплекса | I154: Управление затратами для решения управленческих задач. Использование маржинального анализа. Финансовая структура компании. Учет затрат. Разработка учетной политики по управленческому учету. Разработка стандартов/нормативов расходования материалов, загрузки, производительности, затрат на оплату труда, накладных расходов, прибыли. Анализ отклонений и их причин как основной инструмент контроля затрат. Подходы к оценке эффективности затрат. Учет рисков в управлении затратами компании. Практические навыки, получаемые слушателями по окончании обучения: оценка влияния конкретного вида затрат на результат деятельности всей компании, оптимизация затрат, распределение полномочий и ответственности за затраты. | J154: 5 | K154: 5 | L154: 0 | M154: 40 | N154: 40 | O154: 0 | P154: Очная | Q154: Обычное | R154: АУД | T154: 28500.00 | U154: 6000.00 | Y154: 50033272 | Z154: 712.50
A155: 125 | B155: 110 | C155: 06: Экономика промышленности и управление | D155: 04: Финансы и кредит | E155: Финансовый менеджмент | F155: Руководители непрофильных подразделений | G155: повышение квалификации | H155: 03 0604 079: Финансовый менеджмент для руководителей предприятий | I155: Роль финансового менеджмента в управлении компанией. Виды учета. Управление затратами. Бюджет подразделения. Ценообразование на предприятии. Основные отчеты управленческого учета. Финансовая отчетность. Финансовый анализ как инструмент для принятия управленческих решений. Практические навыки, получаемые слушателями по окончании обучения: управление финансовыми процессами предприятия, применение эффективного инструментария в сфере финансового менеджмента. | J155: 5 | K155: 5 | L155: 0 | M155: 40 | N155: 40 | O155: 0 | P155: Очная | Q155: Обычное | R155: АУД | T155: 28500.00 | U155: 6000.00 | Y155: 50033273 | Z155: 712.50
A156: 126 | B156: 111 | C156: 06: Экономика промышленности и управление | D156: 04: Финансы и кредит | E156: Управление инвестициями, оценка стоимости бизнеса | F156: Руководители и специалисты профильных подразделений | G156: повышение квалификации | H156: 03 0604 086: Внутренний аудит и управление финансовыми рисками | I156: Требования к внутреннему контролю и аудиту в РФ. Рабочие процедуры внутреннего аудита и СВК. Аудит отдельных направлений финансово-хозяйственной деятельности предприятия на предмет соответствия актуальным требованиям законодательства и рискам. Основные методы оценки уровня финансовых рисков. Сущность и цели анализа финансовых рисков. Методы качественного анализа финансовых рисков. Статистические методы количественной оценки и диагностики финансовых рисков. Управление финансовыми рисками предприятия. Практические навыки, получаемые слушателями по окончании обучения: выявление финансовых рисков и снижение их влияния на результаты деятельности общества (организации). | J156: 5 | K156: 5 | L156: 0 | M156: 40 | N156: 40 | O156: 0 | P156: Очная | Q156: Обычное | R156: АУД | T156: 28500.00 | U156: 6000.00 | V156: 08.010 A: | W156: 08.010: Внутренний аудитор | Y156: 50035923 | Z156: 712.50
A157: 50 | B157: 112 | C157: 06: Экономика промышленности и управление | D157: 05: Бухгалтерский учет и налогообложение | E157: Актуальные вопросы бухучёта и налогообложения | F157: Руководители и специалисты профильных подразделений | G157: повышение квалификации | H157: 03 0605 121: Актуальные вопросы составления и анализа бухгалтерской (финансовой) отчетности | I157: Обзор действующих ФСБУ с учетом новых изменений. Практика применения действующих ФСБУ: проблемы, сложные вопросы. Аналитические аспекты бухгалтерской (финансовой) для принятия управленческих решений. Практические навыки, получаемые слушателями по окончании обучения: составление и анализ бухгалтерской (финансовой) отчетности. | J157: 12 | K157: 10 | L157: 2 | M157: 72 | N157: 72 | O157: 0 | P157: Очная | Q157: Обычное | R157: АУД | T157: 43300.00 | U157: 6000.00 | V157: 08.002 B: | W157: 08.002: Бухгалтер | X157: Новый | Z157: =T157/M157 -> 601.39
A158: 51 | B158: 113 | C158: 06: Экономика промышленности и управление | D158: 05: Бухгалтерский учет и налогообложение | E158: Актуальные вопросы бухучёта и налогообложения | F158: Руководители и специалисты профильных подразделений | G158: повышение квалификации | H158: 03 0605 122: Актуальные вопросы составления бухгалтерской (финансовой) отчетности | I158: Обзор действующих ФСБУ с учетом новых изменений. Практика применения действующих ФСБУ: проблемы, сложные вопросы. Значимость бухгалтерской (финансовой) отчетности. Практические навыки, получаемые слушателями по окончании обучения: составление бухгалтерской (финансовой) отчетности. | J158: 5 | K158: 5 | L158: 0 | M158: 40 | N158: 40 | O158: 0 | P158: Очная | Q158: Обычное | R158: АУД | T158: 28500.00 | U158: 6000.00 | V158: 08.002 B: | W158: 08.002: Бухгалтер | X158: Новый | Z158: =T158/M158 -> 712.50
A159: 127 | B159: 114 | C159: 06: Экономика промышленности и управление | D159: 05: Бухгалтерский учет и налогообложение | E159: Актуальные вопросы бухучёта и налогообложения | F159: Руководители и специалисты профильных подразделений | G159: повышение квалификации | H159: 03 0605 015: Изменения законодательных и нормативных актов по учету, контролю, налогам и праву | I159: Новое в регулировании учета, в аудите и налогообложении. Изменения законодательства Российской Федерации по учету, контролю и налогообложению. Особенности учета отдельных активов, обязательств и капитала организации. Особенности проведения аудиторских проверок. Аспекты внутреннего аудита. Основные вопросы учетной политики в целях бухгалтерского и налогового учета в свете изменений законодательных и нормативных актов по учету и налогообложению. Обзор арбитражной практики по налоговым спорам. Практические навыки, получаемые слушателями по окончании обучения: применение в учете и аудите изменений законодательных и нормативных актов по учету, налогообложению, аудиту и праву, разработка учетной и налоговой политики с учетом изменений в законодательных и нормативных актах, использование в практике результатов арбитражных споров. | J159: 12 | K159: 10 | L159: 2 | M159: 72 | N159: 72 | O159: 0 | P159: Очная | Q159: Обычное | R159: АУД | T159: 43300.00 | U159: 6000.00 | V159: 08.002 B: | W159: 08.002: Бухгалтер | Y159: 50021628 | Z159: 601.39
A160: 36 | B160: 115 | C160: 06: Экономика промышленности и управление | D160: 05: Бухгалтерский учет и налогообложение | E160: Актуальные вопросы бухучёта и налогообложения | F160: Руководители и специалисты профильных подразделений | G160: повышение квалификации | H160: 03 0605 118: Новое в нормативном регулировании и актуальные проблемы практики налогообложения | I160: Общие положения налогового права. Практика применения положений Налогового Кодекса с учетом поправок к Налоговому Кодексу РФ. Практика налогообложения организаций и физических лиц. Налог на добавленную стоимость. Налог на прибыль организаций. Налог на доходы физических лиц. Страховые взносы. Налог на имущество организаций. Транспортный налог. Упрощенная система налогообложения. Земельный налог. Практические навыки, получаемые слушателями по окончании обучения: применение положений Налогового Кодекса РФ. | J160: 5 | K160: 5 | L160: 0 | M160: 40 | N160: 40 | O160: 0 | P160: Очная | Q160: Обычное | R160: АУД | S160: Программа Института профессиональных бухгалтеров и аудиторов России. По окончании обучения выдается удостоверение о повышении квалификации установленного образца и сертификат ИПБ России | T160: 39500.00 | U160: 6000.00 | V160: 08.002 B: | W160: 08.002: Бухгалтер | X160: Новый | Z160: =T160/M160 -> 987.50
A161: 38 | B161: 116 | C161: 06: Экономика промышленности и управление | D161: 05: Бухгалтерский учет и налогообложение | E161: Актуальные вопросы бухучёта и налогообложения | F161: Руководители и специалисты профильных подразделений | G161: повышение квалификации | H161: 03 0605 120: Учет затрат на производство, доходов и расходов, финансового результата отчетного года | I161: Синтетический и аналитический учет общепроизводственных расходов, общехозяйственных расходов, вспомогательных производств, основного производства. Учет брака. Учет затрат в обслуживающих производствах и хозяйствах. Оценка и учет запасов незавершенного производства и полуфабрикатов собственной выработки. Учет затрат по элементам. Учет расходов на продажу продукции, товаров, работ и услуг. Типовая корреспонденция счетов. Учет доходов и расходов, финансового результата отчетного года. Общие требования. Доходы и расходы от обычных видов деятельности. Прочие доходы и расходы. Признание доходов и расходов. Формирование финансового результата отчетного года. Раскрытие информации. Типовая корреспонденция счетов. Требования к синтетическому и аналитическому учету. Практические навыки, получаемые слушателями по окончании обучения: учет затрат на производство, доходов и расходов, финансового результата отчетного года. | J161: 5 | K161: 5 | L161: 0 | M161: 40 | N161: 40 | O161: 0 | P161: Очная | Q161: Обычное | R161: АУД | S161: Программа Института профессиональных бухгалтеров и аудиторов России. По окончании обучения выдается удостоверение о повышении квалификации установленного образца и сертификат ИПБ России | T161: 39500.00 | U161: 6000.00 | V161: 08.002 B: | W161: 08.002: Бухгалтер | X161: Новый | Z161: =T161/M161 -> 987.50
A162: 128 | B162: 117 | C162: 06: Экономика промышленности и управление | D162: 05: Бухгалтерский учет и налогообложение | E162: Актуальные вопросы бухучёта и налогообложения | F162: Руководители и специалисты профильных подразделений | G162: повышение квалификации | H162: 03 0605 016: Современные аспекты учета основных средств | I162: Организация учета основных средств. Экономическое обоснование методов амортизации основных средств. Особенности учета поступлений и выбытия основных средств. Отражение в учете лизинговых операций. Обоснование методов учета расходов на ремонт основных средств. Вопросы налогового учета основных средств. Практические навыки, получаемые слушателями по окончании обучения: выбор необходимых методов учета основных средств, правильное определение аспектов налогового учета, решение вопросов определения первоначальной стоимости основных средств. | J162: 5 | K162: 5 | L162: 0 | M162: 40 | N162: 40 | O162: 0 | P162: Очная | Q162: Обычное | R162: АУД | T162: 28500.00 | U162: 6000.00 | V162: 08.002 B: | W162: 08.002: Бухгалтер | Y162: 50020356 | Z162: 712.50
A163: 129 | B163: 118 | C163: 06: Экономика промышленности и управление | D163: 05: Бухгалтерский учет и налогообложение | E163: Актуальные вопросы бухучёта и налогообложения | F163: Руководители и специалисты профильных подразделений | G163: повышение квалификации | H163: 03 0605 050: Особенности учета оборотных средств | I163: Нормативно правовые документы, регулирующие учет оборотных средств. Раскрытие информации об оборотных активах в учетной политике и отчетности. Понятие оборотных средств, их структура и классификация. Организация синтетического и аналитического учета оборотных средств. Актуальные проблемы контроля за расходованием и наличием материалов. Особенности налогового учета оборотных средств. Практические навыки, получаемые слушателями по окончании обучения: определение методов бухгалтерского и налогового учета оборотных средств, проведение контроля за движением оборотных средств, правильное документирование операций с оборотными средствами. | J163: 5 | K163: 5 | L163: 0 | M163: 40 | N163: 40 | O163: 0 | P163: Очная | Q163: Обычное | R163: АУД | T163: 28500.00 | U163: 6000.00 | V163: 08.002 B: | W163: 08.002: Бухгалтер | Y163: 50020662 | Z163: 712.50
A164: 130 | B164: 119 | C164: 06: Экономика промышленности и управление | D164: 05: Бухгалтерский учет и налогообложение | E164: Актуальные вопросы бухучёта и налогообложения | F164: Специалисты профильных подразделений | G164: повышение квалификации | H164: 03 0605 053: Индивидуальная бухгалтерская (финансовая) отчетность и ее анализ | I164: Бухгалтерская (финансовая) отчётность как основной источник информации для анализа финансового состояния организации. Анализ бухгалтерской (финансовой) отчётности организации. Использование методов финансового анализа для целей дополнительного раскрытия информации в бухгалтерской (финансовой) отчетности. Практические навыки, получаемые слушателями по окончании обучения: обновление и пополнение знаний в области составления эффективных бюджетов компании, проведения анализа и контроля за бюджетом. Программа Института профессиональных бухгалтеров и аудиторов России. По окончании обучения выдается удостоверение о повышении квалификации установленного образца и сертификат ИПБ России. | J164: 5 | K164: 5 | L164: 0 | M164: 40 | N164: 40 | O164: 0 | P164: Очная | Q164: Обычное | R164: АУД | T164: 39500.00 | U164: 6000.00 | V164: 08.002 B: | W164: 08.002: Бухгалтер | Y164: 50021139 | Z164: 987.50
A165: 131 | B165: 120 | C165: 06: Экономика промышленности и управление | D165: 05: Бухгалтерский учет и налогообложение | E165: Актуальные вопросы бухучёта и налогообложения | F165: Специалисты профильных подразделений | G165: повышение квалификации | H165: 03 0605 054: Налоговые расчеты на базе бухгалтерского учета | I165: Система бухгалтерского учета. Общие принципы начисления налогов. Налог на прибыль организации и учет расчетов по налогу на прибыль в соответствии с Положением по бухгалтерскому учёту «Учёт расчетов по налогу на прибыль» ПБУ 18/2. Налог на добавленную стоимость. Налог на имущество организаций. Упрощенная система налогообложения. Страховые взносы. Налог на доходы физических лиц. Практические навыки, получаемые слушателями по окончании обучения: составление расчетов и деклараций по налогам с учётом требования налогового законодательства на базе бухгалтерского учёта, использование бухгалтерской информацию для исчисления налогов, исходя из особенностей исчисления каждого налога. Программа Института профессиональных бухгалтеров и аудиторов России. По окончании обучения выдается удостоверение о повышении квалификации установленного образца и сертификат ИПБ России. | J165: 5 | K165: 5 | L165: 0 | M165: 40 | N165: 40 | O165: 0 | P165: Очная | Q165: Обычное | R165: АУД | T165: 39500.00 | U165: 6000.00 | V165: 08.002 B: | W165: 08.002: Бухгалтер | Y165: 50021140 | Z165: 987.50
A166: 132 | B166: 121 | C166: 06: Экономика промышленности и управление | D166: 05: Бухгалтерский учет и налогообложение | E166: Актуальные вопросы бухучёта и налогообложения | F166: Руководители и специалисты профильных подразделений | G166: повышение квалификации | H166: 03 0605 062: Новое в налоговом законодательстве. Актуальные вопросы исчисления налогов | I166: Изменения в налоговом законодательстве. Налог на прибыль. Земельный налог. НДФЛ. Налог на имущество. Налоговые и финансовые аспекты в корпоративном управлении. Транспортный налог. В процессе обучения проводится психологический тренинг. Практические навыки, получаемые слушателями по окончании обучения: умение использовать нововведения в налоговом законодательстве для исчисления налогов. | J166: 5 | K166: 5 | L166: 0 | M166: 40 | N166: 40 | O166: 0 | P166: Очная | Q166: Обычное | R166: АУД | T166: 28500.00 | U166: 6000.00 | V166: 08.002 B: | W166: 08.002: Бухгалтер | Y166: 50027786 | Z166: 712.50
A167: 133 | B167: 122 | C167: 06: Экономика промышленности и управление | D167: 05: Бухгалтерский учет и налогообложение | E167: Актуальные вопросы бухучёта и налогообложения | F167: Специалисты профильных подразделений | G167: повышение квалификации | H167: 03 0605 063: Правовые, бухгалтерские и налоговые аспекты оплаты труда | I167: Порядок заключения трудового договора, гражданско-правового договора и увольнения работника в сложной экономической ситуации. Расчет трудового стажа для начисления пособий, отпуска. Защита персональных данных. Положения коллективного договора и их исполнение. Особенности расчета средней заработной платы для начисления отпускных, пособий по нетрудоспособности, пособия по беременности и родам, пособия по уходу за ребенком. Выплаты государственных пособий с учетом изменений в законодательстве. Страховые взносы. Отпуск: начисляем, учитываем, облагаем. НДФЛ: актуальные вопросы исчисления и уплаты с учетом законодательных изменений. Виды удержаний из заработной платы. В процессе обучения проводится психологический тренинг. Основные положения трудового кодекса. Порядок проведения контрольных мероприятий контролирующими и надзорными органами. Практические навыки, получаемые слушателями по окончании обучения: расчет трудового стажа для начисления пособий, отпуска; начисление отпускных, пособий, страховых взносов и иных выплат. | J167: 5 | K167: 5 | L167: 0 | M167: 40 | N167: 40 | O167: 0 | P167: Очная | Q167: Обычное | R167: АУД | T167: 28500.00 | U167: 6000.00 | V167: 08.002 B: | W167: 08.002: Бухгалтер | Y167: 50027785 | Z167: 712.50
A168: 134 | B168: 123 | C168: 06: Экономика промышленности и управление | D168: 05: Бухгалтерский учет и налогообложение | E168: Актуальные вопросы бухучёта и налогообложения | F168: Специалисты профильных подразделений | G168: повышение квалификации | H168: 03 0605 065 В: Налог на добавленную стоимость. Сложные вопросы, практические примеры исчисления и уплаты налога на добавленную стоимость | I168: Новации налогового кодекса в отношении исчисления и уплаты НДС. Актуальные вопросы по определению налоговой базы для отдельных категорий налогоплательщиков. Судебная практика по спорным вопросам исчисления и уплаты НДС. Счета-фактуры. Внесение исправлений в счета-фактуры. Формирование объектов налогообложения. Исчисление НДС. Оптимизация уплаты НДС. Порядок передачи деклараций с приложениями (книга покупок, книга продаж, журналы счетов-фактур) через электронные каналы связи. Учет налоговых вычетов у посредников (агентов, комиссионеров, заказчиков-застройщиков), в том числе применяющих иные системы налогообложения. В процессе обучения проводится психологический тренинг. Практические навыки, получаемые слушателями по окончании обучения: исчисление НДС в соответствии с требованиями налогового законодательства, оптимизация уплаты НДС, внесение исправлений в счета-фактуры, составление учета налоговых вычетов у посредников. | J168: 5 | K168: 5 | L168: 0 | M168: 40 | N168: 40 | O168: 0 | P168: Очная | Q168: Выездное | R168: АУД | S168: Количество человек в группе - от 15 до 23. | T168: 33500.00 | U168: 0.00 | V168: 08.002 B: | W168: 08.002: Бухгалтер | Y168: 50037702 | Z168: 837.50
A169: 135 | B169: 124 | C169: 06: Экономика промышленности и управление | D169: 05: Бухгалтерский учет и налогообложение | E169: Актуальные вопросы бухучёта и налогообложения | F169: Специалисты профильных подразделений | G169: повышение квалификации | H169: 03 0605 065: Налог на добавленную стоимость. Сложные вопросы, практические примеры исчисления и уплаты налога на добавленную стоимость | I169: Новации налогового кодекса в отношении исчисления и уплаты НДС. Актуальные вопросы по определению налоговой базы для отдельных категорий налогоплательщиков. Судебная практика по спорным вопросам исчисления и уплаты НДС. Счета-фактуры. Внесение исправлений в счета-фактуры. Формирование объектов налогообложения. Исчисление НДС. Оптимизация уплаты НДС. Порядок передачи деклараций с приложениями (книга покупок, книга продаж, журналы счетов-фактур) через электронные каналы связи. Учет налоговых вычетов у посредников (агентов, комиссионеров, заказчиков-застройщиков), в том числе применяющих иные системы налогообложения. В процессе обучения проводится психологический тренинг. Практические навыки, получаемые слушателями по окончании обучения: исчисление и уплата НДС в соответствии с требованиями налогового законодательства, оптимизация уплаты НДС, внесение исправлений в счета-фактуры, составление учета налоговых вычетов у посредников. | J169: 5 | K169: 5 | L169: 0 | M169: 40 | N169: 40 | O169: 0 | P169: Очная | Q169: Обычное | R169: АУД | T169: 28500.00 | U169: 6000.00 | V169: 08.002 B: | W169: 08.002: Бухгалтер | Y169: 50027782 | Z169: 712.50
A170: 137 | B170: 125 | C170: 06: Экономика промышленности и управление | D170: 05: Бухгалтерский учет и налогообложение | E170: Актуальные вопросы бухучёта и налогообложения | F170: Специалисты профильных подразделений | G170: повышение квалификации | H170: 03 0605 068: Учет кассовых операций и расчетов с подотчетными лицами | I170: Нормативная база, регламентирующая порядок работы с наличными денежными средствами. Указания Банка России от 07.10.2013 №3073-У, от 11.03.2014 № 3210-У. Учет денежных средств и денежных документов в кассе. Особенности оформления кассовых документов. Сдача в банк депонированных сумм. Применение лимита расчетов наличными денежными средствами. Инвентаризация кассы. Учет денежных документов. Требования к работе с подотчетными лицами. Расчеты с подотчетными лицами. Контроль за осуществлением кассовых операций. Типичные нарушения. Ответственность. В процессе обучения проводится психологический тренинг. Практические навыки, получаемые слушателями по окончании обучения: учет расчетов с подотчетными лицами. | J170: 5 | K170: 5 | L170: 0 | M170: 40 | N170: 40 | O170: 0 | P170: Очная | Q170: Обычное | R170: АУД | T170: 28500.00 | U170: 6000.00 | V170: 08.002 B: | W170: 08.002: Бухгалтер | Y170: 50027788 | Z170: 712.50
A171: 140 | B171: 126 | C171: 06: Экономика промышленности и управление | D171: 05: Бухгалтерский учет и налогообложение | E171: Современные методы сбора, передачи, отображения и анализа экономической информации | F171: Руководители и специалисты профильных подразделений | G171: повышение квалификации | H171: 03 0605 088: Международные стандарты финансовой отчетности | I171: Концептуальные принципы подготовки и представления МСФО. Основные отличия РСБУ и МСФО. Общие требования к представлению финансовой отчетности. Отражение активов и обязательств в финансовой отчетности. Сближение учета по РСБУ и МСФО. Практические навыки, получаемые слушателями по окончании обучения: составление финансовой отчетности в соответствии с требованиями МСФО. | J171: 5 | K171: 5 | L171: 0 | M171: 40 | N171: 40 | O171: 0 | P171: Очная | Q171: Обычное | R171: АУД | T171: 28500.00 | U171: 6000.00 | V171: 08.002 B: | W171: 08.002: Бухгалтер | Y171: 50035926 | Z171: 712.50
A172: 141 | B172: 127 | C172: 06: Экономика промышленности и управление | D172: 05: Бухгалтерский учет и налогообложение | E172: Актуальные вопросы бухучёта и налогообложения | F172: Специалисты профильных подразделений | G172: повышение квалификации | H172: 03 0605 092: Бухгалтерский учет – новации и проблемы отчетного года | I172: Изменения нормативной базы бухгалтерского учёта в РФ, действующие в отчётном году в части. Актуальные проблемы применения отдельных нормативных правовых актов по бухгалтерскому учёту и пути их решения. Практические навыки, получаемые слушателями по окончании обучения: применение отдельных нормативных правовых актов по бухгалтерскому учёту. Программа Института профессиональных бухгалтеров и аудиторов России. По окончании обучения выдается удостоверение о повышении квалификации установленного образца и сертификат ИПБ России. | J172: 5 | K172: 5 | L172: 0 | M172: 40 | N172: 40 | O172: 0 | P172: Очная | Q172: Обычное | R172: АУД | T172: 39500.00 | U172: 6000.00 | V172: 08.002 B: | W172: 08.002: Бухгалтер | Y172: 50038098 | Z172: 987.50
A173: 142 | B173: 128 | C173: 06: Экономика промышленности и управление | D173: 05: Бухгалтерский учет и налогообложение | E173: Актуальные вопросы бухучёта и налогообложения | F173: Руководители и специалисты профильных подразделений | G173: повышение квалификации | H173: 03 0605 093 В: Учет основных средств, нематериальных активов и материально-производственных запасов. Сложные вопросы и последние изменения в бухгалтерском и налоговом учете | I173: Учет основных средств. РСБУ и МСФО: основные отличия по учету основных средств. Оценка и принятие основных средств к учету, переоценка основных средств. Амортизация основных средств. Ремонт, реконструкция, модернизация основных средств — отражение в учете. Выбытие основных средств. РСБУ и МСФО: соответствия и различия методик оценки нематериальных активов (НМА). Оценка и принятие НМА к учету. Переоценка НМА, обесценение НМА, амортизация НМА в бухгалтерском и налоговом учетах. Учет материально-производственных запасов (МПЗ). РСБУ и МСФО: основные отличия по учету запасов. Порядок учета приобретения материальных запасов. Списание МПЗ в производство. Практические навыки, получаемые слушателями по окончании обучения: оценка, переоценка, принятие к учету, выбытие и списание ОС/НМА/МПЗ. | J173: 5 | K173: 5 | L173: 0 | M173: 40 | N173: 40 | O173: 0 | P173: Очная | Q173: Выездное | R173: АУД | S173: Количество человек в группе - от 15 до 23. | T173: 33500.00 | U173: 0.00 | V173: 08.002 B: | W173: 08.002: Бухгалтер | Y173: 50038092 | Z173: 837.50
A174: 143 | B174: 129 | C174: 06: Экономика промышленности и управление | D174: 05: Бухгалтерский учет и налогообложение | E174: Актуальные вопросы бухучёта и налогообложения | F174: Руководители и специалисты профильных подразделений | G174: повышение квалификации | H174: 03 0605 093: Учет основных средств, нематериальных активов и материально-производственных запасов. Сложные вопросы и последние изменения в бухгалтерском и налоговом учете | I174: Учет основных средств. РСБУ и МСФО: основные отличия по учету основных средств. Оценка и принятие основных средств к учету, переоценка основных средств. Амортизация основных средств. Ремонт, реконструкция, модернизация основных средств - отражение в учете. Выбытие основных средств. РСБУ и МСФО: соответствия и различия методик оценки нематериальных активов (НМА). Оценка и принятие НМА к учету. Переоценка НМА, обесценение НМА, амортизация НМА в бухгалтерском и налоговом учетах. Учет материально-производственных запасов (МПЗ). РСБУ и МСФО: основные отличия по учету запасов. Порядок учета приобретения материальных запасов. Списание МПЗ в производство. Практические навыки, получаемые слушателями по окончании обучения: оценка, переоценка, принятие к учету, выбытие и списание ОС/НМА/МПЗ. | J174: 5 | K174: 5 | L174: 0 | M174: 40 | N174: 40 | O174: 0 | P174: Очная | Q174: Обычное | R174: АУД | T174: 28500.00 | U174: 6000.00 | V174: 08.002 B: | W174: 08.002: Бухгалтер | Y174: 50038097 | Z174: 712.50
A175: 144 | B175: 130 | C175: 06: Экономика промышленности и управление | D175: 05: Бухгалтерский учет и налогообложение | E175: Актуальные вопросы бухучёта и налогообложения | F175: Руководители и специалисты профильных подразделений | G175: повышение квалификации | H175: 03 0605 094 В: Расчет заработной платы. Сложные вопросы оплаты труда, налоги и взносы | I175: Изменения в нормативно-правовом регулировании заработной платы и отчетности. Страховые взносы. Начисление и уплата взносов в спорных ситуациях. Налог на доходы физических лиц: сложные вопросы исчисления. Обоснованность затрат и признание расходов на оплату труда. Компенсационные и стимулирующие выплаты: документальное оформление, учет и налогообложение. Удержания из заработной платы. Особенности, размеры и очередность удержания сумм. Анализ судебной практики и разъяснений официальных органов. Практические навыки, получаемые слушателями по окончании обучения: начисление заработной платы и страховых взносов, расчет НДФЛ и других удержаний, а также расчет отпускных выплат. | J175: 5 | K175: 5 | L175: 0 | M175: 40 | N175: 40 | O175: 0 | P175: Очная | Q175: Выездное | R175: АУД | S175: Количество человек в группе - от 15 до 23 | T175: 33500.00 | U175: 0.00 | V175: 08.002 B: | W175: 08.002: Бухгалтер | Y175: 50038091 | Z175: 837.50
A176: 145 | B176: 131 | C176: 06: Экономика промышленности и управление | D176: 05: Бухгалтерский учет и налогообложение | E176: Актуальные вопросы бухучёта и налогообложения | F176: Руководители и специалисты профильных подразделений | G176: повышение квалификации | H176: 03 0605 094: Расчет заработной платы. Сложные вопросы оплаты труда, налоги и взносы | I176: Изменения в нормативно-правовом регулировании заработной платы и отчетности. Страховые взносы. Начисление и уплата взносов в спорных ситуациях. Налог на доходы физических лиц: сложные вопросы исчисления. Обоснованность затрат и признание расходов на оплату труда. Компенсационные и стимулирующие выплаты: документальное оформление, учет и налогообложение. Удержания из заработной платы. Особенности, размеры и очередность удержания сумм. Анализ судебной практики и разъяснений официальных органов. Практические навыки, получаемые слушателями по окончании обучения: начисление заработной платы и страховых взносов, расчет НДФЛ и других удержаний, а также расчет отпускных выплат. | J176: 12 | K176: 10 | L176: 2 | M176: 72 | N176: 72 | O176: 0 | P176: Очная | Q176: Обычное | R176: АУД | T176: 43300.00 | U176: 6000.00 | V176: 08.002 B: | W176: 08.002: Бухгалтер | Y176: 50038087 | Z176: 601.39
A177: 146 | B177: 132 | C177: 06: Экономика промышленности и управление | D177: 05: Бухгалтерский учет и налогообложение | E177: Актуальные вопросы бухучёта и налогообложения | F177: Руководители и специалисты профильных подразделений | G177: повышение квалификации | H177: 03 0605 095: Признание расходов. Сложные вопросы налогообложения | I177: Анализ, комментарии, обзор последних изменений в Налоговом кодексе РФ. Порядок исчисления налоговой базы по налогу на прибыль. Прямые и косвенные расходы. Подтверждение целесообразности и экономической обоснованности расходов. Формирование резервов. Внереализационные расходы. Возможные причины возникновения постоянных и временных разниц. Учет убытков прошлых налоговых периодов. Практические навыки, получаемые слушателями по окончании обучения: учет отдельных видов расходов, уменьшающих налоговую базу; обоснование экономической оправданности расходов и их документального подтверждения. | J177: 5 | K177: 5 | L177: 0 | M177: 40 | N177: 40 | O177: 0 | P177: Очная | Q177: Обычное | R177: АУД | T177: 28500.00 | U177: 6000.00 | V177: 08.002 B: | W177: 08.002: Бухгалтер | Y177: 50038096 | Z177: 712.50
A178: 147 | B178: 133 | C178: 06: Экономика промышленности и управление | D178: 05: Бухгалтерский учет и налогообложение | E178: Актуальные вопросы бухучёта и налогообложения | F178: Руководители и специалисты профильных подразделений | G178: повышение квалификации | H178: 03 0605 096 В: Доходы и расходы организации. Ситуационный практикум по применению ПБУ 9/99, 10/99. Формирование резервов (ПБУ 8/2010) | I178: Практика и методология применения ПБУ 9/99, 10/99, 8/2010. Сравнительный анализ доходов и расходов в бухгалтерском и налоговом учете. Сложные вопросы признания отдельных видов расходов и расходов. Подтверждение целесообразности и экономической обоснованности расходов. Резервы. Обзор актуальной арбитражной практики. Практические навыки, получаемые слушателями по окончании обучения: проведение учета доходов и расходов, практическое применение ПБУ 9/99, 8/2010 и 10/99, осуществление сравнительного анализа доходов и расходов в бухгалтерском и налоговом учете. | J178: 5 | K178: 5 | L178: 0 | M178: 40 | N178: 40 | O178: 0 | P178: Очная | Q178: Выездное | R178: АУД | S178: Количество человек в группе - от 15 до 23. | T178: 33500.00 | U178: 0.00 | V178: 08.002 B: | W178: 08.002: Бухгалтер | Y178: 50038090 | Z178: 837.50
A179: 148 | B179: 134 | C179: 06: Экономика промышленности и управление | D179: 05: Бухгалтерский учет и налогообложение | E179: Актуальные вопросы бухучёта и налогообложения | F179: Руководители и специалисты профильных подразделений | G179: повышение квалификации | H179: 03 0605 096: Доходы и расходы организации. Ситуационный практикум по применению ПБУ 9/99, 10/99. Формирование резервов (ПБУ 8/2010) | I179: Практика и методология применения ПБУ 9/99, 10/99, 8/2010. Сравнительный анализ доходов и расходов в бухгалтерском и налоговом учете. Сложные вопросы признания отдельных видов расходов и расходов. Подтверждение целесообразности и экономической обоснованности расходов. Резервы. Обзор актуальной арбитражной практики. Практические навыки, получаемые слушателями по окончании обучения: проведение учета доходов и расходов, практическое применение ПБУ 9/99, 8/2010 и 10/99, осуществление сравнительного анализа доходов и расходов в бухгалтерском и налоговом учете. | J179: 5 | K179: 5 | L179: 0 | M179: 40 | N179: 40 | O179: 0 | P179: Очная | Q179: Обычное | R179: АУД | T179: 28500.00 | U179: 6000.00 | V179: 08.002 B: | W179: 08.002: Бухгалтер | Y179: 50038095 | Z179: 712.50
A180: 149 | B180: 135 | C180: 06: Экономика промышленности и управление | D180: 05: Бухгалтерский учет и налогообложение | E180: Актуальные вопросы бухучёта и налогообложения | F180: Руководители и специалисты профильных подразделений | G180: повышение квалификации | H180: 03 0605 097 В: Формирование резервов в бухгалтерском и налоговом учете. Бухгалтерский и налоговый учет расчетов с дебиторами и кредиторами | I180: Формирование резервов по оценочным обязательствам, условным обязательствам и условным активам. Практика применения ПБУ 8/2010. Учет расчетов с дебиторами и кредиторами. Обзор ошибок и спорных ситуаций, выявляемых в ходе проведения аудита по разделу «Учет расчетов с дебиторами и кредиторами». Практические навыки, получаемые слушателями по окончании обучения: разрешение конкретных сложных ситуаций в бухгалтерском и налоговом учете расчетов с покупателями и заказчиками, а также при создании и использовании резервов. | J180: 5 | K180: 5 | L180: 0 | M180: 40 | N180: 40 | O180: 0 | P180: Очная | Q180: Выездное | R180: АУД | S180: Количество человек в группе - от 15 до 23. | T180: 33500.00 | U180: 0.00 | V180: 08.002 B: | W180: 08.002: Бухгалтер | Y180: 50038088 | Z180: 837.50
A181: 150 | B181: 136 | C181: 06: Экономика промышленности и управление | D181: 05: Бухгалтерский учет и налогообложение | E181: Актуальные вопросы бухучёта и налогообложения | F181: Руководители и специалисты профильных подразделений | G181: повышение квалификации | H181: 03 0605 097: Формирование резервов в бухгалтерском и налоговом учете. Бухгалтерский и налоговый учет расчетов с дебиторами и кредиторами | I181: Формирование резервов по оценочным обязательствам, условным обязательствам и условным активам. Практика применения ПБУ 8/2010. Учет расчетов с дебиторами и кредиторами. Обзор ошибок и спорных ситуаций, выявляемых в ходе проведения аудита по разделу «Учет расчетов с дебиторами и кредиторами». Практические навыки, получаемые слушателями по окончании обучения: разрешение конкретных сложных ситуаций в бухгалтерском и налоговом учете расчетов с покупателями и заказчиками, а также при создании и использовании резервов. | J181: 5 | K181: 5 | L181: 0 | M181: 40 | N181: 40 | O181: 0 | P181: Очная | Q181: Обычное | R181: АУД | T181: 28500.00 | U181: 6000.00 | V181: 08.002 B: | W181: 08.002: Бухгалтер | Y181: 50038094 | Z181: 712.50
A182: 151 | B182: 137 | C182: 06: Экономика промышленности и управление | D182: 05: Бухгалтерский учет и налогообложение | E182: Актуальные вопросы бухучёта и налогообложения | F182: Руководители и специалисты профильных подразделений | G182: повышение квалификации | H182: 03 0605 098 В: Сложные вопросы налогообложения. Исчисление отдельных видов налогов с учетом изменений в законодательстве | I182: Обзор изменений в Налоговом Кодексе РФ, разъяснений МинФина РФ и ФНС РФ. Налог на добавленную стоимость. Налог на прибыль. Изменения в главе 25 НК РФ. Имущественные налоги. Исчисление НДФЛ и страховых взносов с учетом последних изменений. Отдельные виды хозяйственных договоров и их налоговые последствия. Основные тенденции «налоговых споров». Практические навыки, получаемые слушателями по окончании обучения: анализ сложных ситуаций расчета НДС, налога на прибыль, НДФЛ, налога на имущество, страховых взносов. | J182: 5 | K182: 5 | L182: 0 | M182: 40 | N182: 40 | O182: 0 | P182: Очная | Q182: Выездное | R182: АУД | S182: Количество человек в группе - от 15 до 23. | T182: 33500.00 | U182: 0.00 | V182: 08.002 B: | W182: 08.002: Бухгалтер | Y182: 50038089 | Z182: 837.50
A183: 152 | B183: 138 | C183: 06: Экономика промышленности и управление | D183: 05: Бухгалтерский учет и налогообложение | E183: Актуальные вопросы бухучёта и налогообложения | F183: Руководители и специалисты профильных подразделений | G183: повышение квалификации | H183: 03 0605 098: Сложные вопросы налогообложения. Исчисление отдельных видов налогов с учетом изменений в законодательстве | I183: Обзор изменений в Налоговом Кодексе РФ, разъяснений МинФина РФ и ФНС РФ. Налог на добавленную стоимость. Налог на прибыль. Изменения в главе 25 НК РФ. Имущественные налоги. Исчисление НДФЛ и страховых взносов с учетом последних изменений. Отдельные виды хозяйственных договоров и их налоговые последствия. Основные тенденции «налоговых споров». Практические навыки, получаемые слушателями по окончании обучения: анализ сложных ситуаций расчета НДС, налога на прибыль, НДФЛ, налога на имущество, страховых взносов. | J183: 5 | K183: 5 | L183: 0 | M183: 40 | N183: 40 | O183: 0 | P183: Очная | Q183: Обычное | R183: АУД | T183: 28500.00 | U183: 6000.00 | V183: 08.002 B: | W183: 08.002: Бухгалтер | Y183: 50038093 | Z183: 712.50
A184: 154 | B184: 139 | C184: 06: Экономика промышленности и управление | D184: 05: Бухгалтерский учет и налогообложение | E184: Актуальные вопросы бухучёта и налогообложения | F184: Руководители и специалисты профильных подразделений | G184: повышение квалификации | H184: 03 0605 102 В: Практические аспекты применения МСФО | I184: Концептуальные и правовые основы МСФО. Финансовая отчетности и учетная политика по МСФО. Организация учета нефинансовых активов по МСФО. Организация учета финансовых инструментов. Основы консолидации отчетности. Практические навыки, получаемые слушателями по окончании обучения: составление отчетности по МСФО | J184: 5 | K184: 5 | L184: 0 | M184: 40 | N184: 40 | O184: 0 | P184: Очная | Q184: Выездное | R184: АУД | S184: Количество человек в группе - от 15 до 23 | T184: 33500.00 | U184: 0.00 | V184: 08.002 C: | W184: 08.002: Бухгалтер | Y184: 50040039 | Z184: 837.50
A185: 155 | B185: 140 | C185: 06: Экономика промышленности и управление | D185: 05: Бухгалтерский учет и налогообложение | E185: Актуальные вопросы бухучёта и налогообложения | F185: Руководители и специалисты профильных подразделений | G185: повышение квалификации | H185: 03 0605 102: Практические аспекты применения МСФО | I185: Концептуальные и правовые основы МСФО. Финансовая отчетности и учетная политика по МСФО. Организация учета нефинансовых активов по МСФО. Организация учета финансовых инструментов. Основы консолидации отчетности. Практические навыки, получаемые слушателями по окончании обучения: составление отчетности по МСФО | J185: 5 | K185: 5 | L185: 0 | M185: 40 | N185: 40 | O185: 0 | P185: Очная | Q185: Обычное | R185: АУД | T185: 28500.00 | U185: 6000.00 | V185: 08.002 C: | W185: 08.002: Бухгалтер | Y185: 50040042 | Z185: 712.50
A186: 156 | B186: 141 | C186: 06: Экономика промышленности и управление | D186: 05: Бухгалтерский учет и налогообложение | E186: Актуальные вопросы бухучёта и налогообложения | F186: Специалисты профильных подразделений | G186: повышение квалификации | H186: 03 0605 106 В: ФСБУ 25/2018 «Бухгалтерский учет аренды» | I186: Цель стандарта. Критерии аренды. Арендные платежи, их состав. Понятие справедливой стоимости. Срок аренды. Учет у арендатора. Единая модель учета у арендатора. Первоначальная оценка права пользования активом и обязательства по аренде. Дисконтирование. Процентная ставка, заложенная в договоре. Расчетная ставка процента для арендатора. Ликвидационная стоимость. Последующий учет права пользования активом. Иллюстрация порядка бухгалтерского учета отношений аренды у арендатора на числовом примере. Учет у арендодателя. Классификация аренды. Инвестиция в аренду. Первоначальная оценка инвестиции в аренду. Последующая оценка чистой стоимости инвестиции в аренду. Практические навыки, получаемые слушателями по окончании обучения: организация учета арендных обязательств. | J186: 5 | K186: 5 | L186: 0 | M186: 40 | N186: 40 | O186: 0 | P186: Очная | Q186: Выездное | R186: АУД | S186: Количество человек в группе - от 15 до 23 | T186: 33500.00 | U186: 0.00 | V186: 08.002 B: | W186: 08.002: Бухгалтер | Y186: 50041847 | Z186: 837.50
A187: 157 | B187: 142 | C187: 06: Экономика промышленности и управление | D187: 05: Бухгалтерский учет и налогообложение | E187: Актуальные вопросы бухучёта и налогообложения | F187: Руководители и специалисты профильных подразделений | G187: повышение квалификации | H187: 03 0605 106: ФСБУ 25/2018 «Бухгалтерский учет аренды» | I187: Цель стандарта. Критерии аренды. Арендные платежи, их состав. Понятие справедливой стоимости. Срок аренды. Учет у арендатора. Единая модель учета у арендатора. Первоначальная оценка права пользования активом и обязательства по аренде. Дисконтирование. Процентная ставка, заложенная в договоре. Расчетная ставка процента для арендатора. Ликвидационная стоимость. Последующий учет права пользования активом. Иллюстрация порядка бухгалтерского учета отношений аренды у арендатора на числовом примере. Учет у арендодателя. Классификация аренды. Инвестиция в аренду. Первоначальная оценка инвестиции в аренду. Последующая оценка чистой стоимости инвестиции в аренду. Практические навыки, получаемые слушателями по окончании обучения: организация учета арендных обязательств. | J187: 5 | K187: 5 | L187: 0 | M187: 40 | N187: 40 | O187: 0 | P187: Очная | Q187: Обычное | R187: АУД | T187: 28500.00 | U187: 6000.00 | V187: 08.002 B: | W187: 08.002: Бухгалтер | Y187: 50041846 | Z187: 712.50
A188: 158 | B188: 143 | C188: 06: Экономика промышленности и управление | D188: 05: Бухгалтерский учет и налогообложение | E188: Актуальные вопросы бухучёта и налогообложения | F188: Руководители и специалисты профильных подразделений | G188: повышение квалификации | H188: 03 0605 107 В: Учет материально-производственных запасов для целей бухгалтерского и налогового учета | I188: Изменения в учете запасов в соответствии с ФСБУ 5/2019. Материально-производственные запасы в налоговом учете. Проблемы организации бухгалтерского и налогового учета материально-производственных запасов. Практические навыки, получаемые слушателями по окончании обучения: организация учета материально-производственных запасов. | J188: 5 | K188: 5 | L188: 0 | M188: 40 | N188: 40 | O188: 0 | P188: Очная | Q188: Выездное | R188: АУД | S188: Количество человек в группе - от 15 до 23 | T188: 33500.00 | U188: 0.00 | V188: 08.002 B: | W188: 08.002: Бухгалтер | Y188: 50041843 | Z188: 837.50
A189: 159 | B189: 144 | C189: 06: Экономика промышленности и управление | D189: 05: Бухгалтерский учет и налогообложение | E189: Актуальные вопросы бухучёта и налогообложения | F189: Руководители и специалисты профильных подразделений | G189: повышение квалификации | H189: 03 0605 107: Учет материально-производственных запасов для целей бухгалтерского и налогового учета | I189: Изменения в учете запасов в соответствии с ФСБУ 5/2019. Материально-производственные запасы в налоговом учете. Проблемы организации бухгалтерского и налогового учета материально-производственных запасов. Практические навыки, получаемые слушателями по окончании обучения: организация учета материально-производственных запасов. | J189: 5 | K189: 5 | L189: 0 | M189: 40 | N189: 40 | O189: 0 | P189: Очная | Q189: Обычное | R189: АУД | T189: 28500.00 | U189: 6000.00 | V189: 08.002 B: | W189: 08.002: Бухгалтер | Y189: 50041844 | Z189: 712.50
A190: 160 | B190: 145 | C190: 06: Экономика промышленности и управление | D190: 05: Бухгалтерский учет и налогообложение | E190: Актуальные вопросы бухучёта и налогообложения | F190: Специалисты профильных подразделений | G190: повышение квалификации | H190: 03 0605 110 В: Налог на прибыль, сложные вопросы, практические примеры исчисления и уплаты | I190: Состав доходов и порядок их признания для целей налогообложения. Состав и принципы признания расходов для целей налогообложения. Убытки в налоговом учете: особенности переноса на будущие периоды. Отчетность по налогу на прибыль. Актуальная судебная практика по налогу на прибыль. Практические навыки, получаемые слушателями по окончании обучения: исчисление и оптимизация налога на прибыль. | J190: 5 | K190: 5 | L190: 0 | M190: 40 | N190: 40 | O190: 0 | P190: Очная | Q190: Выездное | R190: АУД | S190: Количество человек в группе - от 15 до 23 | T190: 33500.00 | U190: 0.00 | V190: 08.002 B: | W190: 08.002: Бухгалтер | Y190: 50045061 | Z190: 837.50
A191: 161 | B191: 146 | C191: 06: Экономика промышленности и управление | D191: 05: Бухгалтерский учет и налогообложение | E191: Актуальные вопросы бухучёта и налогообложения | F191: Специалисты профильных подразделений | G191: повышение квалификации | H191: 03 0605 110: Налог на прибыль, сложные вопросы, практические примеры исчисления и уплаты | I191: Состав доходов и порядок их признания для целей налогообложения. Состав и принципы признания расходов для целей налогообложения. Убытки в налоговом учете: особенности переноса на будущие периоды. Отчетность по налогу на прибыль. Актуальная судебная практика по налогу на прибыль. Практические навыки, получаемые слушателями по окончании обучения: исчисление и оптимизация налога на прибыль. | J191: 5 | K191: 5 | L191: 0 | M191: 40 | N191: 40 | O191: 0 | P191: Очная | Q191: Обычное | R191: АУД | T191: 28500.00 | U191: 6000.00 | V191: 08.002 B: | W191: 08.002: Бухгалтер | Y191: 50045060 | Z191: 712.50
A192: 162 | B192: 147 | C192: 06: Экономика промышленности и управление | D192: 05: Бухгалтерский учет и налогообложение | E192: Актуальные вопросы бухучёта и налогообложения | F192: Руководители и специалисты профильных подразделений | G192: повышение квалификации | H192: 03 0605 114: Современные аспекты учета внеоборотных активов | I192: Актуальные проблемы применения отдельных нормативных правовых актов по бухгалтерскому учету и пути их решения. Особенности бухгалтерского и налогового учета основных средств, нематериальных активов, капитальных вложений. Обесценивание активов. Учет долгосрочных активов к продаже. Аренда. Тренинг по управлению конфликтами. Практические навыки, получаемые слушателями по окончании обучения: выбор необходимых методов учета основных средств, правильное определение аспектов налогового учета, решение вопросов определения первоначальной стоимости основных средств. | J192: 12 | K192: 10 | L192: 2 | M192: 72 | N192: 72 | O192: 0 | P192: Очная | Q192: Обычное | R192: АУД | T192: 43300.00 | U192: 6000.00 | V192: 08.002 B: | W192: 08.002: Бухгалтер | Y192: 50045059 | Z192: 601.39
A193: 164 | B193: 148 | C193: 07: Транспортные средства и спецтехника | D193: 01: Технические средства автомобильных перевозок | E193: Эффективная эксплуатация и ремонт автомобильного парка транспортных и специальных средств | F193: Специалисты профильных подразделений | G193: повышение квалификации | H193: 03 0701 001: Обслуживание и безопасная эксплуатация автомобилей, работающих на компримированном природном газе | I193: Виды моторных топлив для газобаллонных автомобилей. Технико- эксплуатационные показатели газобаллонных автомобилей, работающих на КПГ и СПГ. Конструктивные особенности газобаллонного оборудования автомобилей, работающих на КПГ и СПГ. Основные элементы газобаллонных установок и топливных систем двигателей, работающих на КПГ и СПГ. Особенности эксплуатации газобаллонных автомобилей, работающих на КПГ и СПГ. Особенности эксплуатации грузовых автомобилей марки КАМАЗ и автобусов с газовыми поршневыми двигателями КАМАЗ моделей 820.01-115, 820.20-200, 820.60-260 и их модификаций. Безгаражное хранение газобаллонных автомобилей, работающих на КПГ и СПГ. Требования безопасности при эксплуатации газобаллонных автомобилей. Освидетельствование автомобильных газовых баллонов для КПГ и СПГ. В процессе обучения применяются автоматизированные обучающие системы (АОС), разработанные в ОНУТЦ. Практические навыки, получаемые слушателями по окончании обучения: выполнение работы по подготовке газового оборудования к пуску двигателя; определение в условиях эксплуатации характерных неисправностей газовой аппаратуры; соблюдение правил эксплуатации автомобилей, работающих на КПГ; проверка наличия газа, герметичности газопровода, бензопроводов и арматуры, исправление оборудования и его крепления. | J193: 5 | K193: 5 | L193: 0 | M193: 40 | N193: 40 | O193: 0 | P193: Очная | Q193: Обычное | R193: АУД | T193: 28500.00 | U193: 6000.00 | Y193: 50027790 | Z193: 712.50
A194: 165 | B194: 149 | C194: 07: Транспортные средства и спецтехника | D194: 01: Технические средства автомобильных перевозок | E194: Эффективная эксплуатация и ремонт автомобильного парка транспортных и специальных средств | F194: Специалисты профильных подразделений | G194: повышение квалификации | H194: 03 0701 002 Э: Особенности эксплуатации автомобилей, работающих на сжиженном и компримированном газе | I194: Общие сведения об использовании газобаллонных автомобилей. Технические требования к газобаллонному оборудованию АТС, работающих на КПГ. Освидетельствование автомобильных газовых баллонов для КПГ. Особенности эксплуатации газобаллонных автомобилей, работающих на КПГ. Технология заправки газобаллонных автомобилей КПГ. Требования безопасности при эксплуатации газобаллонных автомобилей, работающих на КПГ. Практические навыки, получаемые слушателями по окончании обучения: применение безопасных методов при эксплуатации газобаллонных автомобилей, работающих на КПГ; выполнение работ по подготовке газового оборудования к пуску двигателя; определение в условиях эксплуатации характерных неисправностей газовой аппаратуры; соблюдение правил эксплуатации автомобилей, работающих на КПГ; проверка наличия газа, герметичности газопровода, бензопроводов и арматуры, исправности оборудования и его крепления. | J194: 22 | K194: 0 | L194: 22 | M194: 40 | N194: 0 | O194: 40 | P194: Заочная | Q194: Электронное | R194: ЭО | S194: Обучение проводится на мультипортальной платформе дистанционного обучения «СНФПО Онлайн» | T194: 6100.00 | U194: 0.00 | Y194: 50031408 | AA194: =T194/M194 -> 152.50
A195: 166 | B195: 150 | C195: 07: Транспортные средства и спецтехника | D195: 01: Технические средства автомобильных перевозок | E195: Эффективная эксплуатация и ремонт автомобильного парка транспортных и специальных средств | F195: Специалисты профильных подразделений | G195: повышение квалификации | H195: 03 0701 003: Эксплуатация, компьютерная диагностика, переоборудование и техническое обслуживание автомобилей, работающих на компримированном природном углеводородном газе | I195: Топливо для газобаллонных автомобилей. Технико-эксплуатационные показатели газобаллонных автомобилей, работающих на КПГ. Конструктивные особенности газобаллонного оборудования автомобилей, работающих на КПГ. Основные элементы газобаллонных установок и топливных систем двигателей, работающих на КПГ. Переоборудование автомобилей на КПГ. Техническое обслуживание и текущий ремонт газобаллонных автомобилей, работающих на КПГ. Особенности эксплуатации газобаллонных автомобилей, работающих на КПГ. Безгаражное хранение газобаллонных автомобилей, работающих на КПГ. Освидетельствование автомобильных газовых баллонов для КПГ. Требования безопасности при эксплуатации газобаллонных автомобилей. Характерные неисправности газовой аппаратуры и способы их устранения в условиях эксплуатации. Практические навыки, получаемые слушателями по окончании обучения: эксплуатация, компьютерная диагностика, переоборудование и техническое обслуживание автомобилей, работающих на компримированном природном углеводородном газе. | J195: 5 | K195: 5 | L195: 0 | M195: 40 | N195: 40 | O195: 0 | P195: Очная | Q195: Обычное | R195: АУД | T195: 28500.00 | U195: 6000.00 | Y195: 50035927 | Z195: =T195/M195 -> 712.50
A196: 167 | B196: 151 | C196: 07: Транспортные средства и спецтехника | D196: 02: Управление автомобильными перевозками | E196: Управление автомобильными перевозками | F196: Руководители и специалисты профильных подразделений | G196: повышение квалификации | H196: 03 0702 008 Э: Перевозка крупногабаритных и тяжеловесных грузов | I196: Общие сведения о перевозках крупногабаритных и тяжеловесных грузов. Требования к подвижному составу для перевозки крупногабаритных и тяжеловесных грузов. Организация перевозок крупногабаритных и тяжеловесных грузов. Обязанности водителя при перевозке крупногабаритных и тяжеловесных грузов. Особенности управления автотранспортным средством при перевозках крупногабаритных и тяжеловесных грузов. Осуществление контроля и обеспечение безопасности дорожного движения при перевозках крупногабаритных и тяжеловесных грузов. Дорожно-транспортные происшествия и инциденты при перевозке крупногабаритных и тяжеловесных грузов. Охрана труда водителей автотранспортных средств. Практические навыки, получаемые слушателями по окончании обучения: контроль и обеспечение безопасности дорожного движения при перевозках крупногабаритных и тяжеловесных грузов. | J196: 22 | K196: 0 | L196: 22 | M196: 40 | N196: 0 | O196: 40 | P196: Заочная | Q196: Электронное | R196: ЭО | S196: Обучение проводится на мультипортальной платформе дистанционного обучения «СНФПО Онлайн» | T196: 6100.00 | U196: 0.00 | Y196: 50045063 | AA196: =T196/M196 -> 152.50
A197: 168 | B197: 152 | C197: 07: Транспортные средства и спецтехника | D197: 02: Управление автомобильными перевозками | E197: Управление автомобильными перевозками | F197: Руководители и специалисты профильных подразделений | G197: повышение квалификации | H197: 03 0702 009 Э: Обеспечение безопасности дорожного движения и эксплуатации транспортных средств в различных погодных и дорожных условиях | I197: Классификация автомобильных дорог. Дорожные условия, создающие повышенную опасность дорожного движения. Контроль дорожных условий и учет их в работе по обеспечению безопасности дорожного движения. Содержание и эксплуатация автомобильных дорог, находящихся в зоне ответственности дочерних обществ ПАО «Газпром». Подготовка транспортных средств к эксплуатации в особых дорожных условиях. Системы активной безопасности автомобиля. Подготовка водителей к эксплуатации транспортных средств в особых дорожных условиях. Охрана труда при эксплуатации транспортных средств в особых дорожных условиях. Практические навыки, получаемые слушателями по окончании обучения: подготовка транспортных средств к эксплуатации в особых дорожных условиях. | J197: 15 | K197: 0 | L197: 15 | M197: 24 | N197: 0 | O197: 24 | P197: Заочная | Q197: Электронное | R197: ЭО | S197: Обучение проводится на мультипортальной платформе дистанционного обучения «СНФПО Онлайн» | T197: 6100.00 | U197: 0.00 | Y197: 50045062 | AA197: =T197/M197 -> 254.17
A198: 173 | B198: 153 | C198: 08: Проектирование, строительство, реконструкция объектов газовой промышленности | D198: 03: Капитальное строительство объектов газовой промышленности | E198: Управление капитальным строительством в газовой промышленности | F198: Руководители и специалисты профильных подразделений | G198: повышение квалификации | H198: 03 0803 001: Строительный контроль за общестроительными работами | I198: Нормативно-техническая документация в области строительного контроля за общестроительными работами. Правила организации и осуществления строительного контроля за выполнением общестроительных работ: принципы и особенности. Входной контроль материально-технических ресурсов. Работы подготовительного периода. Геодезические работы. Строительный контроль при осуществлении земляных, свайных работ. Строительный контроль при осуществлении строительно-монтажных работ по устройству бетонных и железобетонных конструкций. Строительный контроль при осуществлении строительно-монтажных работ по устройству каменных, металлических и деревянных конструкций. Строительный контроль при осуществлении работ по защите строительных конструкций. Строительный контроль при осуществлении кровельных, фасадных и отделочных работ. Строительный контроль при осуществлении работ по благоустройству территории и дорожного строительства. Приемо-сдаточная документация. Планируется проводить практические занятия на строительном объекте. Практические навыки, получаемые слушателями по окончании обучения: проведение строительного контроля за выполнением общестроительных работ; подготовка и экспертиза организационно-технологической документации в строительстве при проведении строительного контроля за выполнением общестроительных работ; применение средств контроля и измерений при осуществлении строительного контроля за выполнением общестроительных работ. | J198: 12 | K198: 10 | L198: 2 | M198: 72 | N198: 72 | O198: 0 | P198: Очная | Q198: Обычное | R198: АУД | T198: 52500.00 | U198: 6000.00 | V198: 16.025 B: | W198: 16.025: Специалист по организации строительства | Y198: 50027791 | Z198: =T198/M198 -> 729.17
A199: 56 | B199: 154 | C199: 09: Энергетика | D199: 01: Техника и технология энергохозяйства | E199: Тепло- и водоснабжение зданий и сооружений | F199: Руководители и специалисты профильных подразделений | G199: профессиональная переподготовка | H199: 03 0901 044 П: Эксплуатация систем отопления, вентиляции и кондиционирования воздуха | I199: Общие сведения о теплоснабжении промышленных предприятий, теплопередаче. Обеспечение требуемой тепловой устойчивости зданий и сооружений. Системы отопления. Вентиляция и кондиционирование воздуха. Техническая эксплуатация оборудования, объектов и систем хозяйства вентиляции и кондиционирования воздуха. Нормативная база в области проектирования, строительства и эксплуатации объектов систем вентиляции, отопления и кондиционирования воздуха. Порядок оформления и производства работ повышенной опасности при эксплуатации систем, вентиляции и кондиционирования воздуха. Практические навыки, получаемые слушателями по окончании обучения: организация технической эксплуатации оборудования, объектов и систем отопления, вентиляции и кондиционирования воздуха. | J199: 89 | K199: 5 | L199: 84 | M199: 256 | N199: 40 | O199: 216 | P199: Очно-заочная | Q199: Обычное | R199: АУД/ЭО | T199: 78000.00 | U199: 6000.00 | X199: Новый | Z199: =T199/M199 -> 304.69
A200: 174 | B200: 155 | C200: 09: Энергетика | D200: 01: Техника и технология энергохозяйства | E200: Эффективное управление энергохозяйством в газовой промышленности | F200: Руководители и специалисты профильных подразделений | G200: повышение квалификации | H200: 03 0901 002: Энергоменеджмент | I200: Базовые основы энергоменеджмента. Нормативно-законодательная база энергоменеджмента. Принципы функционирования энергосервисных и энергоаудиторских компаний и их участие в формировании систем энергоменеджмента. Российские нормативы и стандарты в области энергоменеджмента: анализ законодательной базы энергосбережения в РФ; особенности законодательного регулирования энергоэффективности для предприятий. Нормативная база и практика договорных отношений потребителей и энергоснабжающих организаций. Принципы организации энергоменджмента на предприятии. Энергоаудит как инструмент энергоменеджмента. Современные и перспективные источники электроэнергии и тепловой энергии. Автоматизация управления процессами энергосбережения. Информационные технологии в энергетике. Экономика энергосбережения. Источники и инструменты финансирования энергосбережения в мировой и российской практике. Примеры энергосберегающих мероприятий в российских и зарубежных компаниях, организациях и предприятиях и их анализ. Функционирование и совершенствование системы энергоменеджмента. Практические навыки, получаемые слушателями по окончании обучения: проведение энергоаудиторской деятельности в соответствии с современными требованиями по энергоэффективности в сфере энергетики, разработка энергетического паспорта и рекомендаций по выбору энергосберегающих мероприятий, планирование энергетических обследований по направлениям. | J200: 5 | K200: 5 | L200: 0 | M200: 40 | N200: 40 | O200: 0 | P200: Очная | Q200: Обычное | R200: АУД | T200: 28500.00 | U200: 6000.00 | Y200: 50021168 | Z200: =T200/M200 -> 712.50
... 277 more rows

Sheet Справочник Компетенций (hidden)
A1: Наименование Группы компетенций (QК) | B1: ИД ZQ | C1: Полное наименование родительской компетенции (ZQ)
A2: 01. Личностно-деловые компетенции | B2: 60000031 | C2: Взаимодействие в коллективе
A3: 01. Личностно-деловые компетенции | B3: 60000043 | C3: Готовность к изменениям
A4: 01. Личностно-деловые компетенции | B4: 60000111 | C4: Деловая коммуникация
A5: 01. Личностно-деловые компетенции | B5: 60000107 | C5: Обеспечение корпоративных коммуникаций
A6: 01. Личностно-деловые компетенции | B6: 60000179 | C6: Ориентация на результат
A7: 01. Личностно-деловые компетенции | B7: 60000201 | C7: Планирование и организация своей деятельности
A8: 01. Личностно-деловые компетенции | B8: 60000216 | C8: Понимание специфики организации
A9: 01. Личностно-деловые компетенции | B9: 60000240 | C9: Профессиональное развитие
A10: 01. Личностно-деловые компетенции | B10: 60000291 | C10: Системное мышление
A11: 01. Личностно-деловые компетенции | B11: 60000304 | C11: Стрессоустойчивость и решение проблем
A12: 01. Личностно-деловые компетенции | B12: 60000311 | C12: Творческий подход к делу
A13: 01. Личностно-деловые компетенции | B13: 60000319 | C13: Умение отстаивать свою позицию
A14: 02. Управленческие компетенции | B14: 60000067 | C14: Коммерческий подход к организации деятельности
A15: 02. Управленческие компетенции | B15: 60000094 | C15: Мотивация и развитие подчиненных
A16: 02. Управленческие компетенции | B16: 60000194 | C16: Планирование деятельности подразделения
A17: 02. Управленческие компетенции | B17: 60000303 | C17: Сплочение коллектива
A18: 02. Управленческие компетенции | B18: 60000320 | C18: Умение обеспечить результат
A19: 02. Управленческие компетенции | B19: 60000328 | C19: Управление знаниями и информацией
A20: 02. Управленческие компетенции | B20: 60000349 | C20: Формирование стратегии
A21: 03. Профессиональные компетенции | B21: 60000002 | C21: Распределение ресурсов газа
A22: 03. Профессиональные компетенции | B22: 60000003 | C22: Автотранспорт и специализированная техника
A23: 03. Профессиональные компетенции | B23: 60000004 | C23: Административная поддержка деятельности подразделения
A24: 03. Профессиональные компетенции | B24: 60000005 | C24: Администрирование компаний специального назначения
A25: 03. Профессиональные компетенции | B25: 60000006 | C25: Анализ законодательных инициатив на предмет влияния на финансово-экономи ческие показатели компании
A26: 03. Профессиональные компетенции | B26: 60000007 | C26: Анализ организационной структуры организации
A27: 03. Профессиональные компетенции | B27: 60000008 | C27: Анализ платежей за газ, его транспортировку и хранение
A28: 03. Профессиональные компетенции | B28: 60000009 | C28: Анализ бизнес-планов крупных инвестиционных проектов и обоснований инвес тиций
A29: 03. Профессиональные компетенции | B29: 60000010 | C29: Анализ проектной и предпроектной документации крупных инвестиционных про ектов
A30: 03. Профессиональные компетенции | B30: 60000011 | C30: Анализ развития добычи нетрадиционных углеводородов в различных регионах мира
A31: 03. Профессиональные компетенции | B31: 60000013 | C31: Анализ бухгалтерской отчетности
A32: 03. Профессиональные компетенции | B32: 60000014 | C32: Анализ финансово-хозяйственной деятельности
A33: 03. Профессиональные компетенции | B33: 60000015 | C33: Анализ экономической эффективности
A34: 03. Профессиональные компетенции | B34: 60000016 | C34: Анализ экономической среды
A35: 03. Профессиональные компетенции | B35: 60000018 | C35: Анализ и совершенствование бизнес-процессов
A36: 03. Профессиональные компетенции | B36: 60000019 | C36: Анализ рынка
A37: 03. Профессиональные компетенции | B37: 60000020 | C37: Аудит запасов сырьевой базы
A38: 03. Профессиональные компетенции | B38: 60000021 | C38: Буровые работы
A39: 03. Профессиональные компетенции | B39: 60000022 | C39: Бюджетирование затрат на персонал
A40: 03. Профессиональные компетенции | B40: 60000023 | C40: Ведение договорной работы
A41: 03. Профессиональные компетенции | B41: 60000024 | C41: Ведение кадрового делопроизводства
A42: 03. Профессиональные компетенции | B42: 60000025 | C42: Ведение конфиденциального делопроизводства
A43: 03. Профессиональные компетенции | B43: 60000026 | C43: Взаимодействие со средствами массовой информации
A44: 03. Профессиональные компетенции | B44: 60000027 | C44: Взаимодействие с независимыми поставщиками газа
A45: 03. Профессиональные компетенции | B45: 60000028 | C45: Взаимодействие с органами власти и общественными организациями
A46: 03. Профессиональные компетенции | B46: 60000031 | C46: Взаимодействие в коллективе
A47: 03. Профессиональные компетенции | B47: 60000032 | C47: Владение нормативно-правовой базой
A48: 03. Профессиональные компетенции | B48: 60000033 | C48: Владение иностранным языком
A49: 03. Профессиональные компетенции | B49: 60000034 | C49: Внедрение Политики УЧР
A50: 03. Профессиональные компетенции | B50: 60000035 | C50: Внедрение и сопровождение информационно-управляющих систем
A51: 03. Профессиональные компетенции | B51: 60000036 | C51: Внешние коммуникации
A52: 03. Профессиональные компетенции | B52: 60000037 | C52: Внутренний аудит
A53: 03. Профессиональные компетенции | B53: 60000038 | C53: Внутрикорпоративное ценообразование
A54: 03. Профессиональные компетенции | B54: 60000039 | C54: Водный транспорт
A55: 03. Профессиональные компетенции | B55: 60000040 | C55: Водоочистка и водоподготовка
A56: 03. Профессиональные компетенции | B56: 60000041 | C56: Выполнение научно–технической экспертизы предложений в области разработк и, создания и применения новых технологий, оборудования и материалов
A57: 03. Профессиональные компетенции | B57: 60000042 | C57: Газификация и использование газа
A58: 03. Профессиональные компетенции | B58: 60000044 | C58: Гражданская оборона и защита от чрезвычайных ситуаций
A59: 03. Профессиональные компетенции | B59: 60000045 | C59: Деловая коммуникация
A60: 03. Профессиональные компетенции | B60: 60000046 | C60: Добыча газа
A61: 03. Профессиональные компетенции | B61: 60000047 | C61: Добыча угольного газа
A62: 03. Профессиональные компетенции | B62: 60000048 | C62: Документационное обеспечение
A63: 03. Профессиональные компетенции | B63: 60000049 | C63: Долгосрочное инвестиционное и стратегическое планирование
A64: 03. Профессиональные компетенции | B64: 60000050 | C64: Долгосрочное прогнозирование развития рынков энергоресурсов и природного газа
A65: 03. Профессиональные компетенции | B65: 60000051 | C65: Железнодорожный транспорт
A66: 03. Профессиональные компетенции | B66: 60000052 | C66: Защита государственной и коммерческой тайны
A67: 03. Профессиональные компетенции | B67: 60000053 | C67: Защита коммерческой тайны
A68: 03. Профессиональные компетенции | B68: 60000054 | C68: Защита от коррозии
A69: 03. Профессиональные компетенции | B69: 60000055 | C69: Защита интересов Общества в судебном и административном порядке
A70: 03. Профессиональные компетенции | B70: 60000056 | C70: Знание предметной области
A71: 03. Профессиональные компетенции | B71: 60000057 | C71: Идентификация и обоснование перспективных проектов
A72: 03. Профессиональные компетенции | B72: 60000058 | C72: Измерение объемов (количества) и качества углеводородных сред
A73: 03. Профессиональные компетенции | B73: 60000059 | C73: Информационное обеспечение
A74: 03. Профессиональные компетенции | B74: 60000060 | C74: Информационная безопасность
A75: 03. Профессиональные компетенции | B75: 60000061 | C75: Использование офисного оборудования
A76: 03. Профессиональные компетенции | B76: 60000062 | C76: Использование газа в качестве моторного топлива
A77: 03. Профессиональные компетенции | B77: 60000063 | C77: Использование информационных систем
A78: 03. Профессиональные компетенции | B78: 60000064 | C78: Использование правовых информационно-справочных систем
A79: 03. Профессиональные компетенции | B79: 60000065 | C79: Исследование рынка труда
A80: 03. Профессиональные компетенции | B80: 60000066 | C80: Классификация материально-технических ресурсов
A81: 03. Профессиональные компетенции | B81: 60000067 | C81: Коммерческий подход к организации деятельности
A82: 03. Профессиональные компетенции | B82: 60000068 | C82: Консультирование и работа с обращениями
A83: 03. Профессиональные компетенции | B83: 60000069 | C83: Контроль технического уровня технологических решений, оборудования и мат ериалов
A84: 03. Профессиональные компетенции | B84: 60000070 | C84: Контроль соответствия параметров проекта на различных стадиях
A85: 03. Профессиональные компетенции | B85: 60000071 | C85: Контроль соблюдения условий допуска оборудования и материалов к применен ию
A86: 03. Профессиональные компетенции | B86: 60000072 | C86: Контроль исполнения календарно-сетевых графиков
A87: 03. Профессиональные компетенции | B87: 60000074 | C87: Контроль закупочной деятельности
A88: 03. Профессиональные компетенции | B88: 60000075 | C88: Контроль за организацией и движением денежных потоков Группы Газпром
A89: 03. Профессиональные компетенции | B89: 60000077 | C89: Координация и мониторинг реализации проектов
A90: 03. Профессиональные компетенции | B90: 60000078 | C90: Координация, контроль и методическая поддержка закупочной деятельности
A91: 03. Профессиональные компетенции | B91: 60000079 | C91: Координация жилищно-социальных программ
A92: 03. Профессиональные компетенции | B92: 60000080 | C92: Корпоративный контроль над имуществом
A93: 03. Профессиональные компетенции | B93: 60000081 | C93: Лицензирование пользования недрами
A94: 03. Профессиональные компетенции | B94: 60000082 | C94: Логистика
A95: 03. Профессиональные компетенции | B95: 60000083 | C95: Материальное стимулирование персонала
A96: 03. Профессиональные компетенции | B96: 60000084 | C96: Медицинское страхование
A97: 03. Профессиональные компетенции | B97: 60000085 | C97: Медицинское обеспечение и организация оказания медицинской помощи
A98: 03. Профессиональные компетенции | B98: 60000086 | C98: Методическое обеспечение управления проектами
A99: 03. Профессиональные компетенции | B99: 60000087 | C99: Методология формирования консолидированной финансовой отчетности
A100: 03. Профессиональные компетенции | B100: 60000088 | C100: Мобилизационная подготовка
A101: 03. Профессиональные компетенции | B101: 60000089 | C101: Модернизация транспортного парка и специализированной техники
A102: 03. Профессиональные компетенции | B102: 60000090 | C102: Мониторинг применения оборудования и материалов в производственной деяте льности
A103: 03. Профессиональные компетенции | B103: 60000091 | C103: Мониторинг нормативно-правового обеспечения закупочной деятельности
A104: 03. Профессиональные компетенции | B104: 60000092 | C104: Мониторинг акционерного капитала
A105: 03. Профессиональные компетенции | B105: 60000093 | C105: Мониторинг цен на МТР для ДТОиР
A106: 03. Профессиональные компетенции | B106: 60000094 | C106: Мотивация и развитие подчиненных
A107: 03. Профессиональные компетенции | B107: 60000095 | C107: Налоговый контроль цен
A108: 03. Профессиональные компетенции | B108: 60000096 | C108: Налоговое планирование
A109: 03. Профессиональные компетенции | B109: 60000097 | C109: Налоговое регулирование внешнеэкономической деятельности
A110: 03. Профессиональные компетенции | B110: 60000098 | C110: Налоговое регулирование производственной деятельности
A111: 03. Профессиональные компетенции | B111: 60000099 | C111: Налоговое регулирование непроизводственной деятельности
A112: 03. Профессиональные компетенции | B112: 60000100 | C112: Налоговый учет
A113: 03. Профессиональные компетенции | B113: 60000101 | C113: Научно-исследовательские и опытно-конструкторские разработки
A114: 03. Профессиональные компетенции | B114: 60000102 | C114: Научно-техническое обеспечение внедрения новых технологий, оборудования, реагентов и материалов
A115: 03. Профессиональные компетенции | B115: 60000103 | C115: Недопущение использования инсайдерской информации
A116: 03. Профессиональные компетенции | B116: 60000104 | C116: Нормирование труда
A117: 03. Профессиональные компетенции | B117: 60000105 | C117: Обеспечение проведения планово-профилактических и ремонтных работ
A118: 03. Профессиональные компетенции | B118: 60000106 | C118: Обеспечение деятельности Общества в области технического регулирования
A119: 03. Профессиональные компетенции | B119: 60000107 | C119: Обеспечение корпоративных коммуникаций
A120: 03. Профессиональные компетенции | B120: 60000108 | C120: Обеспечение прав акционеров
A121: 03. Профессиональные компетенции | B121: 60000109 | C121: Обеспечение мониторинга деятельности научных дочерних обществ
A122: 03. Профессиональные компетенции | B122: 60000110 | C122: Обеспечение качества проведения работ по ДТОиР подрядными организациями
A123: 03. Профессиональные компетенции | B123: 60000111 | C123: Деловая коммуникация
A124: 03. Профессиональные компетенции | B124: 60000112 | C124: Обеспечение сделок по слияниям и поглощениям
A125: 03. Профессиональные компетенции | B125: 60000113 | C125: Обеспечение деятельности Научно-технического совета ПАО «Газпром»
A126: 03. Профессиональные компетенции | B126: 60000114 | C126: Обеспечение эксплуатации дожимных компрессорных станций
A127: 03. Профессиональные компетенции | B127: 60000115 | C127: Обеспечение функционирования и развития биржевой торговли
A128: 03. Профессиональные компетенции | B128: 60000116 | C128: Обеспечение функционирования сети специальной документальной связи
A129: 03. Профессиональные компетенции | B129: 60000117 | C129: Обеспечение деятельности Инвестиционной комиссии
A130: 03. Профессиональные компетенции | B130: 60000118 | C130: Обеспечение функционирования и развития системы стандартизации
A131: 03. Профессиональные компетенции | B131: 60000119 | C131: Обеспечение функционирования и развития системы менеджмента качества
A132: 03. Профессиональные компетенции | B132: 60000120 | C132: Обеспечение деятельности руководителя
A133: 03. Профессиональные компетенции | B133: 60000121 | C133: Обеспечение правовой политики
A134: 03. Профессиональные компетенции | B134: 60000122 | C134: Обеспечение работы структурных подразделений с материалами специальной и технической информацией
A135: 03. Профессиональные компетенции | B135: 60000123 | C135: Обеспечение деятельности удостоверяющих центров и органа криптографическ ой защиты
A136: 03. Профессиональные компетенции | B136: 60000124 | C136: Оборудование и технология сварочного производства
A137: 03. Профессиональные компетенции | B137: 60000125 | C137: Обработка и интерпретация геофизической информации
A138: 03. Профессиональные компетенции | B138: 60000126 | C138: Обслуживание долговых обязательств
A139: 03. Профессиональные компетенции | B139: 60000127 | C139: Обустройство и разработка морских месторождений, строительство морских г азопроводов
A140: 03. Профессиональные компетенции | B140: 60000128 | C140: Обучение и развитие резерва кадров
A141: 03. Профессиональные компетенции | B141: 60000129 | C141: Объекты инфраструктуры
A142: 03. Профессиональные компетенции | B142: 60000130 | C142: Оперативный учет газа
A143: 03. Профессиональные компетенции | B143: 60000131 | C143: Оперативное управление работой технологических объектов
A144: 03. Профессиональные компетенции | B144: 60000132 | C144: Оперативно-техническое управление и контроль
A145: 03. Профессиональные компетенции | B145: 60000133 | C145: Оперативное управление финансами
A146: 03. Профессиональные компетенции | B146: 60000134 | C146: Оплата труда
A147: 03. Профессиональные компетенции | B147: 60000135 | C147: Оптимизация и развитие транспорта газа, производства СПГ и подземного хр анения газа
A148: 03. Профессиональные компетенции | B148: 60000136 | C148: Оптимизация режимов работы производственных объектов
A149: 03. Профессиональные компетенции | B149: 60000138 | C149: Организация буровых работ
A150: 03. Профессиональные компетенции | B150: 60000139 | C150: Организация эксплуатации и ремонта скважин
A151: 03. Профессиональные компетенции | B151: 60000140 | C151: Организация аудита технического уровня используемых технологий, оборудов ания и материалов
A152: 03. Профессиональные компетенции | B152: 60000141 | C152: Организация проведения прединвестиционных исследований
A153: 03. Профессиональные компетенции | B153: 60000143 | C153: Организация страхования
A154: 03. Профессиональные компетенции | B154: 60000144 | C154: Организация финансирования
A155: 03. Профессиональные компетенции | B155: 60000145 | C155: Организация получения, обработки и анализа оперативной диспетчерско-техн ологической информации
A156: 03. Профессиональные компетенции | B156: 60000146 | C156: Организация рабочих встреч и групповой работы
A157: 03. Профессиональные компетенции | B157: 60000147 | C157: Организация и осуществление контроля по обеспечению эффективности долгос рочных вложений
A158: 03. Профессиональные компетенции | B158: 60000148 | C158: Организация работы со странами ближнего и дальнего зарубежья
A159: 03. Профессиональные компетенции | B159: 60000149 | C159: Организация корпоративного управления
A160: 03. Профессиональные компетенции | B160: 60000150 | C160: Организация подготовки и проведения общих собраний акционеров
A161: 03. Профессиональные компетенции | B161: 60000151 | C161: Организация расчетов
A162: 03. Профессиональные компетенции | B162: 60000152 | C162: Организация работ по добыче газа, газового конденсата и нефти
A163: 03. Профессиональные компетенции | B163: 60000153 | C163: Организация и планирование проектно-изыскательских работ
A164: 03. Профессиональные компетенции | B164: 60000154 | C164: Организация привлечения кредитов и займов
A165: 03. Профессиональные компетенции | B165: 60000155 | C165: Организация работы по подготовке корпоративной отчётности в области усто йчивого развития
A166: 03. Профессиональные компетенции | B166: 60000156 | C166: Организация учета и мониторинга исполнения обязательств проектными орган изациями
A167: 03. Профессиональные компетенции | B167: 60000157 | C167: Организация и сопровождение работы с претензиями и исками
A168: 03. Профессиональные компетенции | B168: 60000158 | C168: Организация материально-технического обеспечения строительных объектов
A169: 03. Профессиональные компетенции | B169: 60000159 | C169: Организация проектирования, строительства и приема в эксплуатацию объект ов
A170: 03. Профессиональные компетенции | B170: 60000160 | C170: Организация проведения испытаний технологической продукции
A171: 03. Профессиональные компетенции | B171: 60000161 | C171: Организационное обеспечение мероприятий
A172: 03. Профессиональные компетенции | B172: 60000162 | C172: Организация обучения и развития персонала
A173: 03. Профессиональные компетенции | B173: 60000163 | C173: Организация расчетов по жидким углеводородам
A174: 03. Профессиональные компетенции | B174: 60000164 | C174: Организация технического обслуживания, капитального ремонта, диагностики и дефектоскопии
A175: 03. Профессиональные компетенции | B175: 60000165 | C175: Организация работ по автоматизации производственной деятельности
A176: 03. Профессиональные компетенции | B176: 60000166 | C176: Организация расчетов по налогу на добавленную стоимость
A177: 03. Профессиональные компетенции | B177: 60000167 | C177: Организация проведения пусконаладочных работ
A178: 03. Профессиональные компетенции | B178: 60000168 | C178: Организация заводского ремонта оборудования
A179: 03. Профессиональные компетенции | B179: 60000169 | C179: Организация работы по рассмотрению законопроектов и совершенствованию за конодательства
A180: 03. Профессиональные компетенции | B180: 60000170 | C180: Организация строительства
A181: 03. Профессиональные компетенции | B181: 60000171 | C181: Организация оформления прав на недвижимое имущество и земельные участки
A182: 03. Профессиональные компетенции | B182: 60000172 | C182: Организация и ведение единого корпоративного Реестра
A183: 03. Профессиональные компетенции | B183: 60000173 | C183: Организация доступа к газотранспортной системе
A184: 03. Профессиональные компетенции | B184: 60000174 | C184: Организация эмиссии ценных бумаг
A185: 03. Профессиональные компетенции | B185: 60000175 | C185: Организация переработки и движения сырья
A186: 03. Профессиональные компетенции | B186: 60000176 | C186: Организация предоставления поручительств
A187: 03. Профессиональные компетенции | B187: 60000177 | C187: Организация международных мероприятий
A188: 03. Профессиональные компетенции | B188: 60000178 | C188: Организация природоохранных мероприятий
A189: 03. Профессиональные компетенции | B189: 60000179 | C189: Ориентация на результат
A190: 03. Профессиональные компетенции | B190: 60000180 | C190: Осуществление контроля производственно-хозяйственной деятельности проект ных организаций
A191: 03. Профессиональные компетенции | B191: 60000181 | C191: Осуществление финансовых вложений
A192: 03. Профессиональные компетенции | B192: 60000182 | C192: Осуществление внутреннего контроллинга
A193: 03. Профессиональные компетенции | B193: 60000183 | C193: Охрана труда
A194: 03. Профессиональные компетенции | B194: 60000184 | C194: Оценка и развитие персонала
A195: 03. Профессиональные компетенции | B195: 60000185 | C195: Оценка соответствия сделок по приобретению, продаже и обмену активами с зарубежными и российскими компаниями стратегии развития Общества
A196: 03. Профессиональные компетенции | B196: 60000186 | C196: Оценка и планирование производительности труда в Обществе
A197: 03. Профессиональные компетенции | B197: 60000187 | C197: Оценка должностей
A198: 03. Профессиональные компетенции | B198: 60000188 | C198: Переработка газа
A199: 03. Профессиональные компетенции | B199: 60000189 | C199: Планирование поставок газа
A200: 03. Профессиональные компетенции | B200: 60000190 | C200: Планирование процессов добычи, переработки, транспортировки и хранения г аза
... 206 more rows

Sheet Справочник Профстандартов (hidden)
A1: ZF ID_ZF | B1: Код ПС и код ОТФ код_ZF | C1: Код ПС и код ОТФ: наименование ОТФ (ZF) TXT_ZF | D1: Ид (ZP) | E1: Код ПС: Сокращенное наименование ПС (ZP) | F1: Код ПС: Полное наименование ПС (ZP)
A2: 50231725 | B2: 01.001 A: | C2: 01.001 A: Педагогическая деятельность по проектированию и реализации образовательного процесса в образовательных организациях дошкольного, начального общего, основного общего, среднего общего образования | D2: 50231724 | E2: 01.001 | F2: Педагог (педагогическая деятельность в сфере дошкольного, начального общего, основного общего, среднего общего образования) (воспитатель, учитель)
A3: 50231726 | B3: 01.001 B: | C3: 01.001 B: Педагогическая деятельность по проектированию и реализации основных общеобразовательных программ | D3: 50231724 | E3: 01.001 | F3: Педагог (педагогическая деятельность в сфере дошкольного, начального общего, основного общего, среднего общего образования) (воспитатель, учитель)
A4: 50233992 | B4: 01.002 A: | C4: 01.002 A: Психолого-педагогическое сопровождение образовательного процесса в образовательных организациях общего, профессионального и дополнительного образования, сопровождение основных и дополнительных образовательных программ | D4: 50233991 | E4: 01.002 | F4: Педагог-психолог (психолог в сфере образования)
A5: 50233993 | B5: 01.002 B: | C5: 01.002 B: Оказание психолого-педагогической помощи лицам с ограниченными возможностями здоровья, испытывающим трудности в освоении основных общеобразовательных программ, развитии и социальной адаптации, в том числе несовершеннолетним обучающимся, признанным в случаях и в порядке, которые предусмотрены уголовно-процессуальным законодательством, подозреваемыми, обвиняемыми или подсудимыми по уголовному делу либо являющимся потерпевшими или свидетелями преступления | D5: 50233991 | E5: 01.002 | F5: Педагог-психолог (психолог в сфере образования)
A6: 50234008 | B6: 01.003 A: | C6: 01.003 A: Преподавание по дополнительным общеобразовательным программам | D6: 50234007 | E6: 01.003 | F6: Педагог дополнительного образования детей и взрослых
A7: 50234009 | B7: 01.003 B: | C7: 01.003 B: Организационно-методическое обеспечение реализации дополнительных общеобразовательных программ | D7: 50234007 | E7: 01.003 | F7: Педагог дополнительного образования детей и взрослых
A8: 50234010 | B8: 01.003 C: | C8: 01.003 C: Организационно-педагогическое обеспечение реализации дополнительных общеобразовательных программ | D8: 50234007 | E8: 01.003 | F8: Педагог дополнительного образования детей и взрослых
A9: 50234238 | B9: 01.005 A: | C9: 01.005 A: Организация воспитательной деятельности в образовательной организации во взаимодействии с детскими и молодежными общественными объединениями | D9: 50234237 | E9: 01.005 | F9: Специалист в области воспитания
A10: 50234239 | B10: 01.005 B: | C10: 01.005 B: Социально-педагогическая поддержка обучающихся в процессе социализации | D10: 50234237 | E10: 01.005 | F10: Специалист в области воспитания
A11: 50234240 | B11: 01.005 C: | C11: 01.005 C: Организация деятельности детских общественных объединений в образовательной организации | D11: 50234237 | E11: 01.005 | F11: Специалист в области воспитания
A12: 50234241 | B12: 01.005 D: | C12: 01.005 D: Организационно-педагогическое обеспечение воспитательного процесса | D12: 50234237 | E12: 01.005 | F12: Специалист в области воспитания
A13: 50234242 | B13: 01.005 E: | C13: 01.005 E: Воспитательная работа с группой обучающихся | D13: 50234237 | E13: 01.005 | F13: Специалист в области воспитания
A14: 50234243 | B14: 01.005 F: | C14: 01.005 F: Библиотечно-педагогическая деятельность в образовательной организации | D14: 50234237 | E14: 01.005 | F14: Специалист в области воспитания
A15: 50397127 | B15: 01.005 G: | C15: 01.005 G: Тьюторское сопровождение обучающихся | D15: 50234237 | E15: 01.005 | F15: Специалист в области воспитания
A16: 50278033 | B16: 01.006 A: | C16: 01.006 A: Обучение вождению ТС соответствующих категорий и подкатегорий | D16: 50278032 | E16: 01.006 | F16: Мастер производственного обучения вождению транспортных средств соответствующих категорий и подкатегорий
A17: 50287874 | B17: 01.007 A: | C17: 01.007 A: Содействие организации и сопровождению деятельности детского коллектива (группы, подразделения, объединения) в организациях отдыха детей и их оздоровления (образовательных организациях) | D17: 50287873 | E17: 01.007 | F17: Специалист, участвующий в организации деятельности детского коллектива (вожатый)
A18: 50333870 | B18: 01.008 A: | C18: 01.008 A: Управление деятельностью научной организации | D18: 50333869 | E18: 01.008 | F18: Руководитель научной организации
A19: 50333872 | B19: 01.009 A: | C19: 01.009 A: Управление формированием приоритетных направлений и (или) тематики научных исследований и развитием научных школ в научной организации | D19: 50333871 | E19: 01.009 | F19: Научный руководитель научной организации
A20: 50333874 | B20: 01.010 A: | C20: 01.010 A: Стратегическое и операционное управление образовательной организацией высшего образования | D20: 50333873 | E20: 01.010 | F20: Руководитель образовательной организации высшего образования
A21: 50333875 | B21: 01.010 B: | C21: 01.010 B: Координация деятельности по формированию и реализации стратегии развития образовательной организации высшего образования | D21: 50333873 | E21: 01.010 | F21: Руководитель образовательной организации высшего образования
A22: 50333876 | B22: 01.010 C: | C22: 01.010 C: Научное руководство исследовательской деятельностью образовательной организации высшего образования | D22: 50333873 | E22: 01.010 | F22: Руководитель образовательной организации высшего образования
A23: 50355151 | B23: 01.011 A: | C23: 01.011 A: Управление дошкольной образовательной организацией | D23: 50355150 | E23: 01.011 | F23: Руководитель образовательной организации (управление дошкольной образовательной организацией и общеобразовательной организацией)
A24: 50355152 | B24: 01.011 B: | C24: 01.011 B: Управление общеобразовательной организацией | D24: 50355150 | E24: 01.011 | F24: Руководитель образовательной организации (управление дошкольной образовательной организацией и общеобразовательной организацией)
A25: 50355154 | B25: 01.012 A: | C25: 01.012 A: Планирование и проектирование фундаментальных и прикладных социологических исследований | D25: 50355153 | E25: 01.012 | F25: Социолог: специалист по фундаментальным и прикладным социологическим исследованиям
A26: 50355155 | B26: 01.012 B: | C26: 01.012 B: Разработка дизайна и методической стратегии прикладного социологического исследования с учетом специфики исследования рынков | D26: 50355153 | E26: 01.012 | F26: Социолог: специалист по фундаментальным и прикладным социологическим исследованиям
A27: 50355156 | B27: 01.012 C: | C27: 01.012 C: Организация работы по сбору данных фундаментальных и прикладных социологических исследований | D27: 50355153 | E27: 01.012 | F27: Социолог: специалист по фундаментальным и прикладным социологическим исследованиям
A28: 50355157 | B28: 01.012 D: | C28: 01.012 D: Анализ, интерпретация данных фундаментальных и прикладных социологических исследований | D28: 50355153 | E28: 01.012 | F28: Социолог: специалист по фундаментальным и прикладным социологическим исследованиям
A29: 50355158 | B29: 01.012 E: | C29: 01.012 E: Совершенствование методов проведения фундаментальных и прикладных социологических исследований | D29: 50355153 | E29: 01.012 | F29: Социолог: специалист по фундаментальным и прикладным социологическим исследованиям
A30: 50355159 | B30: 01.012 F: | C30: 01.012 F: Социологическая экспертиза и консалтинг на основе результатов фундаментальных и прикладных социологических исследований | D30: 50355153 | E30: 01.012 | F30: Социолог: специалист по фундаментальным и прикладным социологическим исследованиям
A31: 50397129 | B31: 01.013 A: | C31: 01.013 A: Руководство деятельностью организации отдыха детей и их оздоровления | D31: 50397128 | E31: 01.013 | F31: Руководитель организации отдыха детей и их оздоровления
A32: 50397130 | B32: 01.013 B: | C32: 01.013 B: Управление ресурсами организации отдыха детей и их оздоровления, взаимодействие с другими организациями | D32: 50397128 | E32: 01.013 | F32: Руководитель организации отдыха детей и их оздоровления
A33: 50397132 | B33: 01.014 A: | C33: 01.014 A: Коррекционно-развивающее обучение и воспитание обучающихся с нарушениями речи, оказание психолого-педагогической помощи и поддержки участникам образовательных отношений | D33: 50397131 | E33: 01.014 | F33: Педагог-дефектолог
A34: 50397133 | B34: 01.014 B: | C34: 01.014 B: Коррекционно-развивающее обучение и воспитание обучающихся с нарушениями слуха, оказание психолого-педагогической помощи и поддержки участникам образовательных отношений | D34: 50397131 | E34: 01.014 | F34: Педагог-дефектолог
A35: 50397134 | B35: 01.014 C: | C35: 01.014 C: Коррекционно-развивающее обучение и воспитание обучающихся с задержкой психического развития, оказание психолого-педагогической помощи и поддержки участникам образовательных отношений | D35: 50397131 | E35: 01.014 | F35: Педагог-дефектолог
A36: 50397135 | B36: 01.014 D: | C36: 01.014 D: Коррекционно-развивающее обучение и воспитание обучающихся с нарушениями зрения, оказание психолого-педагогической помощи и поддержки участникам образовательных отношений | D36: 50397131 | E36: 01.014 | F36: Педагог-дефектолог
A37: 50397136 | B37: 01.014 E: | C37: 01.014 E: Коррекционно-развивающее обучение и воспитание обучающихся с нарушениями опорно-двигательного аппарата, оказание психолого-педагогической помощи и поддержки участникам образовательных отношений | D37: 50397131 | E37: 01.014 | F37: Педагог-дефектолог
A38: 50397137 | B38: 01.014 F: | C38: 01.014 F: Коррекционно-развивающее обучение и воспитание детей раннего и дошкольного возраста с ограниченными возможностями здоровья, с инвалидностью, детей группы риска, оказание психолого-педагогической помощи и поддержки участникам образовательных отношений | D38: 50397131 | E38: 01.014 | F38: Педагог-дефектолог
A39: 50397138 | B39: 01.014 G: | C39: 01.014 G: "Коррекционно-развивающее обучение и воспитание обучающихся с умственной отсталостью (интеллектуальными нарушениями), с тяжелыми и множественными нарушениями развития, оказание психолого-педагогической помощи и поддержки участникам образовательных отношений " | D39: 50397131 | E39: 01.014 | F39: Педагог-дефектолог
A40: 50397139 | B40: 01.014 H: | C40: 01.014 H: Коррекционно-развивающее обучение и воспитание обучающихся с расстройствами аутистического спектра, оказание психолого-педагогической помощи и поддержки участникам образовательных отношений | D40: 50397131 | E40: 01.014 | F40: Педагог-дефектолог
A41: 50265648 | B41: 02.001 A: | C41: 02.001 A: Производство судебно-медицинской экспертизы | D41: 50265647 | E41: 02.001 | F41: Врач - судебно-медицинский эксперт
A42: 50233986 | B42: 02.002 A: | C42: 02.002 A: Деятельность по осуществлению федерального государственного контроля (надзора) и предоставлению государственных услуг | D42: 50233985 | E42: 02.002 | F42: Специалист в области медико-профилактического дела
A43: 50233987 | B43: 02.002 B: | C43: 02.002 B: Деятельность по обеспечению безопасности среды обитания для здоровья человека | D43: 50233985 | E43: 02.002 | F43: Специалист в области медико-профилактического дела
A44: 50233988 | B44: 02.002 C: | C44: 02.002 C: Деятельность по проведению санитарно-противоэпидемических (профилактических) мероприятий | D44: 50233985 | E44: 02.002 | F44: Специалист в области медико-профилактического дела
A45: 50233989 | B45: 02.002 D: | C45: 02.002 D: Деятельность по обеспечению функционирования органов, осуществляющих федеральный государственный контроль (надзор), и учреждений, обеспечивающих их деятельность | D45: 50233985 | E45: 02.002 | F45: Специалист в области медико-профилактического дела
A46: 50233990 | B46: 02.002 E: | C46: 02.002 E: Деятельность по организации федерального государственного контроля (надзора) | D46: 50233985 | E46: 02.002 | F46: Специалист в области медико-профилактического дела
A47: 50234599 | B47: 02.003 A: | C47: 02.003 A: Санитарное содержание палат, специализированных кабинетов, перемещение материальных объектов и медицинских отходов, уход за телом умершего человека | D47: 50234598 | E47: 02.003 | F47: Младший медицинский персонал
A48: 50234600 | B48: 02.003 B: | C48: 02.003 B: Оказание медицинских услуг по уходу | D48: 50234598 | E48: 02.003 | F48: Младший медицинский персонал
A49: 50235269 | B49: 02.004 A: | C49: 02.004 A: Электроакустическая коррекция слуха | D49: 50235268 | E49: 02.004 | F49: Специалист в области слухопротезирования (сурдоакустик)
A50: 50235336 | B50: 02.005 A: | C50: 02.005 A: Оказание медицинской помощи при стоматологических заболеваниях | D50: 50235335 | E50: 02.005 | F50: Врач-стоматолог
A51: 50235338 | B51: 02.006 A: | C51: 02.006 A: Квалифицированная фармацевтическая помощь населению, пациентам медицинских организаций, работы, услуги по доведению лекарственных препаратов, медицинских изделий, других товаров, разрешенных к отпуску в аптечных организациях, до конечного потребителя | D51: 50235337 | E51: 02.006 | F51: Провизор
A52: 50235340 | B52: 02.007 A: | C52: 02.007 A: Изготовление оправ для корригирующих очков; очковых линз и корригирующих очков | D52: 50235339 | E52: 02.007 | F52: Специалист по изготовлению медицинской оптики
A53: 50235341 | B53: 02.007 B: | C53: 02.007 B: Изготовление контактных линз методом точения | D53: 50235339 | E53: 02.007 | F53: Специалист по изготовлению медицинской оптики
A54: 50235429 | B54: 02.008 A: | C54: 02.008 A: Оказание медицинской помощи детям в амбулаторных условиях, не предусматривающих круглосуточного медицинского наблюдения и лечения, в том числе на дому при вызове медицинского работник | D54: 50235428 | E54: 02.008 | F54: Врач-педиатр участковый
A55: 50236212 | B55: 02.009 A: | C55: 02.009 A: Оказание первичной медико-санитарной помощи взрослому населению в амбулаторных условиях, не предусматривающих круглосуточного медицинского наблюдения и лечения, в том числе на дому при вызове медицинского работника | D55: 50236211 | E55: 02.009 | F55: Врач-лечебник (врач-терапевт участковый)
A56: 50236316 | B56: 02.010 A: | C56: 02.010 A: Проведение работ по исследованиям лекарственных средств | D56: 50236315 | E56: 02.010 | F56: Специалист по промышленной фармации в области исследований лекарственных средств
A57: 50397140 | B57: 02.010 B: | C57: 02.010 B: " | D57: 50236315 | E57: 02.010 | F57: Специалист по промышленной фармации в области исследований лекарственных средств
A58: 50397141 | B58: 02.010 C: | C58: 02.010 C: Руководство работами по исследованиям лекарственных средств | D58: 50236315 | E58: 02.010 | F58: Специалист по промышленной фармации в области исследований лекарственных средств
A59: 50397142 | B59: 02.010 D: | C59: 02.010 D: Руководство работами по государственной регистрации и пострегистрационному мониторингу лекарственных препаратов | D59: 50236315 | E59: 02.010 | F59: Специалист по промышленной фармации в области исследований лекарственных средств
A60: 50236318 | B60: 02.011 A: | C60: 02.011 A: Проведение работ по валидации (квалификации) фармацевтического производства | D60: 50236317 | E60: 02.011 | F60: Специалист по валидации (квалификации) фармацевтического производства
A61: 50236319 | B61: 02.011 B: | C61: 02.011 B: Управление работами по валидации (квалификации) фармацевтического производства | D61: 50236317 | E61: 02.011 | F61: Специалист по валидации (квалификации) фармацевтического производства
A62: 50236321 | B62: 02.012 A: | C62: 02.012 A: Организация и руководство фармацевтической деятельностью фармацевтической организации | D62: 50236320 | E62: 02.012 | F62: Специалист в области управления фармацевтической деятельностью
A63: 50236323 | B63: 02.013 A: | C63: 02.013 A: Проведение работ по контролю качества фармацевтического производства | D63: 50236322 | E63: 02.013 | F63: Специалист по промышленной фармации в области контроля качества лекарственных средств
A64: 50236324 | B64: 02.013 B: | C64: 02.013 B: Руководство работами по контролю качества фармацевтического производства | D64: 50236322 | E64: 02.013 | F64: Специалист по промышленной фармации в области контроля качества лекарственных средств
A65: 50236326 | B65: 02.014 A: | C65: 02.014 A: Ведение работ, связанных с фармацевтической системой качества производства лекарственных средств | D65: 50236325 | E65: 02.014 | F65: Специалист по промышленной фармации в области обеспечения качества лекарственных средств
A66: 50397143 | B66: 02.014 B: | C66: 02.014 B: Управление работами фармацевтической системы качества производства лекарственных средств | D66: 50236325 | E66: 02.014 | F66: Специалист по промышленной фармации в области обеспечения качества лекарственных средств
A67: 50236328 | B67: 02.015 A: | C67: 02.015 A: Контроль качества лекарственных средств | D67: 50236327 | E67: 02.015 | F67: Провизор-аналитик
A68: 50236330 | B68: 02.016 A: | C68: 02.016 A: Выполнение работ по внедрению технологических процессов при промышленном производстве лекарственных средств | D68: 50236329 | E68: 02.016 | F68: Специалист по промышленной фармации в области производства лекарственных средств
A69: 50236331 | B69: 02.016 B: | C69: 02.016 B: Разработка и сопровождение технологического процесса при промышленном производстве лекарственных средств | D69: 50236329 | E69: 02.016 | F69: Специалист по промышленной фармации в области производства лекарственных средств
A70: 50236332 | B70: 02.016 C: | C70: 02.016 C: Управление промышленным производством лекарственных средств | D70: 50236329 | E70: 02.016 | F70: Специалист по промышленной фармации в области производства лекарственных средств
A71: 50236370 | B71: 02.017 A: | C71: 02.017 A: Оказание медицинской помощи пациентам при заболеваниях и/или состояниях глаза, его придаточного аппарата и орбиты | D71: 50236369 | E71: 02.017 | F71: Врач-офтальмолог
A72: 50240228 | B72: 02.018 A: | C72: 02.018 A: Выполнение, организация и аналитическое обеспечение клинических лабораторных исследований | D72: 50240227 | E72: 02.018 | F72: Врач -биохимик
A73: 50240229 | B73: 02.018 B: | C73: 02.018 B: Разработка и выполнение доклинического исследования лекарственного средства для медицинского применения, биомедицинского клеточного продукта, технического испытания и токсикологического исследования (испытания) медицинского изделия | D73: 50240227 | E73: 02.018 | F73: Врач -биохимик
A74: 50240230 | B74: 02.018 C: | C74: 02.018 C: Разработка и выполнение клинического исследования лекарственного препарата для медицинского применения, биомедицинского клеточного продукта, клинического и клинико-лабораторного испытания (исследования) медицинского изделия | D74: 50240227 | E74: 02.018 | F74: Врач -биохимик
A75: 50240231 | B75: 02.018 D: | C75: 02.018 D: Проведение исследований в области медицины и биологии | D75: 50240227 | E75: 02.018 | F75: Врач -биохимик
A76: 50240233 | B76: 02.019 A: | C76: 02.019 A: Проведение функциональной диагностики органов и систем человеческого организма | D76: 50240232 | E76: 02.019 | F76: Врач -биофизик
A77: 50240234 | B77: 02.019 B: | C77: 02.019 B: Проведение исследований в области медицины и биологии | D77: 50240232 | E77: 02.019 | F77: Врач -биофизик
A78: 50240236 | B78: 02.020 A: | C78: 02.020 A: Ведение статистического учета в медицинской организации | D78: 50240235 | E78: 02.020 | F78: Врач-кибернетик
A79: 50240237 | B79: 02.020 B: | C79: 02.020 B: Обеспечение информационно-технологической поддержки в области здравоохранения | D79: 50240235 | E79: 02.020 | F79: Врач-кибернетик
A80: 50240238 | B80: 02.020 C: | C80: 02.020 C: Организация и проведение научных исследований в области здравоохранения | D80: 50240235 | E80: 02.020 | F80: Врач-кибернетик
A81: 50240239 | B81: 02.020 D: | C81: 02.020 D: Решение системно-аналитических задач в области здравоохранения | D81: 50240235 | E81: 02.020 | F81: Врач-кибернетик
A82: 50240241 | B82: 02.021 A: | C82: 02.021 A: Оказание медицинской помощи пациентам при заболеваниях и (или) состояниях уха, горла, носа | D82: 50240240 | E82: 02.021 | F82: Врач-оториноларинголог
A83: 50265660 | B83: 02.022 A: | C83: 02.022 A: Ведение статистического учета в медицинской организации | D83: 50265659 | E83: 02.022 | F83: Специалист в области организации здравоохранения и общественного здоровья
A84: 50265661 | B84: 02.022 B: | C84: 02.022 B: Организационно-методическая деятельность и организация статистического учета в медицинской организации | D84: 50265659 | E84: 02.022 | F84: Специалист в области организации здравоохранения и общественного здоровья
A85: 50265662 | B85: 02.022 C: | C85: 02.022 C: Управление структурным подразделением медицинской организации | D85: 50265659 | E85: 02.022 | F85: Специалист в области организации здравоохранения и общественного здоровья
A86: 50265663 | B86: 02.022 D: | C86: 02.022 D: Управление организационно-методическим подразделением медицинской организации | D86: 50265659 | E86: 02.022 | F86: Специалист в области организации здравоохранения и общественного здоровья
A87: 50265664 | B87: 02.022 E: | C87: 02.022 E: Управление процессами деятельности медицинской организации | D87: 50265659 | E87: 02.022 | F87: Специалист в области организации здравоохранения и общественного здоровья
A88: 50265665 | B88: 02.022 F: | C88: 02.022 F: Управление медицинской организацией | D88: 50265659 | E88: 02.022 | F88: Специалист в области организации здравоохранения и общественного здоровья
A89: 50265690 | B89: 02.023 A: | C89: 02.023 A: Оказание медицинской помощи населению по профилю "аллергология и иммунология" | D89: 50265689 | E89: 02.023 | F89: Врач – аллерголог-иммунолог
A90: 50265692 | B90: 02.024 A: | C90: 02.024 A: Оказание медицинской помощи пациентам с инфекционными заболеваниями и (или) состояниями | D90: 50265691 | E90: 02.024 | F90: Врач-инфекционист
A91: 50265694 | B91: 02.025 A: | C91: 02.025 A: Оказание медицинской помощи пациентам старше 18 лет при заболеваниях и (или) состояниях сердечно-сосудистой системы | D91: 50265693 | E91: 02.025 | F91: Врач-кардиолог
A92: 50265696 | B92: 02.026 A: | C92: 02.026 A: Оказание специализированной, в том числе высокотехнологичной, медицинской помощи новорожденным и недоношенным детям по профилю "неонатология" | D92: 50265695 | E92: 02.026 | F92: Врач-неонатолог
A93: 50272688 | B93: 02.027 A: | C93: 02.027 A: Оказание паллиативной медицинской помощи при боли и иных тяжелых проявлениях прогрессирующих заболеваний у неизлечимо больных людей | D93: 50272687 | E93: 02.027 | F93: Врач по паллиативной медицинской помощи
A94: 50265698 | B94: 02.028 A: | C94: 02.028 A: Оказание медицинской помощи взрослому населению по профилю "эндокринология" | D94: 50265697 | E94: 02.028 | F94: Врач-эндокринолог
A95: 50265700 | B95: 02.029 A: | C95: 02.029 A: Проведение патологоанатомических исследований | D95: 50265699 | E95: 02.029 | F95: Врач-патологоанатом
A96: 50265702 | B96: 02.030 A: | C96: 02.030 A: Оказание первичной специализированной медико-санитарной и специализированной медицинской помощи по профилю "Нейрохирургия" | D96: 50265701 | E96: 02.030 | F96: Врач-нейрохирург
A97: 50265703 | B97: 02.030 B: | C97: 02.030 B: Оказание высокотехнологичной медицинской помощи по профилю "Нейрохирургия" | D97: 50265701 | E97: 02.030 | F97: Врач-нейрохирург
A98: 50265726 | B98: 02.031 A: | C98: 02.031 A: Оказание первичной медико-санитарной помощи детям по профилю "детская хирургия" в амбулаторных условиях | D98: 50265725 | E98: 02.031 | F98: Врач – детский хирург
A99: 50265727 | B99: 02.031 B: | C99: 02.031 B: Оказание медицинской помощи детям по профилю "детская хирургия" в стационарных условиях и в условиях дневного стационара | D99: 50265725 | E99: 02.031 | F99: Врач – детский хирург
A100: 50265729 | B100: 02.032 A: | C100: 02.032 A: Выполнение, организация и аналитическое обеспечение клинических лабораторных исследований третьей категории сложности | D100: 50265728 | E100: 02.032 | F100: Специалист в области клинической лабораторной диагностики
A101: 50265730 | B101: 02.032 B: | C101: 02.032 B: Выполнение, организация и аналитическое обеспечение клинических лабораторных исследований четвертой категории сложности, консультирование медицинских работников и пациентов | D101: 50265728 | E101: 02.032 | F101: Специалист в области клинической лабораторной диагностики
A102: 50265731 | B102: 02.032 C: | C102: 02.032 C: Организация работы и управление лабораторией | D102: 50265728 | E102: 02.032 | F102: Специалист в области клинической лабораторной диагностики
A103: 50265733 | B103: 02.033 A: | C103: 02.033 A: Оказание первичной специализированной медико-санитарной помощи населению по профилю "дерматовенерология" в амбулаторных условиях | D103: 50265732 | E103: 02.033 | F103: Врач-дерматовенеролог
A104: 50265734 | B104: 02.033 B: | C104: 02.033 B: Оказание специализированной медицинской помощи населению по профилю "дерматовенерология" в стационарных условиях, а также в условиях дневного стационара | D104: 50265732 | E104: 02.033 | F104: Врач-дерматовенеролог
A105: 50265736 | B105: 02.034 A: | C105: 02.034 A: Оказание скорой медицинской помощи вне медицинской организации | D105: 50265735 | E105: 02.034 | F105: Врач скорой медицинской помощи
A106: 50265737 | B106: 02.034 B: | C106: 02.034 B: Оказание скорой, в том числе скорой специализированной, медицинской помощи вне медицинской организации, а также в амбулаторных и стационарных условиях | D106: 50265735 | E106: 02.034 | F106: Врач скорой медицинской помощи
A107: 50265739 | B107: 02.035 A: | C107: 02.035 A: Оказание первичной специализированной медико-санитарной помощи по профилю "детская кардиология" в амбулаторных условиях | D107: 50265738 | E107: 02.035 | F107: Врач – детский кардиолог
A108: 50265740 | B108: 02.035 B: | C108: 02.035 B: Оказание медицинской помощи по профилю "детская кардиология" в стационарных условиях и условиях дневного стационара | D108: 50265738 | E108: 02.035 | F108: Врач – детский кардиолог
A109: 50265742 | B109: 02.036 A: | C109: 02.036 A: Оказание первичной специализированной медико-санитарной помощи взрослому населению по профилю "урология" в амбулаторных условиях и (или) в условиях дневного стационара | D109: 50265741 | E109: 02.036 | F109: Врач-уролог
A110: 50265743 | B110: 02.036 B: | C110: 02.036 B: Оказание специализированной медицинской помощи взрослому населению по профилю "урология" в стационарных условиях | D110: 50265741 | E110: 02.036 | F110: Врач-уролог
A111: 50278026 | B111: 02.037 A: | C111: 02.037 A: Оказание первичной специализированной медико-санитарной помощи населению по профилю "фтизиатрия" в амбулаторных условиях и в условиях дневного стационара | D111: 50278025 | E111: 02.037 | F111: Врач-фтизиатр
A112: 50278027 | B112: 02.037 B: | C112: 02.037 B: Оказание медицинской помощи населению по профилю "фтизиатрия" в стационарных условиях | D112: 50278025 | E112: 02.037 | F112: Врач-фтизиатр
A113: 50265815 | B113: 02.038 A: | C113: 02.038 A: Оказание медицинской помощи по профилю "сердечно-сосудистая хирургия" | D113: 50265814 | E113: 02.038 | F113: Врач – сердечно-сосудистый хирург
A114: 50272782 | B114: 02.039 A: | C114: 02.039 A: Проведение медицинской реабилитации пациентов, имеющих нарушения функций и структур организма человека и последовавшие за ними ограничения жизнедеятельности, при заболеваниях и (или) состояниях | D114: 50272781 | E114: 02.039 | F114: Специалист по медицинской реабилитации
A115: 50272783 | B115: 02.039 B: | C115: 02.039 B: Применение физиотерапии при заболеваниях и (или) состояниях | D115: 50272781 | E115: 02.039 | F115: Специалист по медицинской реабилитации
A116: 50272784 | B116: 02.039 C: | C116: 02.039 C: Применение рефлексотерапии при заболеваниях и (или) состояниях | D116: 50272781 | E116: 02.039 | F116: Специалист по медицинской реабилитации
A117: 50272785 | B117: 02.039 D: | C117: 02.039 D: Применение лечебной физкультуры при заболеваниях и (или) состояниях | D117: 50272781 | E117: 02.039 | F117: Специалист по медицинской реабилитации
A118: 50272793 | B118: 02.040 A: | C118: 02.040 A: Оказание скорой специализированной медицинской помощи по профилю "анестезиология-реаниматология" вне медицинской организации | D118: 50272792 | E118: 02.040 | F118: Врач-анестезиолог-реаниматолог
A119: 50272794 | B119: 02.040 B: | C119: 02.040 B: Оказание специализированной медицинской помощи по профилю "анестезиология-реаниматология" в стационарных условиях и в условиях дневного стационара | D119: 50272792 | E119: 02.040 | F119: Врач-анестезиолог-реаниматолог
A120: 50278057 | B120: 02.041 A: | C120: 02.041 A: Оказание медицинской помощи пациентам по профилю "нефрология", в том числе реципиентам трансплантированной почки | D120: 50278056 | E120: 02.041 | F120: Врач-нефролог
A121: 50278059 | B121: 02.042 A: | C121: 02.042 A: Проведение медицинского массажа | D121: 50278058 | E121: 02.042 | F121: Специалист по медицинскому массажу
A122: 50278061 | B122: 02.043 A: | C122: 02.043 A: Оказание первичной медико-санитарной помощи пациентам в амбулаторных условиях по профилю "хирургия" | D122: 50278060 | E122: 02.043 | F122: Врач-хирург
A123: 50278062 | B123: 02.043 B: | C123: 02.043 B: Оказание специализированной медицинской помощи в стационарных условиях и в условиях дневного стационара по профилю "хирургия" | D123: 50278060 | E123: 02.043 | F123: Врач-хирург
A124: 50278064 | B124: 02.044 A: | C124: 02.044 A: Оказание специализированной медицинской помощи пациентам при травмах, заболеваниях и (или) состояниях костно-мышечной системы в амбулаторных условиях и в условиях дневного стационара | D124: 50278063 | E124: 02.044 | F124: Врач - травматолог-ортопед
A125: 50278065 | B125: 02.044 B: | C125: 02.044 B: Оказание специализированной медицинской помощи пациентам при травмах, заболеваниях и (или) состояниях костно-мышечной системы в стационарных условиях | D125: 50278063 | E125: 02.044 | F125: Врач - травматолог-ортопед
A126: 50287876 | B126: 02.045 A: | C126: 02.045 A: Оказание медицинской помощи детям с заболеваниями и (или) состояниями эндокринной системы | D126: 50287875 | E126: 02.045 | F126: Врач - детский эндокринолог
A127: 50287878 | B127: 02.046 A: | C127: 02.046 A: Оказание медицинской помощи пациентам при заболеваниях и (или) состояниях нервной системы | D127: 50287877 | E127: 02.046 | F127: Врач-невролог
A128: 50287880 | B128: 02.047 A: | C128: 02.047 A: Оказание медицинской помощи (за исключением высокотехнологичной медицинской помощи) населению по профилю "ревматология" | D128: 50287879 | E128: 02.047 | F128: Врач-ревматолог
A129: 50287881 | B129: 02.047 B: | C129: 02.047 B: Оказание высокотехнологичной медицинской помощи населению по профилю "ревматология" | D129: 50287879 | E129: 02.047 | F129: Врач-ревматолог
A130: 50320988 | B130: 02.048 A: | C130: 02.048 A: Оказание первичной специализированной медико-санитарной помощи и специализированной медицинской помощи по профилю "челюстно-лицевая хирургия" | D130: 50320987 | E130: 02.048 | F130: Врач - челюстно-лицевой хирург
A131: 50320989 | B131: 02.048 B: | C131: 02.048 B: Оказание высокотехнологичной медицинской помощи в стационарных условиях по профилю "челюстно-лицевая хирургия" | D131: 50320987 | E131: 02.048 | F131: Врач - челюстно-лицевой хирург
A132: 50298060 | B132: 02.049 A: | C132: 02.049 A: Оказание первичной специализированной медико-санитарной помощи пациентам пожилого и старческого возраста по профилю "гериатрия" | D132: 50298059 | E132: 02.049 | F132: Врач-гериатр
A133: 50298061 | B133: 02.049 B: | C133: 02.049 B: Оказание специализированной (за исключением высокотехнологичной) медицинской помощи по профилю "гериатрия" | D133: 50298059 | E133: 02.049 | F133: Врач-гериатр
A134: 50287887 | B134: 02.050 A: | C134: 02.050 A: Оказание медицинской помощи взрослому населению в амбулаторных условиях и условиях дневного стационара по профилю "колопроктология" | D134: 50287886 | E134: 02.050 | F134: Врач-колопроктолог
A135: 50287888 | B135: 02.050 B: | C135: 02.050 B: Оказание медицинской помощи взрослому населению в стационарных условиях по профилю "колопроктология" | D135: 50287886 | E135: 02.050 | F135: Врач-колопроктолог
A136: 50290324 | B136: 02.051 A: | C136: 02.051 A: Проведение ультразвуковых исследований органов, систем органов, тканей и полостей организма человека и плода | D136: 50290323 | E136: 02.051 | F136: Врач ультразвуковой диагностики
A137: 50290326 | B137: 02.052 A: | C137: 02.052 A: Оказание медицинской помощи населению по профилю "гастроэнтерология" | D137: 50290325 | E137: 02.052 | F137: Врач-гастроэнтеролог
A138: 50287890 | B138: 02.053 A: | C138: 02.053 A: Оказание медицинской помощи населению по профилю "гематология" | D138: 50287889 | E138: 02.053 | F138: Врач-гематолог
A139: 50290328 | B139: 02.054 A: | C139: 02.054 A: Оказание медицинской помощи пациентам по профилю "медицинская генетика" | D139: 50290327 | E139: 02.054 | F139: Врач-генетик
A140: 50290330 | B140: 02.055 A: | C140: 02.055 A: Проведение функциональной диагностики состояния органов и систем организма человека | D140: 50290329 | E140: 02.055 | F140: Врач функциональной диагностики
A141: 50290332 | B141: 02.056 A: | C141: 02.056 A: Оказание медицинской помощи пациентам по профилю "торакальная хирургия" | D141: 50290331 | E141: 02.056 | F141: Врач – торакальный хирург
A142: 50340572 | B142: 02.057 A: | C142: 02.057 A: Проведение эндоскопических исследований при оказании первичной медико-санитарной помощи, специализированной, в том числе высокотехнологичной, скорой, в том числе скорой специализированной, паллиативной медицинской помощи, медицинской помощи при санаторно-курортном лечении | D142: 50340571 | E142: 02.057 | F142: Врач-эндоскопист
A143: 50290334 | B143: 02.058 A: | C143: 02.058 A: Оказание медицинской помощи пациентам при заболеваниях бронхолегочной системы | D143: 50290333 | E143: 02.058 | F143: Врач-пульмонолог
A144: 50290336 | B144: 02.059 A: | C144: 02.059 A: Оказание специализированной медицинской помощи пациентам с острыми химическими отравлениям | D144: 50290335 | E144: 02.059 | F144: Врач-токсиколог
A145: 50290338 | B145: 02.060 A: | C145: 02.060 A: Проведение рентгенологических исследований (в том числе компьютерных томографических) и магнитно-резонансно-томографических исследований органов и систем организма человека | D145: 50290337 | E145: 02.060 | F145: Врач-рентгенолог
A146: 50315334 | B146: 02.061 A: | C146: 02.061 A: Оказание медицинской помощи пациентам по профилю клиническая фармакология | D146: 50315333 | E146: 02.061 | F146: Врач - клинический фармаколог
A147: 50318316 | B147: 02.062 A: | C147: 02.062 A: Оказание первичной специализированной медико-санитарной помощи населению в амбулаторных условиях по профилю пластическая хирургия | D147: 50318315 | E147: 02.062 | F147: Врач - пластический хирург
A148: 50318317 | B148: 02.062 B: | C148: 02.062 B: Оказание специализированной, за исключением высокотехнологичной, медицинской помощи населению в стационарных условиях по профилю пластическая хирургия | D148: 50318315 | E148: 02.062 | F148: Врач - пластический хирург
A149: 50318319 | B149: 02.063 A: | C149: 02.063 A: Оказание первичной доврачебной медико-санитарной помощи по профилактике стоматологических заболеваний | D149: 50318318 | E149: 02.063 | F149: Гигиенист стоматологический
A150: 50318321 | B150: 02.064 A: | C150: 02.064 A: Изготовление зубных протезов и аппаратов | D150: 50318320 | E150: 02.064 | F150: Зубной техник
A151: 50318323 | B151: 02.065 A: | C151: 02.065 A: Оказание первичной доврачебной медико-санитарной помощи населению по профилю сестринское дело | D151: 50318322 | E151: 02.065 | F151: Медицинская сестра / медицинский брат
A152: 50318325 | B152: 02.066 A: | C152: 02.066 A: Оказание медицинской помощи по профилю "реабилитационное сестринское дело" | D152: 50318324 | E152: 02.066 | F152: Медицинская сестра по реабилитации
A153: 50318327 | B153: 02.067 A: | C153: 02.067 A: Оказание первичной доврачебной медико-санитарной помощи взрослым и детям по профилю анестезиология-реаниматология | D153: 50318326 | E153: 02.067 | F153: Медицинская сестра - анестезист
A154: 50318329 | B154: 02.068 A: | C154: 02.068 A: Оказание первичной доврачебной медико-санитарной помощи населению по профилю лечебное дело | D154: 50318328 | E154: 02.068 | F154: Фельдшер
A155: 50318331 | B155: 02.069 A: | C155: 02.069 A: Проведение работ по организации деятельности структурного подразделения медицинской организации | D155: 50318330 | E155: 02.069 | F155: Специалист по организации сестринского дела
A156: 50318332 | B156: 02.069 B: | C156: 02.069 B: Управление структурным подразделением в организациях, оказывающих первичную доврачебную медико-санитарную помощь населению | D156: 50318330 | E156: 02.069 | F156: Специалист по организации сестринского дела
A157: 50318333 | B157: 02.069 C: | C157: 02.069 C: Управление деятельностью среднего и младшего медицинского персонала медицинской организации | D157: 50318330 | E157: 02.069 | F157: Специалист по организации сестринского дела
A158: 50318334 | B158: 02.069 D: | C158: 02.069 D: Управление больницей (домом) сестринского ухода, хосписом | D158: 50318330 | E158: 02.069 | F158: Специалист по организации сестринского дела
A159: 50318336 | B159: 02.070 A: | C159: 02.070 A: Выполнение рентгенологических и КТ-исследований пациентам | D159: 50318335 | E159: 02.070 | F159: Рентгенолаборант
A160: 50318337 | B160: 02.070 B: | C160: 02.070 B: Выполнение МРТ пациентам | D160: 50318335 | E160: 02.070 | F160: Рентгенолаборант
A161: 50318339 | B161: 02.071 A: | C161: 02.071 A: Выполнение клинических лабораторных исследований первой и второй категории сложности | D161: 50318338 | E161: 02.071 | F161: Специалист в области лабораторной диагностики со средним медицинским образованием
A162: 50318340 | B162: 02.071 B: | C162: 02.071 B: Выполнение, организация и аналитическое обеспечение клинических лабораторных исследований второй категории сложности | D162: 50318338 | E162: 02.071 | F162: Специалист в области лабораторной диагностики со средним медицинским образованием
A163: 50318342 | B163: 02.072 A: | C163: 02.072 A: Выполнение лабораторных и инструментальных исследований при производстве судебно-медицинских экспертиз (исследований) | D163: 50318341 | E163: 02.072 | F163: Специалист по судебно-медицинской экспертизе со средним медицинским образованием
A164: 50318345 | B164: 02.073 A: | C164: 02.073 A: Оказание специализированной, в том числе высокотехнологичной, медицинской помощи пациентам с применением рентгенэндоваскулярных методов диагностики и лечения | D164: 50318344 | E164: 02.073 | F164: Врач по рентгенэндоваскулярным диагностике и лечению
A165: 50318347 | B165: 02.074 A: | C165: 02.074 A: Оказание первичной доврачебной медико-санитарной помощи несовершеннолетним обучающимся в образовательных организациях | D165: 50318346 | E165: 02.074 | F165: Специалист по оказанию медицинской помощи несовершеннолетним обучающимся в образовательных организациях
A166: 50340574 | B166: 02.075 A: | C166: 02.075 A: Розничная торговля лекарственными препаратами и их отпуск | D166: 50340573 | E166: 02.075 | F166: Фармацевт
A167: 50358020 | B167: 02.075 B: | C167: 02.075 B: Изготовление лекарственных препаратов в условиях аптечных организаций и ветеринарных аптечных организаций | D167: 50340573 | E167: 02.075 | F167: Фармацевт
A168: 50358021 | B168: 02.075 C: | C168: 02.075 C: Оптовая торговля лекарственными средствами | D168: 50340573 | E168: 02.075 | F168: Фармацевт
A169: 50333878 | B169: 02.076 A: | C169: 02.076 A: Оказание первичной специализированной медико-санитарной помощи населению по профилю «косметология» в амбулаторных условиях | D169: 50333877 | E169: 02.076 | F169: Врач-косметолог
A170: 50333880 | B170: 02.077 A: | C170: 02.077 A: Оказание скорой медицинской помощи в экстренной и неотложной формах вне медицинской организации | D170: 50333879 | E170: 02.077 | F170: Фельдшер скорой медицинской помощи
A171: 50333882 | B171: 02.078 A: | C171: 02.078 A: Оказание первичной специализированной медико-санитарной помощи детям в амбулаторных условиях и в условиях дневного стационара по профилю "детская урология-андрология" | D171: 50333881 | E171: 02.078 | F171: Врач - детский уролог-андролог
A172: 50333883 | B172: 02.078 B: | C172: 02.078 B: Оказание специализированной медицинской помощи детям в стационарных условиях и в условиях дневного стационара по профилю "детская урология-андрология" | D172: 50333881 | E172: 02.078 | F172: Врач - детский уролог-андролог
A173: 50333884 | B173: 02.078 C: | C173: 02.078 C: Оказание высокотехнологичной медицинской помощи детям в стационарных условиях по профилю "детская урология-андрология" | D173: 50333881 | E173: 02.078 | F173: Врач - детский уролог-андролог
A174: 50333886 | B174: 02.079 A: | C174: 02.079 A: Оказание медицинской помощи населению по профилю "трансфузиология" | D174: 50333885 | E174: 02.079 | F174: Врач-трансфузиолог
A175: 50333888 | B175: 02.080 A: | C175: 02.080 A: Оказание медицинской помощи по профилю "акушерское дело" | D175: 50333887 | E175: 02.080 | F175: Акушерка (Акушер)
A176: 50340576 | B176: 02.081 A: | C176: 02.081 A: Оказание первичной специализированной медико-санитарной помощи, специализированной, за исключением высокотехнологичной, медицинской помощи и медицинской помощи населению при санаторно-курортном лечении по профилю "остеопатия" | D176: 50340575 | E176: 02.081 | F176: Врач-остеопат
A177: 50340578 | B177: 02.082 A: | C177: 02.082 A: Оказание медицинской помощи по профилю "диетология" | D177: 50340577 | E177: 02.082 | F177: Врач - диетолог
A178: 50340580 | B178: 02.083 A: | C178: 02.083 A: Проведение мероприятий по санитарно-эпидемиологическому надзору и контролю выполнения требований санитарного законодательства Российской Федерации | D178: 50340579 | E178: 02.083 | F178: Специалист в области медико-профилактического дела со средним медицинским образованием
A179: 50397175 | B179: 02.083 B: | C179: 02.083 B: Отбор проб для проведения санитарно-гигиенических лабораторных исследований и испытаний | D179: 50340579 | E179: 02.083 | F179: Специалист в области медико-профилактического дела со средним медицинским образованием
A180: 50397176 | B180: 02.083 C: | C180: 02.083 C: Организация и контроль проведения мероприятий по дезинфекции, дезинсекции, дератизации | D180: 50340579 | E180: 02.083 | F180: Специалист в области медико-профилактического дела со средним медицинским образованием
A181: 50397177 | B181: 02.083 D: | C181: 02.083 D: Проведение санитарно-эпидемиологических исследований | D181: 50340579 | E181: 02.083 | F181: Специалист в области медико-профилактического дела со средним медицинским образованием
A182: 50397178 | B182: 02.083 E: | C182: 02.083 E: Организация мероприятий по борьбе с переносчиками возбудителей трансмиссивных заболеваний человека | D182: 50340579 | E182: 02.083 | F182: Специалист в области медико-профилактического дела со средним медицинским образованием
A183: 50397179 | B183: 02.083 F: | C183: 02.083 F: Проведение санитарно-микробиологических исследований | D183: 50340579 | E183: 02.083 | F183: Специалист в области медико-профилактического дела со средним медицинским образованием
A184: 50333890 | B184: 02.084 A: | C184: 02.084 A: Оказание медицинской помощи населению по профилю "акушерство и гинекология" в амбулаторных условиях и (или) в условиях дневного стационара | D184: 50333889 | E184: 02.084 | F184: Врач - акушер-гинеколог
A185: 50333891 | B185: 02.084 B: | C185: 02.084 B: Оказание медицинской помощи населению по профилю "акушерство и гинекология" в стационарных условиях | D185: 50333889 | E185: 02.084 | F185: Врач - акушер-гинеколог
A186: 50340582 | B186: 02.085 A: | C186: 02.085 A: Оказание медицинской помощи по профилю "онкология" в амбулаторных условиях и условиях дневного стационара | D186: 50340581 | E186: 02.085 | F186: Врач - онколог
A187: 50397180 | B187: 02.085 B: | C187: 02.085 B: Оказание специализированной, в том числе высокотехнологичной, медицинской помощи по профилю "онкология" (лекарственная терапия) | D187: 50340581 | E187: 02.085 | F187: Врач - онколог
A188: 50397181 | B188: 02.085 C: | C188: 02.085 C: Оказание специализированной, в том числе высокотехнологичной, медицинской помощи по профилю "онкология" (хирургия) | D188: 50340581 | E188: 02.085 | F188: Врач - онколог
A189: 50340584 | B189: 02.086 A: | C189: 02.086 A: Проведение микробиологических исследований (бактериологических, вирусологических, микологических и паразитологических) | D189: 50340583 | E189: 02.086 | F189: Специалист в области медицинской микробиологии
A190: 50404606 | B190: 02.086 B: | C190: 02.086 B: Организация работы микробиологической лаборатории | D190: 50340583 | E190: 02.086 | F190: Специалист в области медицинской микробиологии
A191: 50340586 | B191: 02.087 A: | C191: 02.087 A: Оказание первичной доврачебной медико-санитарной помощи по медицинской оптике пациентам, в том числе подбор очков и мягких контактных линз серийного производства | D191: 50340585 | E191: 02.087 | F191: Специалист в области медицинской оптики и оптометрии
A192: 50396430 | B192: 02.088 A: | C192: 02.088 A: Оказание медицинской помощи в области профессиональной патологии | D192: 50396429 | E192: 02.088 | F192: Врач-профпатолог
A193: 50320991 | B193: 03.001 A: | C193: 03.001 A: Деятельность по предоставлению социальных услуг, мер социальной поддержки и государственной социальной помощи | D193: 50320990 | E193: 03.001 | F193: Специалист по социальной работе
A194: 50320992 | B194: 03.001 B: | C194: 03.001 B: Деятельность по планированию, организации, контролю реализации и развитию социального обслуживания | D194: 50320990 | E194: 03.001 | F194: Специалист по социальной работе
A195: 50231745 | B195: 03.002 A: | C195: 03.002 A: Предоставление социальных услуг получателям социальных услуг в различных формах социального обслуживания | D195: 50231744 | E195: 03.002 | F195: Социальный работник
A196: 50231747 | B196: 03.003 A: | C196: 03.003 A: Управление организацией социального обслуживания | D196: 50231746 | E196: 03.003 | F196: Руководитель организации социального обслуживания
A197: 50231749 | B197: 03.004 A: | C197: 03.004 A: Управление филиалом Главного бюро медико-социальной экспертизы | D197: 50231748 | E197: 03.004 | F197: Руководитель учреждения медико-социальной экспертизы
A198: 50231750 | B198: 03.004 B: | C198: 03.004 B: Управление Главным бюро медико-социальной экспертизы по субъекту Российской Федерации | D198: 50231748 | E198: 03.004 | F198: Руководитель учреждения медико-социальной экспертизы
A199: 50231751 | B199: 03.004 C: | C199: 03.004 C: Управление Федеральным бюро медико-социальной экспертизы | D199: 50231748 | E199: 03.004 | F199: Руководитель учреждения медико-социальной экспертизы
A200: 50231753 | B200: 03.005 A: | C200: 03.005 A: Оказание услуг по проведению медико-социальной экспертизы в бюро медико-социальной экспертизы | D200: 50231752 | E200: 03.005 | F200: Специалист по медико-социальной экспертизе
... 5775 more rows
